{"text_format":"1","workbook":"xlsx","n_sheets":4,"sheets":["Partnership FAR","Schedule of Partners - Pay up","Schedule of Partners - Push Out","Data"],"not_rendered":{"charts":0,"images":4,"macros":1,"external_links":0,"defined_names":40,"comments":0,"pivot_tables":0},"unopened":[],"bounds":{"document_bytes":16777216,"sheet_cells":100000,"rows_first":2000,"rows_last":500,"rows_between":2000,"halvings":0,"cell_chars":16384,"cell_head_chars":4096},"cells_cut":0,"cells_raw":0,"read":"whole","date_system":"1900"}

{"sheet":"Partnership FAR","index":0,"n_rows":97,"n_cols":17,"rows_kept":97,"cut":false,"hidden":false,"merged":[[91,7,91,9],[32,12,34,12],[94,7,94,9],[36,1,36,14],[95,7,95,9],[48,10,48,13],[65,11,65,13],[66,11,66,13],[67,11,67,13],[68,11,68,13],[69,11,69,13],[70,11,70,13],[71,11,71,13],[72,11,72,13],[52,1,52,14],[70,7,70,10],[71,7,71,10],[72,7,72,10],[64,1,64,14],[65,7,65,10],[58,4,58,6],[56,1,56,11],[70,3,70,6],[66,3,66,6],[60,4,60,6],[78,4,78,6],[68,7,68,10],[70,1,70,2],[75,1,75,2],[72,3,72,6],[71,1,71,2],[75,11,75,13],[6,12,6,13],[8,6,8,13],[10,12,10,13],[16,10,16,13],[20,11,20,13],[24,12,24,13],[26,6,26,13],[28,12,28,13],[38,12,38,13],[24,2,24,10],[26,2,26,4],[34,2,34,4],[38,2,38,9],[28,2,28,6],[28,8,28,10],[30,2,30,6],[32,2,32,4],[40,2,40,4],[42,2,42,6],[42,8,42,10],[44,2,44,6],[67,1,67,2],[82,1,82,14],[92,7,92,9],[74,11,74,13],[74,3,74,6],[72,1,72,2],[42,12,42,13],[62,4,62,6],[60,7,60,14],[54,1,54,14],[57,1,57,14],[68,1,68,2],[69,1,69,2],[77,11,77,13],[78,1,78,2],[77,3,77,6],[80,1,80,7],[90,7,90,9],[76,1,76,2],[76,11,76,13],[93,7,93,9],[73,1,73,2],[74,7,74,10],[74,1,74,2],[46,2,46,13],[69,7,69,10],[65,3,65,6],[66,7,66,10],[69,3,69,6],[73,7,73,10],[89,10,89,14],[87,1,87,14],[80,8,80,13],[83,1,83,14],[76,7,76,10],[77,7,77,10],[75,3,75,6],[75,7,75,10],[68,3,68,6],[67,3,67,6],[73,11,73,13],[77,1,77,2],[78,8,78,10],[78,12,78,13],[98,15,98,16],[1,1,2,14],[22,1,22,14],[18,2,18,4],[14,6,14,14],[4,1,4,14],[14,2,14,4],[16,3,16,7],[20,1,20,9],[8,2,8,4],[6,2,6,10],[12,2,12,6],[10,8,10,10],[10,2,10,6],[85,7,85,9],[89,7,89,9],[96,10,96,14],[89,1,89,6],[71,3,71,6],[73,3,73,6],[76,3,76,6],[67,7,67,10],[96,7,96,9],[40,6,40,13]]}
[]
[null,"MICHIGAN Federal Adjustments Report (FAR) for Partnerships and Other Flow-through Entities\nIssued under authority of Public Act 148 of 2022"]
[]
[null,"Click here for instructions on completing this form."]
[null,"Part I.a. Information about the Partnership Filing This Report"]
[]
[null,"Business Name",null,null,null,null,null,null,null,null,null,"FEIN",null,null,null,null,"Developers: I don’t see how to force MM/DD/YYYY format in Excel.  If systems / Business Taxes Division needs that later, that may need to be done in date fields here.  If it's ultimately unnecessary, the queues to indicate format next to fields could be removed"]
[]
[null,"House Number/Street"]
[]
[null,"City / State / Zip Code"]
[]
[null,"Country","US - USA"]
[]
[null,"Reviewed Tax Year Ending: ",null,null,null,null,"Note: A separate FAR must be filed for each reviewed tax year "]
[]
[null,"Federal Adjustments arise from - check one:  ",null,"Federal Partnership Audit (attach Federal Form 886-A)",null,null,null,null,null,null,"Administrative Adjustments Request (attach Federal Form 8082)",null,null,null,null,null,"Developers: Any field shaded blue could be a checkbox, if that works. As in, the user could check or uncheck."]
[]
[null,"Applicable Final Determination Date (see instructions): ",null,null,null,null,"Note: This FAR must be filed within 90 days of the Final Determination Date."]
[]
[null,"Check if you are a flow-through entity that was an owner (direct or indirect) of a partnership subject to a federal adjustment ",null,null,null,null,null,null,null,null,null,"Complete Part I.b. if checked"]
[]
[null,"Part I.b. Information about the Partnership Subject to a Federal Adjustment (if different from Part I.a.)\nIf you checked the box in Part 1.a. above, identify the partnership that was subject to the federal adjustment; otherwise, proceed to Part II. "]
[]
[null,"Partnership Name",null,null,null,null,null,null,null,null,null,"FEIN"]
[]
[null,"House Number/Street"]
[]
[null,"City / State / Zip Code"]
[]
[null,"Country","US - USA"]
[]
[null,"Audited Partnership's Final Determination Date: ",null,null,null,null,"See instructions"]
[]
[null,"Reviewed Tax Year Ending: ",null,null,null,null,"Note: A separate FAR must be filed for each reviewed tax year "]
[]
[null,"Part II: Information about the State Partnership Representative \nAll taxpayers filing this report must complete Part II to identify the State Partnership Representative. "]
[]
[null,"State Partnership Representative Name",null,null,null,null,null,null,null,null,null,"Telephone   "]
[]
[null,"House Number/Street"]
[]
[null,"City / State / Zip Code"]
[]
[null,"Country","US - USA"]
[]
[null,"E-mail Address "]
[]
[null,"          Check if you acted as the federal partnership representative for federal tax purposes for the reviewed tax year",null,null,null,null,null,null,null,null,"Written statement required if box is not checked. See instructions"]
[]
[]
[]
[null,"Certification of State Partnership Representative: By signing and completing this document on behalf of the above taxpayer, I certify under penalty of perjury that I am the duly authorized \"State Partnership Representative\" for the above taxpayer as provided under Section 723(2) of the Income Tax Act, MCL 206.723(2).  By acting as the State Partnership Representative in this matter, I understand that all elections, payments, and refund requests made on this report are legally binding on the partnership and each of its direct and indirect partners, as applicable. All information in this report is true and complete to the best of my knowledge. "]
[]
[null,"Part III.  The \"Pay Up\" Election \nPartnerships that do not make the \"pay up\" election should immediately skip to Part IV; Only partnerships that are making the \"pay up\" election should complete this section.  All taxpayers making the \"pay up\" election should complete the included Schedule of Partners."]
[]
[null,"If the partnership elects to report the final federal adjustments for the reviewed year and pay the tax or claim a refund on behalf of its partners under the \"pay up\" election, the state partnership representative must check the box on this line and complete the rest of Part III: "]
[null,"Section A.  Determining Final Federal Adjustments Subject to Tax"]
[null,"Total Final Federal Adjustments from Reviewed Year "]
[]
[null,"Less: Distributive Share of Tax Exempt Partners (enter as positive)",null,null,null,null,null,"Completed on behalf of all partners identified on Part III.A of the Part III Supplemental Schedule."]
[]
[null,"Total Final Federal Adjustments Subject to Tax ",null,null,{"$f":"E59-E61","v":0}]
[]
[null,"Section B. Attributing Adjustments to Partners \nComplete based on the sum of the distributive share of Total Final Federal Adjustments Subject to Tax \nthat are allocable to all direct and/or indirect partners identified on the Schedule of Partners: "]
[null,null,null,"Section B.i.\nDIRECT AND, IF KNOWN, INDIRECT  INDIVIDUAL / FIDUCIARY PARTNERS",null,null,null,"Section B.ii\nDIRECT AND, IF KNOWN, INDIRECT  CORPORATE PARTNERS",null,null,null,"Section B.iii.\n INDIRECT PARTNERS NOT INCLUDED UNDER PART B.i OR B.ii "]
[null,null,null,"Complete on behalf of all partners identified on Section B.i of the Part III Supplemental Schedule",null,null,null,"Complete on behalf of all partners identified on Section B.ii.a or B.ii.b of the Part III Supplemental Schedule",null,null,null,"Complete on behalf of all partners identified on Section B.iii of the Part III Supplemental Schedule"]
[null,"Share of Total Final Federal Adjustments from Reviewed Year "]
[null,"Section B.ii.b.  Unitary Exclusions\n\nLess: If reasonably identified, report income as a positive (loss as a negative) number the distributive share of final federal adjustments attributed to either of the following:  \n\n• Any direct or indirect corporate partner that is unitary with the audited partnership for apportionment purposes; or\n• Any direct or indirect corporate partner that is included as a member of a unitary business group. ",null,null,null,null,null,{"$f":"'Schedule of Partners - Pay up'!J71","v":0},null,null,null,null,null,null,null,null,"Developers: These two grayed-out boxes for unitary exclusions could be blocked from use."]
[null,"Subtotal ",null,{"$f":"D68","v":0},null,null,null,{"$f":"H68-H69","v":0},null,null,null,{"$f":"L68-L69","v":0}]
[null,"Apportionment Factor in Reviewed Year (see instructions)"]
[null,"MI Share of Final Federal Adjustments",null,{"$f":"D70*D71","v":0},null,null,null,{"$f":"H70*H71","v":0},null,null,null,{"$f":"L70*L71","v":0}]
[null,"Tax Rate ",null,{"$f":"IF(AND(C15>=DATE(2023,1,31),C15<=DATE(2023,12,31)),0.0405,0.0425)","v":4.2500000000000003E-2},null,null,null,0.06,null,null,null,0.06]
[null,"Tax Liability (Overpayment)",null,{"$f":"D72*D73","v":0},null,null,null,{"$f":"H72*H73","v":0},null,null,null,{"$f":"L72*L73","v":0}]
[null,"Less: Payments made in anticipation of this liability. Enter as positive",null,null,null,null,null,null,null,null,null,null,null,null,null,null,"MTO / SAP developers, Business Taxes - I don't know how to decide how to apply pre-payments - to which column(s) first? No real difference between 6% columns but couldn't it make a big difference for interest accrual, applying payment to 4.25% liability vs. 6%? I'm not sure how systems would normally a pre-payment like this."]
[null,"Tax Due / (Overpayment)",null,{"$f":"D74-D75","v":0},null,null,null,{"$f":"H74-H75","v":0},null,null,null,{"$f":"L74-L75","v":0}]
[null,"Interest (if applicable)",null,null,null,null,null,null,null,null,null,null,null,null,null,null,"P & I calculations TBD - have taxpayers self-report according to instructions for now (instructions to come soon). These examples could be inaccurate"]
[null,"Penalty (if applicable)"]
[null,"Payment Due / (Refund)",null,"(B.i)",{"$f":"D76+D77+D78","v":0},null,null,"(B.ii)",{"$f":"H76+H77+H78","v":0},null,null,"(B.iii)",{"$f":"L76+L77+L78","v":0}]
[]
[null,"Total Payment Due / (Refund) - sum of (B.i), (B.ii), and (B.iii)\nPayment Due within 180 days of Final Determination Date",null,null,null,null,null,null,{"$f":"E79+I79+M79","v":0}]
[]
[null,"Part IV: The \"Push Out\" Method \n All partnerships that do not make the \"pay up\" election are required to use the \"push out\" method of reporting final federal adjustments.  All taxpayers making the \"push out\" election should complete the included Schedule of Partners."]
[null,"Part IV.a.   All Final Federal Adjustments"]
[]
[null,null,null,null,null,null,"Final Federal Adjustments Allocable to Direct Partners   ",{"$f":"'Schedule of Partners - Push Out'!H39","v":0},null,null,"From Part IV Supplemental Schedule."]
[]
[null,"Part IV.b.   Calculating Tax Due or Refund on Behalf of Composite Participant Partners. "]
[]
[null,"Share of Michigan Adjustments for Partners that Participated in Composite Return ",null,null,null,null,null,{"$f":"'Schedule of Partners - Push Out'!I39","v":0},null,null,"From Part IV Supplemental Schedule. "]
[null,null,null,null,null,null,"             Tax Rate   ",4.2500000000000003E-2]
[null,null,null,null,null,null,"             Tax Liability (Overpayment)  ",{"$f":"H90*H91","v":0}]
[null,null,null,null,null,null," Less: Payments made in anticipation of this liability. Enter as positive  "]
[null,null,null,null,null,null,"Tax Due / (Overpayment)  ",{"$f":"H92-H93","v":0}]
[null,null,null,null,null,null,"Interest (if applicable)  "]
[null,null,null,null,null,null,"Penalty (if applicable)  "]
[null,null,null,null,null,null,"             Payment Due / (Refund) on behalf of Partners Who Participated in a Composite Return ",{"$f":"H94+H95+H96","v":0},null,null,"Payment Due within 90 days of Final Determination Date"]

{"sheet":"Schedule of Partners - Pay up","index":1,"n_rows":86,"n_cols":17,"rows_kept":86,"cut":false,"hidden":false,"merged":[[25,2,25,3],[25,4,25,6],[25,7,25,13],[53,1,53,3],[53,4,53,6],[53,7,53,13],[68,2,68,3],[68,4,68,8],[68,9,68,11],[68,12,68,13],[28,7,28,13],[30,2,30,3],[30,4,30,6],[30,7,30,13],[36,7,36,13],[39,2,39,3],[39,4,39,6],[39,7,39,13],[33,7,33,13],[34,2,34,3],[34,4,34,6],[34,7,34,13],[31,2,31,3],[31,4,31,6],[31,7,31,13],[32,2,32,3],[32,4,32,6],[32,7,32,13],[37,2,37,3],[37,4,37,6],[33,2,33,3],[33,4,33,6],[36,2,36,3],[36,4,36,6],[69,4,69,8],[81,1,81,3],[81,4,81,6],[81,7,81,13],[44,1,44,3],[69,9,69,11],[69,12,69,13],[61,12,61,13],[64,12,64,13],[52,1,52,3],[60,9,60,11],[61,9,61,11],[64,9,64,11],[61,2,61,3],[64,2,64,3],[60,4,60,8],[61,4,61,8],[64,4,64,8],[60,12,60,13],[62,2,62,3],[62,12,62,13],[62,9,62,11],[75,1,75,3],[75,4,75,6],[43,1,43,3],[73,1,73,3],[65,4,65,8],[57,2,57,3],[57,4,57,8],[57,9,57,11],[57,12,57,13],[59,2,59,3],[59,4,59,8],[59,9,59,11],[59,12,59,13],[69,2,69,3],[60,2,60,3],[63,12,63,13],[65,12,65,13],[66,12,66,13],[67,12,67,13],[47,1,47,3],[48,1,48,3],[49,1,49,3],[50,1,50,3],[54,4,54,6],[54,7,54,13],[51,1,51,3],[21,2,21,3],[21,4,21,6],[22,2,22,3],[22,4,22,6],[35,2,35,3],[35,4,35,6],[66,2,66,3],[67,2,67,3],[63,9,63,11],[65,9,65,11],[66,9,66,11],[67,9,67,11],[65,2,65,3],[66,4,66,8],[67,4,67,8],[24,2,24,3],[35,7,35,13],[42,1,42,3],[28,4,28,6],[42,4,42,6],[42,7,42,13],[55,1,56,14],[45,1,45,3],[46,1,46,3],[93,37,93,38],[83,1,83,3],[83,4,83,6],[83,7,83,13],[85,4,85,6],[85,7,85,13],[1,1,1,14],[70,9,70,13],[62,4,62,8],[63,4,63,8],[71,1,71,14],[72,1,72,3],[72,4,72,6],[72,7,72,13],[14,4,14,6],[37,7,37,13],[38,2,38,3],[38,4,38,6],[38,7,38,13],[40,2,40,3],[74,1,74,3],[74,4,74,6],[74,7,74,13],[63,2,63,3],[5,16,7,26],[3,2,3,10],[9,2,9,6],[11,2,11,4],[11,6,11,14],[3,12,3,13],[5,2,5,4],[5,6,5,13],[7,2,7,6],[7,8,7,10],[7,12,7,13],[13,1,13,14],[17,2,17,3],[17,4,17,6],[20,2,20,3],[20,4,20,6],[44,4,44,6],[44,7,44,13],[40,4,40,6],[40,7,40,13],[41,1,41,14],[27,1,27,14],[14,7,14,13],[16,7,16,13],[23,7,23,13],[17,7,17,13],[18,2,18,3],[18,4,18,6],[18,7,18,13],[19,2,19,3],[19,4,19,6],[19,7,19,13],[20,7,20,13],[21,7,21,13],[22,7,22,13],[16,2,16,3],[24,7,24,13],[23,2,23,3],[14,2,14,3],[51,4,51,6],[51,7,51,13],[52,4,52,6],[52,7,52,13],[48,4,48,6],[49,4,49,6],[50,4,50,6],[45,7,45,13],[46,7,46,13],[47,7,47,13],[48,7,48,13],[49,7,49,13],[50,7,50,13],[45,4,45,6],[46,4,46,6],[47,4,47,6],[16,4,16,6],[23,4,23,6],[24,4,24,6],[28,2,28,3],[75,7,75,13],[76,1,76,3],[76,4,76,6],[76,7,76,13],[77,1,77,3],[77,4,77,6],[77,7,77,13],[82,1,82,3],[82,4,82,6],[82,7,82,13],[84,4,84,6],[84,7,84,13],[78,1,78,3],[78,4,78,6],[78,7,78,13],[79,1,79,3],[79,4,79,6],[79,7,79,13],[80,1,80,3],[80,4,80,6],[80,7,80,13],[84,1,84,3]]}
[]
[null,"Part III Supplemental Schedule: Reviewed Year Partner Report for the Pay Up Method      \nThis schedule must be completed by all partnerships completing Part III of the Michigan Federal Adjustments Report (FAR) for Partnerships and Other Flow-through Entities. \nIssued under authority of Public Act 148 of 2022"]
[]
[null,"Business Name",{"$f":"'Partnership FAR'!C7","v":0},null,null,null,null,null,null,null,null,"FEIN",{"$f":"'Partnership FAR'!M7","v":0}]
[]
[null,"House Number/Street",{"$f":"'Partnership FAR'!C9","v":0},null,null,null,{"$f":"'Partnership FAR'!G9","v":0},null,null,null,null,null,null,null,null,null,"Decision for Tax Administration: Do you need the address on these supplemental schedules? Probably could go without."]
[]
[null,"City / State / Zip Code",{"$f":"'Partnership FAR'!C11","v":0},null,null,null,null,null,{"$f":"'Partnership FAR'!I11","v":0},null,null,null,{"$f":"'Partnership FAR'!M11","v":0}]
[]
[null,"Country",{"$f":"'Partnership FAR'!C13","v":"US - USA"}]
[]
[null,"Reviewed Tax Year Ending: ",{"$f":"'Partnership FAR'!C15","v":"00:00:00"}]
[]
[null,"Section A - Direct and, if known, Indirect Partners that are Tax Exempt Entities "]
[null,"NAME"," FEIN (F) / \nSSN (S)",null,"SSN/FEIN",null,null,"ADDRESS",null,null,null,null,null,null,null,null,"Developers' Note - Each table can have as many rows  as the taxpayer needs (could potentially be hundreds). It would be good to allow users to insert rows, but only in a way that would preserve the formula in the last table."]
[null,"startsectiona"]
[]
[]
[]
[]
[]
[]
[]
[]
[]
[]
[null,"endsectiona"]
[null,"Section B.i - Direct and, if known, Indirect Partners that are Individuals and/or Fiduciaries"]
[null,"NAME"," FEIN (F) / \nSSN (S)",null,"SSN/FEIN",null,null,"ADDRESS"]
[null,"startsectionbi"]
[]
[]
[]
[]
[]
[]
[]
[]
[]
[]
[null,"endsectionbi"]
[null,"Section B.ii.a. - Direct and, if known, Indirect Partners that are Corporations (Except for Unitary Corporate Partners -\n see Section B.ii.b)"]
[null,"NAME",null,null,"FEIN",null,null,"ADDRESS"]
[null,"startsectionbiia"]
[]
[]
[]
[]
[]
[]
[]
[]
[]
[]
[null,"endsectionbiia"]
[null,"Section B.ii.b. - Unitary Corporate Partners Required to be Excluded from \"Pay Up\" Calculation \nFor a corporate partner that is a member of a Unitary Business Group (UBG) or that is unitary for apportionment purposes with the flow-through entity that reported these adjustments, those partners must file an amended Corporate Income Tax Return (Form 4892).  For a member of a UBG with federal adjustments, that amended return must include all persons included in the UBG. For each partner listed, report the partner's share of adjustments in only one column."]
[]
[null,"NAME","FEIN",null,"ADDRESS",null,null,null,null,"If Partner is included in a UBG, partner's share of final federal adjustment",null,null,"If partner is unitary for apportionment purposes with flow-through entity, partner's share of final federal adjustments"]
[null,"startsectionbiib"]
[]
[]
[]
[]
[]
[]
[]
[]
[]
[]
[null,"endsectionbiib"]
[null,null,null,null,null,null,null,null,"Total Unitary Adjustments Excluded from \"Pay Up\" Calculation  ",{"$f":"SUM(J60:N70)","v":0},null,null,null,null,null,null,"Developers: this total must equal the amount for B.ii.b. on Part 3 of the FAR, but had a hard time getting the formula to work."]
[null,"Section B.iii. - Direct Partners Whose Partners are not Identified\nIdentify the direct partners that are flow-through entities whose partners are not identified in Sections B.i. or B.ii. These partners' adjustments are reported in Part III, Section B.iii. of the Michigan Federal Adjustments Report (FAR) for Partnerships and Other Flow-through Entities"]
[null,"NAME",null,null,"FEIN",null,null,"ADDRESS"]
[null,"startsectionbiii"]
[]
[]
[]
[]
[]
[]
[]
[]
[]
[]
[]
[null,"endsectionbiii"]

{"sheet":"Schedule of Partners - Push Out","index":2,"n_rows":40,"n_cols":12,"rows_kept":40,"cut":false,"hidden":true,"merged":[[39,15,39,17],[17,11,22,17],[1,1,1,9],[12,2,12,4],[12,6,12,7],[13,11,13,17],[38,11,38,14],[38,15,38,17],[3,2,3,5],[5,3,5,7],[7,3,7,6],[9,2,9,3],[39,11,39,14],[38,1,38,6]]}
[]
[null,"Part IV Supplemental Schedule: Reviewed Year Partner Report for the Push Out Method                             \nThis schedule must be completed by all partnerships completing Part IV of the Michigan Federal Adjustment Report (FAR) For Partnerships and Other Flow-Through Entities. \nIssued under authority of Public Act 148 of 2022"]
[]
[null,"Business Name",{"$f":"'Partnership FAR'!C7","v":0},null,null,null,"FEIN",{"$f":"'Partnership FAR'!M7","v":0}]
[]
[null,"House Number/Street",{"$f":"'Partnership FAR'!C9","v":0},{"$f":"'Partnership FAR'!G9","v":0}]
[]
[null,"City / State / Zip Code",{"$f":"'Partnership FAR'!C11","v":0},{"$f":"'Partnership FAR'!I11","v":0},null,null,null,{"$f":"'Partnership FAR'!M11","v":0}]
[]
[null,"Country",{"$f":"'Partnership FAR'!C13","v":"US - USA"}]
[]
[null,"Reviewed Tax Year Ending: ",{"$f":"'Partnership FAR'!C15","v":"00:00:00"}]
[]
[null,"(A) \nNAME"," FEIN (F) / \nSSN (S)","(B)\nSSN/FEIN","(C)\nADDRESS","(D)\nPARTNER TYPE\n (COM, IIT, FID, CIT, FTE, EXP)","(E) \nMICHIGAN APPORTIONMENT FACTOR","(F)\nPARTNER'S SHARE OF FINAL FEDERAL ADJUSTMENTS","(G)\nIF COMPOSITE PARTICIPANT, PARTNER'S MICHIGAN SHARE OF FINAL FEDERAL ADJUSTMENTS",null,null,"Developers: if there is a  way to require the exact 3 letters as prescribed in column D, that would be nice.  I've built a formula in column H based off the entry in column H. "]
[null,"startpushoutsch"]
[]
[]
[null,null,null,null,null,null,null,null,null,null,null,"Developers' Note - table can have as many rows as the taxpayer needs. Could be hundreds. It would be good to allow users to insert rows, but not below the last row so that formulas remain in tact."]
[]
[]
[]
[]
[]
[]
[]
[]
[]
[]
[]
[]
[]
[]
[]
[]
[]
[]
[null,"endpushoutsch"]
[]
[null,"Column Totals ",null,null,null,null,null,{"$f":"SUM(H16:H36)","v":0},{"$f":"SUM(I16:J36)","v":0},null,null,"Developers: Where these totals say \"see, they should match the respective fields on the FAR, as indicated there. If you can program those fields on the FAR to autopopulate based on these totals, that would be nice. Thanks "]
[null,null,null,null,null,null,null,"See Part IV.a. of Partnership FAR","See Part IV.b. of Partnership FAR "]

{"sheet":"Data","index":3,"n_rows":1365,"n_cols":320,"rows_kept":1365,"cut":false,"hidden":true,"merged":[]}
["Country","Description","Country","02935A059D561EEDADEF82FC6DCAD285","þ","þ","Forms Selected","AA - Aruba","AC - Antigua/Barbuda","AD - Andorra","AE - Utd.Arab Emir.","AF - Afghanistan","AG - Algeria","AI - Anguilla","AJ - Azerbaijan","AL - Albania","AM - Armenia","AN - Andorra","AO - Angola","AQ - American Samoa","AR - Argentina","AS - Australia","AT - Ashmore and Car","AU - Austria","AV - Anguilla","AW - Aruba","AX - Aland Islands","AY - Antarctica","AZ - Azerbaijan","BA - Bahrain","BB - Barbados","BC - Botswana","BD - Bermuda","BE - Belgium","BF - Bahamas","BG - Bangladesh","BH - Belize","BI - Burundi","BJ - Benin","BK - Bosnia-Herzegov","BL - Saint Barthelem","BM - Burma","BN - Benin","BO - Belarus","BP - Solomon Islands","BQ - Bonaire","BR - Brazil","BS - Bassas da India","BT - Bhutan","BU - Bulgaria","BV - Bouvet Islands","BW - Botswana","BX - Brunei","BY - Burundi","BZ - Belize","CA - Canada","CB - Cambodia","CC - Coconut Islands","CD - Chad","CE - Sri Lanka","CF - Congo Republic","CG - Congo (Democrat","CH - China","CI - Chile","CJ - Cayman Islands","CK - Cocos (Keeling)","CL - Chile","CM - Cameroon","CN - Comoros","CO - Colombia","CQ - Northern Marian","CR - Coral Sea Islan","CS - Costa Rica","CT - CAR","CU - Cuba","CV - Cape Verde","CW - Curacao","CX - Christmas Islnd","CY - Cyprus","CZ - Czech Republic","DA - Denmark","DB - Dutch Antilles","DE - Germany","DJ - Djibouti","DM - Dominica","DO - Dominica","DQ - Jarvis Island","DR - Dominican Repub","DX - Dhekelia Base A","DZ - Algeria","EC - Ecuador","EG - Egypt","EK - Equatorial Guin","EN - Estonia","ER - Eritrea","ES - El Salvador","ET - Ethiopia","EU - European Union","EZ - Czech Republic","FG - French Guayana","FI - Finland","FJ - Fiji","FK - Falkland Islnds","FM - Micronesia","FO - Faroe Islands","FP - French Polynesi","FQ - Baker Islands","FR - France","FS - French S.Territ","GA - Gambia","GB - Gabon","GF - French Guayana","GG - Guernsey","GH - Ghana","GI - Gibraltar","GJ - Grenada","GL - Greenland","GM - Germany","GO - Glorioso Island","GP - Guadeloupe","GQ - Guam","GR - Greece","GT - Guatemala","GU - Guam","GV - Guinea","GY - Guyana","GZ - Gaza Strip","HA - Haiti","HK - Hong Kong","HM - Heard/McDon.Isl","HO - Honduras","HQ - Howland Island","HR - Croatia","HU - Hungary","IC - Iceland","ID - Indonesia","IE - Ireland","IM - Man, Isle of","IN - India","IO - Brit.Ind.Oc.Ter","IP - Clipperton Isla","IR - Iran","IS - Israel","IT - Italy","IV - Cote D'Ivoire (","IZ - Iraq","JE - Jersey","JM - Jamaica","JN - Jan Mayen","JO - Jordan","JP - Japan","JQ - Johnston Atoll","JU - Juan de Nova Is","KE - Kenya","KG - Kyrgyzstan","KH - Cambodia","KI - Kiribati","KM - Comoros","KN - North Korea","KQ - Kingman Reef","KR - South Korea","KT - Christmas Islan","KU - Kuwait","KY - Cayman Islands","KZ - Kazakhstan","LA - Laos","LE - Lebanon","LG - Latvia","LH - Lithuania","LI - Liberia","LO - Slovakia","LQ - Palmyra Atoll","LS - Liechtenstein","LT - Lesotho","LU - Luxembourg","LY - Libya","MA - Madagascar","MB - Martinique","MC - Macau","MD - Moldova","ME - Montenegro","MF - Saint Martin","MG - Mongolia","MH - Montserrat","MI - Malawi","MJ - Montenegro","MK - Macedonia","ML - Mali","MM - Myanmar (Burma)","MN - Monaco","MO - Morocco","MP - Mauritius","MQ - Midway Islands","MR - Mauretania","MT - Malta","MU - Oman","MV - Maldives","MX - Mexico","MY - Malaysia","MZ - Mozambique","NA - Namibia","NC - New Caledonia","NE - Niue","NF - Norfolk Islands","NG - Niger","NH - Vanuatu","NI - Nigeria","NL - Netherlands","NO - Norway","NP - Nepal","NR - Nauru","NS - Suriname","NT - NATO","NU - Nicaragua","NZ - New Zealand","OR - Orange","PA - Paraguay","PC - Pitcairn Islnds","PE - Peru","PF - Paracel Islands","PG - Spratly Islands","PK - Pakistan","PL - Poland","PM - Panama","PO - Portugal","PP - Papua- New Guin","PS - Palestine","PT - Portugal","PU - Guinea-Bissau","PW - Palau","QA - Qatar","RB - Serbia/Monten.","RE - Reunion","RM - Marshall Islnds","RO - Romania","RP - Philippines","RQ - Puerto Rico","RS - Serbia","RW - Rwanda","SA - Saudi Arabia","SB - St. Pierre and","SC - St Kitts and Ne","SE - Seychelles","SF - South Africa","SG - Senegal","SH - Saint Helena","SI - Slovenia","SL - Sierra Leone","SM - San Marino","SN - Singapore","SO - Somalia","SP - Spain","SS - South Sudan","ST - St. Lucia","SU - Sudan","SV - Svalbard","SW - Sweden","SX - Sint Maarten","SY - Syria","SZ - Switzerland","TD - Trinidad and To","TE - Tromelin Island","TF - French S.Territ","TH - Thailand","TI - Tajikistan","TJ - Tajikistan","TK - Turksh Caicosin","TL - Timor-Leste","TN - Tonga","TO - Togo","TS - Tunisia","TT - East Timor","TU - Turkey","TV - Tuvalu","TW - Taiwan","TX - Turkmenistan","TZ - Tanzania","UC - Unknown Country","UG - Uganda","UK - United Kingdom","UM - Minor Outl.Isl.","UN - United Nations","UP - Ukraine","US - USA","UV - Burkina Faso","UY - Uruguay","UZ - Uzbekistan","VA - Vatican City","VC - St. Vincent","VE - Venezuela","VG - Brit.Virgin Is.","VI - British Virgin","VM - Vietnam","VP - Corsica","VQ - American Virgin","VU - Vanuatu","WA - Namibia","WE - West Bank","WF - Wallis,Futuna","WI - West Sahara","WQ - Wake Island","WS - Samoa","WZ - Swaziland","XA - Ascension","XC - Channel Islands","XE - United Kingdom","XI - Aland Island","XM - Myanmar","XN - Northern Irelan","XR - Slovak Republic","XS - Scotland","XT - Tristan Da Cunh","XW - Wales","XX - COUNTRIES-OTHER","XY - Canary Islands","XZ - Azores","YI - Yugoslavia","YM - Yemen","ZA - Zambia","ZI - Zimbabwe"]
["US","USA",{"$f":"  A2 & \" - \" & B2","v":"US - USA"},null,"¨","¨","886A",null,null,null,null,null,null,null,null,null,null,null,null,null,"00 - Capital Federal",null,null,null,null,null,null,null,null,null,null,null,null,"01 - Antwerp",null,null,null,null,null,null,null,null,null,null,null,null,"AC - Acre",null,null,null,null,null,null,null,null,"AB - Alberta",null,null,null,null,null,null,null,null,null,null,"01 - I - Iquique",null,null,"05 - ANTIOQUIA",null,null,null,null,null,null,null,null,null,"11 - Praha",null,null,"01 - Schleswig-Holstein",null,null,null,null,null,null,null,null,null,null,null,null,null,null,null,null,null,"001 - Ahvenanmaa",null,null,null,null,null,null,"01 - Ain",null,null,"EC - London EC",null,"01 - St Peter Port",null,null,null,null,null,null,null,null,"01 - Aitolia kai Akarnan.",null,null,null,null,null,null,"HK - Hong Kong Island",null,null,null,"A00 - Zagrebacka","01 - Bacs-Kiskun",null,"01 - DKI Jakarta Jakarta","CK - Cork",null,"01 - Andra Pradesh",null,null,null,null,"AG - Agriento",null,null,"01 - St Helier",null,null,null,"01 - Hokkaido",null,null,null,null,null,null,null,null,null,"01 - Cheju-do",null,null,"X - Caymans Island","00 - Almatynskaia",null,null,null,null,null,null,null,null,null,"LUX - Luxembourg",null,null,null,null,null,null,null,null,null,null,null,null,null,null,null,null,null,null,null,null,null,null,"AGS - Aguascalientes","JOH - Johor",null,null,null,null,null,null,null,null,"01 - Drenthe","01 - Ostfold County",null,null,null,null,null,"AKL - Auckland",null,null,null,"01 - Tumbes",null,null,null,"DSL - Dolnoslaskie",null,null,null,null,"10 - Minho-Lima",null,null,null,null,null,null,"01 - Alba",null,null,null,null,null,null,null,null,null,null,null,"01 - Ajdovscina",null,null,null,null,null,null,null,null,null,null,null,null,null,null,null,null,"01 - Amnat Charoen",null,null,null,null,null,null,null,null,null,null,"FJN - Fu-chien",null,null,null,null,null,null,null,null,"MI - Michigan",null,null,null,null,null,"AMA - Amazon"]
["AA","Aruba",{"$f":"  A3 & \" - \" & B3","v":"AA - Aruba"},null,"þ",null,"partb",null,null,null,null,null,null,null,null,null,null,null,null,null,"01 - Buenos Aires",null,null,null,null,null,null,null,null,null,null,null,null,"02 - Brabant (Flemish)",null,null,null,null,null,null,null,null,null,null,null,null,"AL - Alagoas",null,null,null,null,null,null,null,null,"BC - British Columbia",null,null,null,null,null,null,null,null,null,null,"02 - II - Antofagasta",null,null,"08 - ATLANTICO",null,null,null,null,null,null,null,null,null,"21 - Stredocesky",null,null,"02 - Hamburg",null,null,null,null,null,null,null,null,null,null,null,null,null,null,null,null,null,"002 - Southern Finnland",null,null,null,null,null,null,"02 - Aisne",null,null,null,null,null,null,null,null,null,null,null,null,null,"02 - Akhaia",null,null,null,null,null,null,"KLN - Kowloon",null,null,null,"B00 - Krapinsko-zagorska","02 - Baranya",null,"02 - Jawa Barat West Java","CL - Clare",null,"02 - Arunachal Pradesh",null,null,null,null,"AL - Alessandria",null,null,null,null,null,null,"02 - Aomori",null,null,null,null,null,null,null,null,null,"02 - Cholla-bukto",null,null,null,"01 - Kostanaiskaia",null,null,null,null,null,null,null,null,null,null,null,null,null,null,null,null,null,null,null,null,null,null,null,null,null,null,null,null,null,null,null,null,"BC - Baja California","KED - Kedah",null,null,null,null,null,null,null,null,"02 - Flevoland","02 - Akershus County",null,null,null,null,null,"BOP - Bay of Plenty",null,null,null,"02 - Piura",null,null,null,"K-P - Kujawsko-Pomorskie",null,null,null,null,"11 - Cavado",null,null,null,null,null,null,"02 - Arad",null,null,null,null,null,null,null,null,null,null,null,"02 - Brezice",null,null,null,null,null,null,null,null,null,null,null,null,null,null,null,null,"02 - Ang Thong",null,null,null,null,null,null,null,null,null,null,"KSH - Kao-hsiung",null,null,null,null,null,null,null,null,"AE - Armed Forces",null,null,null,null,null,"ANZ - Anzoategui"]
["AC","Antigua/Barbuda",{"$f":"  A4 & \" - \" & B4","v":"AC - Antigua/Barbuda"},null,"þ",null,"AuthAct",null,null,null,null,null,null,null,null,null,null,null,null,null,"02 - Catamarca",null,null,null,null,null,null,null,null,null,null,null,null,"03 - Hainaut",null,null,null,null,null,null,null,null,null,null,null,null,"AM - Amazon",null,null,null,null,null,null,null,null,"MB - Manitoba",null,null,null,null,null,null,null,null,null,null,"03 - III - Copiapo",null,null,"11 - BOGOTA",null,null,null,null,null,null,null,null,null,"31 - Jihocesky",null,null,"03 - Lower Saxony",null,null,null,null,null,null,null,null,null,null,null,null,null,null,null,null,null,"003 - Eastern Finnland",null,null,null,null,null,null,"03 - Allier",null,null,null,null,null,null,null,null,null,null,null,null,null,"03 - Argolis",null,null,null,null,null,null,"NT - New Territories",null,null,null,"C00 - Sisacko-moslavacka","03 - Bekes",null,"03 - Jawa Tengah Central","CV - Cavan",null,"03 - Assam",null,null,null,null,"AN - Ancona",null,null,null,null,null,null,"03 - Iwate",null,null,null,null,null,null,null,null,null,"03 - Cholla-namdo",null,null,null,"02 - Severo-Kazakhstansk",null,null,null,null,null,null,null,null,null,null,null,null,null,null,null,null,null,null,null,null,null,null,null,null,null,null,null,null,null,null,null,null,"BCS - Baja California S","KEL - Kelantan",null,null,null,null,null,null,null,null,"03 - Friesland","03 - Oslo",null,null,null,null,null,"CAN - Canterbury",null,null,null,"03 - Lambayeque",null,null,null,"LBL - Lubelskie",null,null,null,null,"12 - Ave",null,null,null,null,null,null,"03 - Arges",null,null,null,null,null,null,null,null,null,null,null,"03 - Celje",null,null,null,null,null,null,null,null,null,null,null,null,null,null,null,null,"03 - Buriram",null,null,null,null,null,null,null,null,null,null,"TPE - T´ai-pei",null,null,null,null,null,null,null,null,"AK - Alaska",null,null,null,null,null,"APU - Apure"]
["AD","Andorra",{"$f":"  A5 & \" - \" & B5","v":"AD - Andorra"},null,"þ",null,"FinalFedAdj",null,null,null,null,null,null,null,null,null,null,null,null,null,"03 - Cordoba",null,null,null,null,null,null,null,null,null,null,null,null,"04 - Liege",null,null,null,null,null,null,null,null,null,null,null,null,"AP - Amapa",null,null,null,null,null,null,null,null,"NB - New Brunswick",null,null,null,null,null,null,null,null,null,null,"04 - IV - La Serena",null,null,"13 - BOLIVAR",null,null,null,null,null,null,null,null,null,"32 - Plzensky",null,null,"04 - Bremen",null,null,null,null,null,null,null,null,null,null,null,null,null,null,null,null,null,"004 - Lappi",null,null,null,null,null,null,"04 - Alpes (Hte-Provence)",null,null,null,null,null,null,null,null,null,null,null,null,null,"04 - Arkadhia",null,null,null,null,null,null,null,null,null,null,"D00 - Karlovacka","04 - Bekescsaba",null,"04 - Jawa Timur East Java","CW - Carlow",null,"04 - Bihar",null,null,null,null,"AO - Aosta",null,null,null,null,null,null,"04 - Miyagi",null,null,null,null,null,null,null,null,null,"04 - Ch´ungch´ong-bukto",null,null,null,"03 - Pavlodarskaia",null,null,null,null,null,null,null,null,null,null,null,null,null,null,null,null,null,null,null,null,null,null,null,null,null,null,null,null,null,null,null,null,"CHI - Chihuahua","KUL - Kuala Lumpur",null,null,null,null,null,null,null,null,"04 - Gelderland","04 - Hedmark County",null,null,null,null,null,"HAB - Hawke´s Bay",null,null,null,"04 - La Libertad",null,null,null,"LBS - Lubuskie",null,null,null,null,"13 - Grande Porto",null,null,null,null,null,null,"04 - Bacau",null,null,null,null,null,null,null,null,null,null,null,"04 - Cerknica",null,null,null,null,null,null,null,null,null,null,null,null,null,null,null,null,"04 - Chachoengsao",null,null,null,null,null,null,null,null,null,null,"TWN - Taiwan",null,null,null,null,null,null,null,null,"AL - Alabama",null,null,null,null,null,"ARA - Aragua"]
["AE","Utd.Arab Emir.",{"$f":"  A6 & \" - \" & B6","v":"AE - Utd.Arab Emir."},null,null,null,null,null,null,null,null,null,null,null,null,null,null,null,null,null,"04 - Corrientes",null,null,null,null,null,null,null,null,null,null,null,null,"05 - Limburg",null,null,null,null,null,null,null,null,null,null,null,null,"BA - Bahia",null,null,null,null,null,null,null,null,"NL - Newfoundland & Labr.",null,null,null,null,null,null,null,null,null,null,"05 - V - Valparaiso",null,null,"15 - BOYACA",null,null,null,null,null,null,null,null,null,"41 - Karlovarsky",null,null,"05 - Nrth Rhine Westfalia",null,null,null,null,null,null,null,null,null,null,null,null,null,null,null,null,null,"005 - Western Finnland",null,null,null,null,null,null,"05 - Alpes (Hautes)",null,null,null,null,null,null,null,null,null,null,null,null,null,"05 - Arta",null,null,null,null,null,null,null,null,null,null,"E00 - Varazdinska","05 - Borsod-Abauj-Zemplen",null,"05 - DI Yogyakarta Yogyak","DB - Dublin",null,"05 - Goa",null,null,null,null,"AP - Ascoli Piceno",null,null,null,null,null,null,"05 - Akita",null,null,null,null,null,null,null,null,null,"05 - Ch´ungch´ong-namdo",null,null,null,"04 - Akmolinskaia",null,null,null,null,null,null,null,null,null,null,null,null,null,null,null,null,null,null,null,null,null,null,null,null,null,null,null,null,null,null,null,null,"CHS - Chiapas","LAB - Labuan",null,null,null,null,null,null,null,null,"05 - Groningen","05 - Oppland County",null,null,null,null,null,"MAN - Manawatu-Wanganui",null,null,null,"05 - Ancash",null,null,null,"LDZ - Lodzkie",null,null,null,null,"14 - Tamega",null,null,null,null,null,null,"05 - Bihor",null,null,null,null,null,null,null,null,null,null,null,"05 - Crnomelj",null,null,null,null,null,null,null,null,null,null,null,null,null,null,null,null,"05 - Chai Nat",null,null,null,null,null,null,null,null,null,null,null,null,null,null,null,null,null,null,null,"AP - Armed Forces",null,null,null,null,null,"BAR - Barinas"]
["AF","Afghanistan",{"$f":"  A7 & \" - \" & B7","v":"AF - Afghanistan"},null,null,null,null,null,null,null,null,null,null,null,null,null,null,null,null,null,"05 - Entre Rios",null,null,null,null,null,null,null,null,null,null,null,null,"06 - Luxembourg",null,null,null,null,null,null,null,null,null,null,null,null,"CE - Ceara",null,null,null,null,null,null,null,null,"NS - Nova Scotia",null,null,null,null,null,null,null,null,null,null,"06 - VI - Rancagua",null,null,"17 - CALDAS",null,null,null,null,null,null,null,null,null,"42 - Ustecky",null,null,"06 - Hessen",null,null,null,null,null,null,null,null,null,null,null,null,null,null,null,null,null,"006 - Oulu",null,null,null,null,null,null,"06 - Alpes-Maritimes",null,null,null,null,null,null,null,null,null,null,null,null,null,"06 - Attiki",null,null,null,null,null,null,null,null,null,null,"F00 - Koprivnicko-krizevac","06 - Budapest",null,"06 - DI Aceh Aceh","DG - Donegal",null,"06 - Gujarat",null,null,null,null,"AQ - L'Aquila",null,null,null,null,null,null,"06 - Yamagata",null,null,null,null,null,null,null,null,null,"06 - Inch´on-jikhalsi",null,null,null,"05 - Aktubinskaia",null,null,null,null,null,null,null,null,null,null,null,null,null,null,null,null,null,null,null,null,null,null,null,null,null,null,null,null,null,null,null,null,"CMP - Campeche","MEL - Melaka",null,null,null,null,null,null,null,null,"06 - Limburg","06 - Buskerud County",null,null,null,null,null,"NTL - Northland",null,null,null,"06 - Lima y Callao",null,null,null,"MAL - Malopolskie",null,null,null,null,"15 - Entre Douro e Vouga",null,null,null,null,null,null,"06 - Bistrita-Nasaud",null,null,null,null,null,null,null,null,null,null,null,"06 - Dravograd",null,null,null,null,null,null,null,null,null,null,null,null,null,null,null,null,"06 - Chaiyaphum",null,null,null,null,null,null,null,null,null,null,null,null,null,null,null,null,null,null,null,"AR - Arkansas",null,null,null,null,null,"BOL - Bolivar"]
["AG","Algeria",{"$f":"  A8 & \" - \" & B8","v":"AG - Algeria"},null,null,null,null,null,null,null,null,null,null,null,null,null,null,null,null,null,"06 - Jujuy",null,null,null,null,null,null,null,null,null,null,null,null,"07 - Namur",null,null,null,null,null,null,null,null,null,null,null,null,"DF - Brasilia",null,null,null,null,null,null,null,null,"NT - Northwest Terr.",null,null,null,null,null,null,null,null,null,null,"07 - VII - Talca",null,null,"18 - CAQUETA",null,null,null,null,null,null,null,null,null,"51 - Liberecky",null,null,"07 - Rhineland Palatinate",null,null,null,null,null,null,null,null,null,null,null,null,null,null,null,null,null,null,null,null,null,null,null,null,"07 - Ardeche",null,null,null,null,null,null,null,null,null,null,null,null,null,"07 - Dhodhekanisos",null,null,null,null,null,null,null,null,null,null,"G00 - Bjelovarsko-bilogors","07 - Csongrad",null,"07 - Sumatera Utara North","GW - Galway",null,"07 - Haryana",null,null,null,null,"AR - Arezzo",null,null,null,null,null,null,"07 - Fukushima",null,null,null,null,null,null,null,null,null,"07 - Kangwon-do",null,null,null,"06 - Atyrauskaia",null,null,null,null,null,null,null,null,null,null,null,null,null,null,null,null,null,null,null,null,null,null,null,null,null,null,null,null,null,null,null,null,"COA - Coahuila","PAH - Pahang",null,null,null,null,null,null,null,null,"07 - Noord-Brabant","07 - Vestfold County",null,null,null,null,null,"OTA - Otago",null,null,null,"07 - Ica",null,null,null,"MAZ - Mazowieckie",null,null,null,null,"16 - Douro",null,null,null,null,null,null,"07 - Botosani",null,null,null,null,null,null,null,null,null,null,null,"07 - Gornja Radgona",null,null,null,null,null,null,null,null,null,null,null,null,null,null,null,null,"07 - Chanthaburi",null,null,null,null,null,null,null,null,null,null,null,null,null,null,null,null,null,null,null,"AS - American Samoa",null,null,null,null,null,"CAR - Carabobo"]
["AI","Anguilla",{"$f":"  A9 & \" - \" & B9","v":"AI - Anguilla"},null,null,null,null,null,null,null,null,null,null,null,null,null,null,null,null,null,"07 - Mendoza",null,null,null,null,null,null,null,null,null,null,null,null,"08 - Oost-Vlaanderen",null,null,null,null,null,null,null,null,null,null,null,null,"ES - Espirito Santo",null,null,null,null,null,null,null,null,"NU - Nunavut",null,null,null,null,null,null,null,null,null,null,"08 - VIII - Concepcion",null,null,"19 - CAUCA",null,null,null,null,null,null,null,null,null,"52 - Kralovehradecky",null,null,"08 - Baden-Wurttemberg",null,null,null,null,null,null,null,null,null,null,null,null,null,null,null,null,null,null,null,null,null,null,null,null,"08 - Ardennes",null,null,null,null,null,null,null,null,null,null,null,null,null,"08 - Dhrama",null,null,null,null,null,null,null,null,null,null,"H00 - Rijecko-goranska","08 - Debrecen",null,"08 - Sumatera Barat West","KD - Kildare",null,"08 - Himachal Pradesh",null,null,null,null,"AT - Asti",null,null,null,null,null,null,"08 - Ibaraki",null,null,null,null,null,null,null,null,null,"08 - Kwangju-jikhalsi",null,null,null,"07 - Zapadno-Kazakhst",null,null,null,null,null,null,null,null,null,null,null,null,null,null,null,null,null,null,null,null,null,null,null,null,null,null,null,null,null,null,null,null,"COL - Colima","PEL - Perlis",null,null,null,null,null,null,null,null,"08 - Noord-Holland","08 - Telemark County",null,null,null,null,null,"STL - Southland",null,null,null,"08 - Arequipa",null,null,null,"OPO - Opolskie",null,null,null,null,"17 - Alto Tras-os-Montes",null,null,null,null,null,null,"08 - Braila",null,null,null,null,null,null,null,null,null,null,null,"08 - Grosuplje",null,null,null,null,null,null,null,null,null,null,null,null,null,null,null,null,"08 - Chiang Mai",null,null,null,null,null,null,null,null,null,null,null,null,null,null,null,null,null,null,null,"AZ - Arizona",null,null,null,null,null,"COJ - Cojedes"]
["AJ","Azerbaijan",{"$f":"  A10 & \" - \" & B10","v":"AJ - Azerbaijan"},null,null,null,null,null,null,null,null,null,null,null,null,null,null,null,null,null,"08 - La Rioja",null,null,null,null,null,null,null,null,null,null,null,null,"09 - West-Vlaanderen",null,null,null,null,null,null,null,null,null,null,null,null,"GO - Goias",null,null,null,null,null,null,null,null,"ON - Ontario",null,null,null,null,null,null,null,null,null,null,"09 - IX - Temuco",null,null,"20 - CESAR",null,null,null,null,null,null,null,null,null,"53 - Pardubicky",null,null,"09 - Bavaria",null,null,null,null,null,null,null,null,null,null,null,null,null,null,null,null,null,null,null,null,null,null,null,null,"09 - Ariege",null,null,null,null,null,null,null,null,null,null,null,null,null,"09 - Evritania",null,null,null,null,null,null,null,null,null,null,"I00 - Licko-senjska","09 - Dunaujvaros",null,"09 - Riau Riau","KK - Kilkenny",null,"09 - Jammu und Kashmir",null,null,null,null,"AV - Avellino",null,null,null,null,null,null,"09 - Tochigi",null,null,null,null,null,null,null,null,null,"09 - Kyonggi-do",null,null,null,"08 - Mangystayskaia",null,null,null,null,null,null,null,null,null,null,null,null,null,null,null,null,null,null,null,null,null,null,null,null,null,null,null,null,null,null,null,null,"DF - Distrito Federal","PER - Perak",null,null,null,null,null,null,null,null,"09 - Overijssel","09 - Aust-Agder County",null,null,null,null,null,"TAR - Taranaki",null,null,null,"09 - Moquegua",null,null,null,"PDK - Podkarpackie",null,null,null,null,"20 - Baixo Vouga",null,null,null,null,null,null,"09 - Brasov",null,null,null,null,null,null,null,null,null,null,null,"09 - Hrastnik Lasko",null,null,null,null,null,null,null,null,null,null,null,null,null,null,null,null,"09 - Chiang Rai",null,null,null,null,null,null,null,null,null,null,null,null,null,null,null,null,null,null,null,"CA - California",null,null,null,null,null,"DA - Delta Amacuro"]
["AL","Albania",{"$f":"  A11 & \" - \" & B11","v":"AL - Albania"},null,null,null,null,null,null,null,null,null,null,null,null,null,null,null,null,null,"09 - Salta",null,null,null,null,null,null,null,null,null,null,null,null,"10 - Brabant (Walloon)",null,null,null,null,null,null,null,null,null,null,null,null,"MA - Maranhao",null,null,null,null,null,null,null,null,"PE - Prince Edward Island",null,null,null,null,null,null,null,null,null,null,"10 - X - Puerto Montt",null,null,"23 - CORDOBA",null,null,null,null,null,null,null,null,null,"61 - Vysocina",null,null,"10 - Saarland",null,null,null,null,null,null,null,null,null,null,null,null,null,null,null,null,null,null,null,null,null,null,null,null,"10 - Aube",null,null,null,null,null,null,null,null,null,null,null,null,null,"10 - Evros",null,null,null,null,null,null,null,null,null,null,"J00 - Viroviticko-podravac","10 - Eger",null,"10 - Jambi Jambi","KY - Kerry",null,"10 - Karnataka",null,null,null,null,"BA - Bari",null,null,null,null,null,null,"10 - Gunma",null,null,null,null,null,null,null,null,null,"10 - Kyongsang-bukto",null,null,null,"09 - Karagandinskaia",null,null,null,null,null,null,null,null,null,null,null,null,null,null,null,null,null,null,null,null,null,null,null,null,null,null,null,null,null,null,null,null,"DGO - Durango","PIN - Pulau Pinang",null,null,null,null,null,null,null,null,"10 - Utrecht","10 - Vest-Agder County",null,null,null,null,null,"WAI - Waikato",null,null,null,"10 - Tacna",null,null,null,"PDL - Podlaskie",null,null,null,null,"21 - Baixo Mondego",null,null,null,null,null,null,"10 - Bucuresti",null,null,null,null,null,null,null,null,null,null,null,"10 - Idrija",null,null,null,null,null,null,null,null,null,null,null,null,null,null,null,null,"10 - Chon Buri",null,null,null,null,null,null,null,null,null,null,null,null,null,null,null,null,null,null,null,"CO - Colorado",null,null,null,null,null,"DF - Distrito Federal"]
["AM","Armenia",{"$f":"  A12 & \" - \" & B12","v":"AM - Armenia"},null,null,null,null,null,null,null,null,null,null,null,null,null,null,null,null,null,"10 - San Juan",null,null,null,null,null,null,null,null,null,null,null,null,"11 - Brussels (Capital)",null,null,null,null,null,null,null,null,null,null,null,null,"MG - Minas Gerais",null,null,null,null,null,null,null,null,"QC - Quebec",null,null,null,null,null,null,null,null,null,null,"11 - XI - Coyhaique",null,null,"25 - CUNDINAMARCA",null,null,null,null,null,null,null,null,null,"62 - Jihomoravsky",null,null,"11 - Berlin",null,null,null,null,null,null,null,null,null,null,null,null,null,null,null,null,null,null,null,null,null,null,null,null,"11 - Aude",null,null,null,null,null,null,null,null,null,null,null,null,null,"11 - Evvoia",null,null,null,null,null,null,null,null,null,null,"K00 - Pozesko-slavonska","11 - Fejer",null,"11 - Sumatera Selatan Sou","LF - Longford",null,"11 - Kerala",null,null,null,null,"BG - Bergamo",null,null,null,null,null,null,"11 - Saitama",null,null,null,null,null,null,null,null,null,"11 - Kyongsang-namdo",null,null,null,"10 - Vostochno-Kazakhstan",null,null,null,null,null,null,null,null,null,null,null,null,null,null,null,null,null,null,null,null,null,null,null,null,null,null,null,null,null,null,null,null,"GRO - Guerrero","PSK - Wil. Persekutuan",null,null,null,null,null,null,null,null,"11 - Zeeland","11 - Rogaland County",null,null,null,null,null,"WEC - West Coast",null,null,null,"11 - Amazon",null,null,null,"POM - Pomorskie",null,null,null,null,"22 - Pinhal Litoral",null,null,null,null,null,null,"11 - Buzau",null,null,null,null,null,null,null,null,null,null,null,"11 - Ilirska Bistrica",null,null,null,null,null,null,null,null,null,null,null,null,null,null,null,null,"11 - Chumphon",null,null,null,null,null,null,null,null,null,null,null,null,null,null,null,null,null,null,null,"CT - Connecticut",null,null,null,null,null,"FAL - Falcon"]
["AN","Andorra",{"$f":"  A13 & \" - \" & B13","v":"AN - Andorra"},null,null,null,null,null,null,null,null,null,null,null,null,null,null,null,null,null,"11 - San Luis",null,null,null,null,null,null,null,null,null,null,null,null,null,null,null,null,null,null,null,null,null,null,null,null,null,"MS - Mato Grosso do Sul",null,null,null,null,null,null,null,null,"SK - Saskatchewan",null,null,null,null,null,null,null,null,null,null,"12 - XII - Punta Arenas",null,null,"27 - CHOCO",null,null,null,null,null,null,null,null,null,"71 - Olomoucky",null,null,"12 - Brandenburg",null,null,null,null,null,null,null,null,null,null,null,null,null,null,null,null,null,null,null,null,null,null,null,null,"12 - Aveyron",null,null,null,null,null,null,null,null,null,null,null,null,null,"12 - Florina",null,null,null,null,null,null,null,null,null,null,"L00 - Slavonskobrodska","12 - Gyor",null,"12 - Bengkulu Bengkulu","LI - Limerick",null,"12 - Madhya Pradesh",null,null,null,null,"BI - Biella",null,null,null,null,null,null,"12 - Chiba",null,null,null,null,null,null,null,null,null,"12 - Pusan-jikhalsi",null,null,null,"11 - Gambilskaia",null,null,null,null,null,null,null,null,null,null,null,null,null,null,null,null,null,null,null,null,null,null,null,null,null,null,null,null,null,null,null,null,"GTO - Guanajuato","SAB - Sabah",null,null,null,null,null,null,null,null,"12 - Zuid-Holland","12 - Hordaland County",null,null,null,null,null,"WLG - Wellington",null,null,null,"12 - Cajamarca",null,null,null,"SLS - Slaskie",null,null,null,null,"23 - Pinhal Interior N.",null,null,null,null,null,null,"12 - Calarasi",null,null,null,null,null,null,null,null,null,null,null,"12 - Izola",null,null,null,null,null,null,null,null,null,null,null,null,null,null,null,null,"12 - Kalasin",null,null,null,null,null,null,null,null,null,null,null,null,null,null,null,null,null,null,null,"DC - District of Columbia",null,null,null,null,null,"GUA - Guarico"]
["AO","Angola",{"$f":"  A14 & \" - \" & B14","v":"AO - Angola"},null,null,null,null,null,null,null,null,null,null,null,null,null,null,null,null,null,"12 - Santa Fe",null,null,null,null,null,null,null,null,null,null,null,null,null,null,null,null,null,null,null,null,null,null,null,null,null,"MT - Mato Grosso",null,null,null,null,null,null,null,null,"YT - Yukon Territory",null,null,null,null,null,null,null,null,null,null,"13 - RM - Santiago",null,null,"41 - HUILA",null,null,null,null,null,null,null,null,null,"72 - Zlinsky",null,null,"13 - Mecklenburg-Vorpomm.",null,null,null,null,null,null,null,null,null,null,null,null,null,null,null,null,null,null,null,null,null,null,null,null,"13 - Bouches-du-Rhone",null,null,null,null,null,null,null,null,null,null,null,null,null,"13 - Fokis",null,null,null,null,null,null,null,null,null,null,"M00 - Zadarska","13 - Gyor-Moson-Sopron",null,"13 - Lampung Lampung","LM - Leitrim",null,"13 - Maharashtra",null,null,null,null,"BL - Belluno",null,null,null,null,null,null,"13 - Tokyo",null,null,null,null,null,null,null,null,null,"13 - Soul-t´ukpyolsi",null,null,null,"12 - Kyzilordinskaia",null,null,null,null,null,null,null,null,null,null,null,null,null,null,null,null,null,null,null,null,null,null,null,null,null,null,null,null,null,null,null,null,"HGO - Hidalgo","SAR - Sarawak",null,null,null,null,null,null,null,null,null,"14 - Sogn og Fjordane C.",null,null,null,null,null,null,null,null,null,"13 - San Martin",null,null,null,"SWK - Swietokrzyskie",null,null,null,null,"24 - Pinhal Interior Sul",null,null,null,null,null,null,"13 - Caras-Severin",null,null,null,null,null,null,null,null,null,null,null,"13 - Jesenice",null,null,null,null,null,null,null,null,null,null,null,null,null,null,null,null,"13 - Kamphaeng Phet",null,null,null,null,null,null,null,null,null,null,null,null,null,null,null,null,null,null,null,"DE - Delaware",null,null,null,null,null,"LAR - Lara"]
["AQ","American Samoa",{"$f":"  A15 & \" - \" & B15","v":"AQ - American Samoa"},null,null,null,null,null,null,null,null,null,null,null,null,null,null,null,null,null,"13 - Santiago del Estero",null,null,null,null,null,null,null,null,null,null,null,null,null,null,null,null,null,null,null,null,null,null,null,null,null,"PA - Para",null,null,null,null,null,null,null,null,null,null,null,null,null,null,null,null,null,null,null,null,null,null,"44 - LA GUAJIRA",null,null,null,null,null,null,null,null,null,"81 - Moravskoslezsky",null,null,"14 - Saxony",null,null,null,null,null,null,null,null,null,null,null,null,null,null,null,null,null,null,null,null,null,null,null,null,"14 - Calvados",null,null,null,null,null,null,null,null,null,null,null,null,null,"14 - Fthiotis",null,null,null,null,null,null,null,null,null,null,"N00 - Osjecko-baranjska","14 - Hajdu-Bihar",null,"14 - Kalimantan Selatan S","LS - Laois",null,"14 - Manipur",null,null,null,null,"BN - Benevento",null,null,null,null,null,null,"14 - Kanagawa",null,null,null,null,null,null,null,null,null,"14 - Taegu-jikhalsi",null,null,null,null,null,null,null,null,null,null,null,null,null,null,null,null,null,null,null,null,null,null,null,null,null,null,null,null,null,null,null,null,null,null,null,null,"JAL - Jalisco","SEL - Selangor",null,null,null,null,null,null,null,null,null,"15 - More og Romsdal C.",null,null,null,null,null,null,null,null,null,"14 - Huanuco",null,null,null,"W-M - Warminsko-mazurskie",null,null,null,null,"25 - Dao-Lafoes",null,null,null,null,null,null,"14 - Cluj",null,null,null,null,null,null,null,null,null,null,null,"14 - Kamnik",null,null,null,null,null,null,null,null,null,null,null,null,null,null,null,null,"14 - Kanchanaburi",null,null,null,null,null,null,null,null,null,null,null,null,null,null,null,null,null,null,null,"FL - Florida",null,null,null,null,null,"MER - Merida"]
["AR","Argentina",{"$f":"  A16 & \" - \" & B16","v":"AR - Argentina"},null,null,null,null,null,null,null,null,null,null,null,null,null,null,null,null,null,"14 - Tucuman",null,null,null,null,null,null,null,null,null,null,null,null,null,null,null,null,null,null,null,null,null,null,null,null,null,"PB - Paraiba",null,null,null,null,null,null,null,null,null,null,null,null,null,null,null,null,null,null,null,null,null,null,"47 - MAGDALENA",null,null,null,null,null,null,null,null,null,null,null,null,"15 - Saxony-Anhalt",null,null,null,null,null,null,null,null,null,null,null,null,null,null,null,null,null,null,null,null,null,null,null,null,"15 - Cantal",null,null,null,null,null,null,null,null,null,null,null,null,null,"15 - Grevena",null,null,null,null,null,null,null,null,null,null,"O00 - Sibensko-kninska","15 - Heves",null,"15 - Kalimantan Barat Wes","LT - Louth",null,"15 - Megalaya",null,null,null,null,"BO - Bologna",null,null,null,null,null,null,"15 - Niigata",null,null,null,null,null,null,null,null,null,"15 - Taejon-jikhalsi",null,null,null,null,null,null,null,null,null,null,null,null,null,null,null,null,null,null,null,null,null,null,null,null,null,null,null,null,null,null,null,null,null,null,null,null,"MCH - Michoacan","SER - Negeri Sembilan",null,null,null,null,null,null,null,null,null,"16 - Sor-Trondelag County",null,null,null,null,null,null,null,null,null,"15 - Pasco",null,null,null,"WLK - Wielkopolskie",null,null,null,null,"26 - Serra da Estrela",null,null,null,null,null,null,"15 - Constanta",null,null,null,null,null,null,null,null,null,null,null,"15 - Kocevje",null,null,null,null,null,null,null,null,null,null,null,null,null,null,null,null,"15 - Khon Kaen",null,null,null,null,null,null,null,null,null,null,null,null,null,null,null,null,null,null,null,"GA - Georgia",null,null,null,null,null,"MIR - Miranda"]
["AS","Australia",{"$f":"  A17 & \" - \" & B17","v":"AS - Australia"},null,null,null,null,null,null,null,null,null,null,null,null,null,null,null,null,null,"16 - Chaco",null,null,null,null,null,null,null,null,null,null,null,null,null,null,null,null,null,null,null,null,null,null,null,null,null,"PE - Pernambuco",null,null,null,null,null,null,null,null,null,null,null,null,null,null,null,null,null,null,null,null,null,null,"50 - META",null,null,null,null,null,null,null,null,null,null,null,null,"16 - Thuringia",null,null,null,null,null,null,null,null,null,null,null,null,null,null,null,null,null,null,null,null,null,null,null,null,"16 - Charente",null,null,null,null,null,null,null,null,null,null,null,null,null,"16 - Ilia",null,null,null,null,null,null,null,null,null,null,"P00 - Vukovarsko-srijemska","16 - Hodmezovasarhely",null,"16 - Kalimantan Tengah Ce","MH - Monaghan",null,"16 - Mizoram",null,null,null,null,"BR - Brindisi",null,null,null,null,null,null,"16 - Toyama",null,null,null,null,null,null,null,null,null,null,null,null,null,null,null,null,null,null,null,null,null,null,null,null,null,null,null,null,null,null,null,null,null,null,null,null,null,null,null,null,null,null,null,null,null,null,"MEX - Estado de Mexico","TRE - Trengganu",null,null,null,null,null,null,null,null,null,"17 - Nord-Trondelag Cnty",null,null,null,null,null,null,null,null,null,"16 - Junin",null,null,null,"Z-P - Zachodnio-Pomorskie",null,null,null,null,"27 - Beira Interior Norte",null,null,null,null,null,null,"16 - Covasna",null,null,null,null,null,null,null,null,null,null,null,"16 - Koper",null,null,null,null,null,null,null,null,null,null,null,null,null,null,null,null,"16 - Krabi",null,null,null,null,null,null,null,null,null,null,null,null,null,null,null,null,null,null,null,"GU - Guam",null,null,null,null,null,"MON - Monagas"]
["AT","Ashmore and Car",{"$f":"  A18 & \" - \" & B18","v":"AT - Ashmore and Car"},null,null,null,null,null,null,null,null,null,null,null,null,null,null,null,null,null,"17 - Chubut",null,null,null,null,null,null,null,null,null,null,null,null,null,null,null,null,null,null,null,null,null,null,null,null,null,"PI - Piaui",null,null,null,null,null,null,null,null,null,null,null,null,null,null,null,null,null,null,null,null,null,null,"52 - NARINO",null,null,null,null,null,null,null,null,null,null,null,null,null,null,null,null,null,null,null,null,null,null,null,null,null,null,null,null,null,null,null,null,null,null,null,null,null,"17 - Charente-Maritime",null,null,null,null,null,null,null,null,null,null,null,null,null,"17 - Imathia",null,null,null,null,null,null,null,null,null,null,"R00 - Splitsko-dalmatinska","17 - Jasz-Nagykun-Szolnok",null,"17 - Kalimantan Timur Eas","MT - Meath",null,"17 - Nagaland",null,null,null,null,"BS - Brescia",null,null,null,null,null,null,"17 - Ishikawa",null,null,null,null,null,null,null,null,null,null,null,null,null,null,null,null,null,null,null,null,null,null,null,null,null,null,null,null,null,null,null,null,null,null,null,null,null,null,null,null,null,null,null,null,null,null,"MOR - Morelos",null,null,null,null,null,null,null,null,null,null,"18 - Nordland County",null,null,null,null,null,null,null,null,null,"17 - Huancavelica",null,null,null,null,null,null,null,null,"28 - Beira Interior Sul",null,null,null,null,null,null,"17 - Dimbovita",null,null,null,null,null,null,null,null,null,null,null,"17 - Kranj",null,null,null,null,null,null,null,null,null,null,null,null,null,null,null,null,"17 - Krung Thep",null,null,null,null,null,null,null,null,null,null,null,null,null,null,null,null,null,null,null,"HI - Hawaii",null,null,null,null,null,"NE - Nueva Esparta"]
["AU","Austria",{"$f":"  A19 & \" - \" & B19","v":"AU - Austria"},null,null,null,null,null,null,null,null,null,null,null,null,null,null,null,null,null,"18 - Formosa",null,null,null,null,null,null,null,null,null,null,null,null,null,null,null,null,null,null,null,null,null,null,null,null,null,"PR - Parana",null,null,null,null,null,null,null,null,null,null,null,null,null,null,null,null,null,null,null,null,null,null,"54 - NORTE SANTANDER",null,null,null,null,null,null,null,null,null,null,null,null,null,null,null,null,null,null,null,null,null,null,null,null,null,null,null,null,null,null,null,null,null,null,null,null,null,"18 - Cher",null,null,null,null,null,null,null,null,null,null,null,null,null,"18 - Ioannina",null,null,null,null,null,null,null,null,null,null,"S00 - Istarska","18 - Kaposvar",null,"18 - Sulawesi Selatan Sou","MY - Mayo",null,"18 - Orissa",null,null,null,null,"BZ - Bolzano",null,null,null,null,null,null,"18 - Fukui",null,null,null,null,null,null,null,null,null,null,null,null,null,null,null,null,null,null,null,null,null,null,null,null,null,null,null,null,null,null,null,null,null,null,null,null,null,null,null,null,null,null,null,null,null,null,"NAY - Nayarit",null,null,null,null,null,null,null,null,null,null,"19 - Troms County",null,null,null,null,null,null,null,null,null,"18 - Ayacucho",null,null,null,null,null,null,null,null,"29 - Cova da Beira",null,null,null,null,null,null,"18 - Dolj",null,null,null,null,null,null,null,null,null,null,null,"18 - Krsko",null,null,null,null,null,null,null,null,null,null,null,null,null,null,null,null,"18 - Mahanakhon",null,null,null,null,null,null,null,null,null,null,null,null,null,null,null,null,null,null,null,"IA - Iowa",null,null,null,null,null,"POR - Portuguesa"]
["AV","Anguilla",{"$f":"  A20 & \" - \" & B20","v":"AV - Anguilla"},null,null,null,null,null,null,null,null,null,null,null,null,null,null,null,null,null,"19 - Misiones",null,null,null,null,null,null,null,null,null,null,null,null,null,null,null,null,null,null,null,null,null,null,null,null,null,"RJ - Rio de Janeiro",null,null,null,null,null,null,null,null,null,null,null,null,null,null,null,null,null,null,null,null,null,null,"63 - QUINDIO",null,null,null,null,null,null,null,null,null,null,null,null,null,null,null,null,null,null,null,null,null,null,null,null,null,null,null,null,null,null,null,null,null,null,null,null,null,"19 - Correze",null,null,null,null,null,null,null,null,null,null,null,null,null,"19 - Iraklion",null,null,null,null,null,null,null,null,null,null,"T00 - Dubrovacko-neretvans","19 - Kecskemet",null,"19 - Sulawesi Tenggara So","OF - Offaly",null,"19 - Punjab",null,null,null,null,"CA - Cagliari",null,null,null,null,null,null,"19 - Yamanashi",null,null,null,null,null,null,null,null,null,null,null,null,null,null,null,null,null,null,null,null,null,null,null,null,null,null,null,null,null,null,null,null,null,null,null,null,null,null,null,null,null,null,null,null,null,null,"NL - Nuevo Leon",null,null,null,null,null,null,null,null,null,null,"20 - Finnmark County",null,null,null,null,null,null,null,null,null,"19 - Apurimac",null,null,null,null,null,null,null,null,"30 - Oeste",null,null,null,null,null,null,"19 - Galati",null,null,null,null,null,null,null,null,null,null,null,"19 - Lenart",null,null,null,null,null,null,null,null,null,null,null,null,null,null,null,null,"19 - Lampang",null,null,null,null,null,null,null,null,null,null,null,null,null,null,null,null,null,null,null,"ID - Idaho",null,null,null,null,null,"SUC - Sucre"]
["AW","Aruba",{"$f":"  A21 & \" - \" & B21","v":"AW - Aruba"},null,null,null,null,null,null,null,null,null,null,null,null,null,null,null,null,null,"20 - Neuquen",null,null,null,null,null,null,null,null,null,null,null,null,null,null,null,null,null,null,null,null,null,null,null,null,null,"RN - Rio Grande do Norte",null,null,null,null,null,null,null,null,null,null,null,null,null,null,null,null,null,null,null,null,null,null,"66 - RISARALDA",null,null,null,null,null,null,null,null,null,null,null,null,null,null,null,null,null,null,null,null,null,null,null,null,null,null,null,null,null,null,null,null,null,null,null,null,null,"21 - Cote-d'Or",null,null,null,null,null,null,null,null,null,null,null,null,null,"20 - Kardhitsa",null,null,null,null,null,null,null,null,null,null,"U00 - Medjimurska","20 - Komarom-Esztergom",null,"20 - Sulawesi Tengah Cent","RC - Rosscommon",null,"20 - Rajasthan",null,null,null,null,"CB - Campobasso",null,null,null,null,null,null,"20 - Nagano",null,null,null,null,null,null,null,null,null,null,null,null,null,null,null,null,null,null,null,null,null,null,null,null,null,null,null,null,null,null,null,null,null,null,null,null,null,null,null,null,null,null,null,null,null,null,"OAX - Oaxaca",null,null,null,null,null,null,null,null,null,null,null,null,null,null,null,null,null,null,null,null,"20 - Cuzco",null,null,null,null,null,null,null,null,"31 - Grande Lisboa",null,null,null,null,null,null,"20 - Gorj",null,null,null,null,null,null,null,null,null,null,null,"20 - Lendava",null,null,null,null,null,null,null,null,null,null,null,null,null,null,null,null,"20 - Lamphun",null,null,null,null,null,null,null,null,null,null,null,null,null,null,null,null,null,null,null,"IL - Illinois",null,null,null,null,null,"TAC - Tachira"]
["AX","Aland Islands",{"$f":"  A22 & \" - \" & B22","v":"AX - Aland Islands"},null,null,null,null,null,null,null,null,null,null,null,null,null,null,null,null,null,"21 - La Pampa",null,null,null,null,null,null,null,null,null,null,null,null,null,null,null,null,null,null,null,null,null,null,null,null,null,"RO - Rondonia",null,null,null,null,null,null,null,null,null,null,null,null,null,null,null,null,null,null,null,null,null,null,"68 - SANTANDER",null,null,null,null,null,null,null,null,null,null,null,null,null,null,null,null,null,null,null,null,null,null,null,null,null,null,null,null,null,null,null,null,null,null,null,null,null,"22 - Cotes-d'Armor",null,null,null,null,null,null,null,null,null,null,null,null,null,"21 - Kastoria",null,null,null,null,null,null,null,null,null,null,"V00 - Zagreb","21 - Miskolc",null,"21 - Sulawesi Utara North","SG - Sligo",null,"21 - Sikkim",null,null,null,null,"CE - Caserta",null,null,null,null,null,null,"21 - Gifu",null,null,null,null,null,null,null,null,null,null,null,null,null,null,null,null,null,null,null,null,null,null,null,null,null,null,null,null,null,null,null,null,null,null,null,null,null,null,null,null,null,null,null,null,null,null,"PUE - Puebla",null,null,null,null,null,null,null,null,null,null,null,null,null,null,null,null,null,null,null,null,"21 - Puno",null,null,null,null,null,null,null,null,"32 - Peninsula de Setubal",null,null,null,null,null,null,"21 - Giurgiu",null,null,null,null,null,null,null,null,null,null,null,"21 - Litija",null,null,null,null,null,null,null,null,null,null,null,null,null,null,null,null,"21 - Loei",null,null,null,null,null,null,null,null,null,null,null,null,null,null,null,null,null,null,null,"IN - Indiana",null,null,null,null,null,"TRU - Trujillo"]
["AY","Antarctica",{"$f":"  A23 & \" - \" & B23","v":"AY - Antarctica"},null,null,null,null,null,null,null,null,null,null,null,null,null,null,null,null,null,"22 - Rio Negro",null,null,null,null,null,null,null,null,null,null,null,null,null,null,null,null,null,null,null,null,null,null,null,null,null,"RR - Roraima",null,null,null,null,null,null,null,null,null,null,null,null,null,null,null,null,null,null,null,null,null,null,"70 - SUCRE",null,null,null,null,null,null,null,null,null,null,null,null,null,null,null,null,null,null,null,null,null,null,null,null,null,null,null,null,null,null,null,null,null,null,null,null,null,"23 - Creuse",null,null,null,null,null,null,null,null,null,null,null,null,null,"22 - Kavala",null,null,null,null,null,null,null,null,null,null,null,"22 - Nagykanizsa",null,"22 - Bali Bali","TP - Tipperary",null,"22 - Tamil Nadu",null,null,null,null,"CH - Chieti",null,null,null,null,null,null,"22 - Shizuoka",null,null,null,null,null,null,null,null,null,null,null,null,null,null,null,null,null,null,null,null,null,null,null,null,null,null,null,null,null,null,null,null,null,null,null,null,null,null,null,null,null,null,null,null,null,null,"QR - Quintana Roo",null,null,null,null,null,null,null,null,null,null,null,null,null,null,null,null,null,null,null,null,"22 - Loreto",null,null,null,null,null,null,null,null,"33 - Medio Tejo",null,null,null,null,null,null,"22 - Harghita",null,null,null,null,null,null,null,null,null,null,null,"22 - Ljubljana-Bezigrad",null,null,null,null,null,null,null,null,null,null,null,null,null,null,null,null,"22 - Lop Buri",null,null,null,null,null,null,null,null,null,null,null,null,null,null,null,null,null,null,null,"KS - Kansas",null,null,null,null,null,"VAR - Vargas"]
["AZ","Azerbaijan",{"$f":"  A24 & \" - \" & B24","v":"AZ - Azerbaijan"},null,null,null,null,null,null,null,null,null,null,null,null,null,null,null,null,null,"23 - Santa Cruz",null,null,null,null,null,null,null,null,null,null,null,null,null,null,null,null,null,null,null,null,null,null,null,null,null,"RS - Rio Grande do Sul",null,null,null,null,null,null,null,null,null,null,null,null,null,null,null,null,null,null,null,null,null,null,"73 - TOLIMA",null,null,null,null,null,null,null,null,null,null,null,null,null,null,null,null,null,null,null,null,null,null,null,null,null,null,null,null,null,null,null,null,null,null,null,null,null,"24 - Dordogne",null,null,null,null,null,null,null,null,null,null,null,null,null,"23 - Kefallinia",null,null,null,null,null,null,null,null,null,null,null,"23 - Nograd",null,"23 - Nusa Tenggara Barat","WF - Waterford",null,"23 - Tripura",null,null,null,null,"CL - Caltanisetta",null,null,null,null,null,null,"23 - Aichi",null,null,null,null,null,null,null,null,null,null,null,null,null,null,null,null,null,null,null,null,null,null,null,null,null,null,null,null,null,null,null,null,null,null,null,null,null,null,null,null,null,null,null,null,null,null,"QRO - Queretaro",null,null,null,null,null,null,null,null,null,null,null,null,null,null,null,null,null,null,null,null,"23 - Ucayali",null,null,null,null,null,null,null,null,"34 - Leziria do Tejo",null,null,null,null,null,null,"23 - Hunedoara",null,null,null,null,null,null,null,null,null,null,null,"23 - Ljubljana-Center",null,null,null,null,null,null,null,null,null,null,null,null,null,null,null,null,"23 - Mae Hong Son",null,null,null,null,null,null,null,null,null,null,null,null,null,null,null,null,null,null,null,"KY - Kentucky",null,null,null,null,null,"YAR - Yaracuy"]
["BA","Bahrain",{"$f":"  A25 & \" - \" & B25","v":"BA - Bahrain"},null,null,null,null,null,null,null,null,null,null,null,null,null,null,null,null,null,"24 - Tierra de Fuego",null,null,null,null,null,null,null,null,null,null,null,null,null,null,null,null,null,null,null,null,null,null,null,null,null,"SC - Santa Catarina",null,null,null,null,null,null,null,null,null,null,null,null,null,null,null,null,null,null,null,null,null,null,"76 - VALLE",null,null,null,null,null,null,null,null,null,null,null,null,null,null,null,null,null,null,null,null,null,null,null,null,null,null,null,null,null,null,null,null,null,null,null,null,null,"25 - Doubs",null,null,null,null,null,null,null,null,null,null,null,null,null,"24 - Kerkira",null,null,null,null,null,null,null,null,null,null,null,"24 - Nyiregyhaza",null,"24 - Nusa Tenggara Timur","WK - Wicklow",null,"24 - Uttar Pradesh",null,null,null,null,"CN - Cuneo",null,null,null,null,null,null,"24 - Mie",null,null,null,null,null,null,null,null,null,null,null,null,null,null,null,null,null,null,null,null,null,null,null,null,null,null,null,null,null,null,null,null,null,null,null,null,null,null,null,null,null,null,null,null,null,null,"SIN - Sinaloa",null,null,null,null,null,null,null,null,null,null,null,null,null,null,null,null,null,null,null,null,"24 - Madre de Dios",null,null,null,null,null,null,null,null,"40 - Alentejo Litoral",null,null,null,null,null,null,"24 - Ialomita",null,null,null,null,null,null,null,null,null,null,null,"24 - Ljubljana-Moste-Polj",null,null,null,null,null,null,null,null,null,null,null,null,null,null,null,null,"24 - Maha Sarakham",null,null,null,null,null,null,null,null,null,null,null,null,null,null,null,null,null,null,null,"LA - Louisiana",null,null,null,null,null,"ZUL - Zulia"]
["BB","Barbados",{"$f":"  A26 & \" - \" & B26","v":"BB - Barbados"},null,null,null,null,null,null,null,null,null,null,null,null,null,null,null,null,null,null,null,null,null,null,null,null,null,null,null,null,null,null,null,null,null,null,null,null,null,null,null,null,null,null,null,"SE - Sergipe",null,null,null,null,null,null,null,null,null,null,null,null,null,null,null,null,null,null,null,null,null,null,"81 - ARAUCA",null,null,null,null,null,null,null,null,null,null,null,null,null,null,null,null,null,null,null,null,null,null,null,null,null,null,null,null,null,null,null,null,null,null,null,null,null,"26 - Drome",null,null,null,null,null,null,null,null,null,null,null,null,null,"25 - Khalkidhiki",null,null,null,null,null,null,null,null,null,null,null,"25 - Pecs",null,"25 - Maluku Maluku","WM - Westmeath",null,"25 - West Bengal",null,null,null,null,"CO - Como",null,null,null,null,null,null,"25 - Shiga",null,null,null,null,null,null,null,null,null,null,null,null,null,null,null,null,null,null,null,null,null,null,null,null,null,null,null,null,null,null,null,null,null,null,null,null,null,null,null,null,null,null,null,null,null,null,"SLP - San Luis Potosi",null,null,null,null,null,null,null,null,null,null,null,null,null,null,null,null,null,null,null,null,null,null,null,null,null,null,null,null,null,"41 - Alto Alentejo",null,null,null,null,null,null,"25 - Iasi",null,null,null,null,null,null,null,null,null,null,null,"25 - Ljubljana-Siska",null,null,null,null,null,null,null,null,null,null,null,null,null,null,null,null,"25 - Mukdahan",null,null,null,null,null,null,null,null,null,null,null,null,null,null,null,null,null,null,null,"MA - Massachusetts"]
["BC","Botswana",{"$f":"  A27 & \" - \" & B27","v":"BC - Botswana"},null,null,null,null,null,null,null,null,null,null,null,null,null,null,null,null,null,null,null,null,null,null,null,null,null,null,null,null,null,null,null,null,null,null,null,null,null,null,null,null,null,null,null,"SP - Sao Paulo",null,null,null,null,null,null,null,null,null,null,null,null,null,null,null,null,null,null,null,null,null,null,"85 - CASANARE",null,null,null,null,null,null,null,null,null,null,null,null,null,null,null,null,null,null,null,null,null,null,null,null,null,null,null,null,null,null,null,null,null,null,null,null,null,"27 - Eure",null,null,null,null,null,null,null,null,null,null,null,null,null,"26 - Khania",null,null,null,null,null,null,null,null,null,null,null,"26 - Pest",null,"26 - Irian Jaya Irian Jay","WX - Wexford",null,"26 - Andaman und Nico.In.",null,null,null,null,"CR - Cremona",null,null,null,null,null,null,"26 - Kyoto",null,null,null,null,null,null,null,null,null,null,null,null,null,null,null,null,null,null,null,null,null,null,null,null,null,null,null,null,null,null,null,null,null,null,null,null,null,null,null,null,null,null,null,null,null,null,"SON - Sonora",null,null,null,null,null,null,null,null,null,null,null,null,null,null,null,null,null,null,null,null,null,null,null,null,null,null,null,null,null,"42 - Alentejo Central",null,null,null,null,null,null,"26 - Maramures",null,null,null,null,null,null,null,null,null,null,null,"26 - Ljubljana-Vic-Rudnik",null,null,null,null,null,null,null,null,null,null,null,null,null,null,null,null,"26 - Nakhon Nayok",null,null,null,null,null,null,null,null,null,null,null,null,null,null,null,null,null,null,null,"MD - Maryland"]
["BD","Bermuda",{"$f":"  A28 & \" - \" & B28","v":"BD - Bermuda"},null,null,null,null,null,null,null,null,null,"",null,null,null,null,null,null,null,null,null,null,null,null,null,null,null,null,null,null,null,null,null,null,null,null,null,null,null,null,null,null,null,null,null,"TO - Tocantins",null,null,null,null,null,null,null,null,null,null,null,null,null,null,null,null,null,null,null,null,null,null,"86 - PUTUMAYO",null,null,null,null,null,null,null,null,null,null,null,null,null,null,null,null,null,null,null,null,null,null,null,null,null,null,null,null,null,null,null,null,null,null,null,null,null,"28 - Eure-et-Loir",null,null,null,null,null,null,null,null,null,null,null,null,null,"27 - Khios",null,null,null,null,null,null,null,null,null,null,null,"27 - Somogy",null,"27 - Timor Timur East Tim",null,null,"27 - Chandigarh",null,null,null,null,"CS - Cosenza",null,null,null,null,null,null,"27 - Osaka",null,null,null,null,null,null,null,null,null,null,null,null,null,null,null,null,null,null,null,null,null,null,null,null,null,null,null,null,null,null,null,null,null,null,null,null,null,null,null,null,null,null,null,null,null,null,"TAB - Tabasco",null,null,null,null,null,null,null,null,null,null,null,null,null,null,null,null,null,null,null,null,null,null,null,null,null,null,null,null,null,"43 - Baixo Alentejo",null,null,null,null,null,null,"27 - Mehedinti",null,null,null,null,null,null,null,null,null,null,null,"27 - Ljutomer",null,null,null,null,null,null,null,null,null,null,null,null,null,null,null,null,"27 - Nakhon Pathom",null,null,null,null,null,null,null,null,null,null,null,null,null,null,null,null,null,null,null,"ME - Maine"]
["BE","Belgium",{"$f":"  A29 & \" - \" & B29","v":"BE - Belgium"},null,null,null,null,null,null,null,null,null,null,null,null,null,null,null,null,null,null,null,null,null,null,null,null,null,null,null,null,null,null,null,null,null,null,null,null,null,null,null,null,null,null,null,null,null,null,null,null,null,null,null,null,null,null,null,null,null,null,null,null,null,null,null,null,null,null,"88 - SAN ANDRES",null,null,null,null,null,null,null,null,null,null,null,null,null,null,null,null,null,null,null,null,null,null,null,null,null,null,null,null,null,null,null,null,null,null,null,null,null,"29 - Finistere",null,null,null,null,null,null,null,null,null,null,null,null,null,"28 - Kikladhes",null,null,null,null,null,null,null,null,null,null,null,"28 - Sopron",null,null,null,null,"28 - Dadra und Nagar Hav.",null,null,null,null,"CT - Catania",null,null,null,null,null,null,"28 - Hyogo",null,null,null,null,null,null,null,null,null,null,null,null,null,null,null,null,null,null,null,null,null,null,null,null,null,null,null,null,null,null,null,null,null,null,null,null,null,null,null,null,null,null,null,null,null,null,"TLX - Tlaxcala",null,null,null,null,null,null,null,null,null,null,null,null,null,null,null,null,null,null,null,null,null,null,null,null,null,null,null,null,null,"50 - Algarve",null,null,null,null,null,null,"28 - Mures",null,null,null,null,null,null,null,null,null,null,null,"28 - Logatec",null,null,null,null,null,null,null,null,null,null,null,null,null,null,null,null,"28 - Nakhon Phanom",null,null,null,null,null,null,null,null,null,null,null,null,null,null,null,null,null,null,null,"MN - Minnesota"]
["BF","Bahamas",{"$f":"  A30 & \" - \" & B30","v":"BF - Bahamas"},null,null,null,null,null,null,null,null,null,null,null,null,null,null,null,null,null,null,null,null,null,null,null,null,null,null,null,null,null,null,null,null,null,null,null,null,null,null,null,null,null,null,null,null,null,null,null,null,null,null,null,null,null,null,null,null,null,null,null,null,null,null,null,null,null,null,"91 - AMAZONAS",null,null,null,null,null,null,null,null,null,null,null,null,null,null,null,null,null,null,null,null,null,null,null,null,null,null,null,null,null,null,null,null,null,null,null,null,null,"2A - Corse-du-Sud",null,null,null,null,null,null,null,null,null,null,null,null,null,"29 - Kilkis",null,null,null,null,null,null,null,null,null,null,null,"29 - Szabolcs-Szat.-Bereg",null,null,null,null,"29 - Daman und Diu",null,null,null,null,"CZ - Catanzaro",null,null,null,null,null,null,"29 - Nara",null,null,null,null,null,null,null,null,null,null,null,null,null,null,null,null,null,null,null,null,null,null,null,null,null,null,null,null,null,null,null,null,null,null,null,null,null,null,null,null,null,null,null,null,null,null,"TMS - Tamaulipas",null,null,null,null,null,null,null,null,null,null,null,null,null,null,null,null,null,null,null,null,null,null,null,null,null,null,null,null,null,"60 - Reg. Aut. dos Açores",null,null,null,null,null,null,"29 - Neamt",null,null,null,null,null,null,null,null,null,null,null,"29 - Maribor",null,null,null,null,null,null,null,null,null,null,null,null,null,null,null,null,"29 - Nakhon Ratchasima",null,null,null,null,null,null,null,null,null,null,null,null,null,null,null,null,null,null,null,"MO - Missouri"]
["BG","Bangladesh",{"$f":"  A31 & \" - \" & B31","v":"BG - Bangladesh"},null,null,null,null,null,null,null,null,null,null,null,null,null,null,null,null,null,null,null,null,null,null,null,null,null,null,null,null,null,null,null,null,null,null,null,null,null,null,null,null,null,null,null,null,null,null,null,null,null,null,null,null,null,null,null,null,null,null,null,null,null,null,null,null,null,null,"94 - GUAINIA",null,null,null,null,null,null,null,null,null,null,null,null,null,null,null,null,null,null,null,null,null,null,null,null,null,null,null,null,null,null,null,null,null,null,null,null,null,"2B - Corse-du-Nord",null,null,null,null,null,null,null,null,null,null,null,null,null,"30 - Korinthia",null,null,null,null,null,null,null,null,null,null,null,"30 - Szeged",null,null,null,null,"30 - Delhi",null,null,null,null,"EN - Enna",null,null,null,null,null,null,"30 - Wakayama",null,null,null,null,null,null,null,null,null,null,null,null,null,null,null,null,null,null,null,null,null,null,null,null,null,null,null,null,null,null,null,null,null,null,null,null,null,null,null,null,null,null,null,null,null,null,"VER - Veracruz",null,null,null,null,null,null,null,null,null,null,null,null,null,null,null,null,null,null,null,null,null,null,null,null,null,null,null,null,null,"70 - Reg. Aut. da Madeira",null,null,null,null,null,null,"30 - Olt",null,null,null,null,null,null,null,null,null,null,null,"30 - Metlika",null,null,null,null,null,null,null,null,null,null,null,null,null,null,null,null,"30 - Nakhon Sawan",null,null,null,null,null,null,null,null,null,null,null,null,null,null,null,null,null,null,null,"MP - Northern Mariana Isl"]
["BH","Belize",{"$f":"  A32 & \" - \" & B32","v":"BH - Belize"},null,null,null,null,null,null,null,null,null,null,null,null,null,null,null,null,null,null,null,null,null,null,null,null,null,null,null,null,null,null,null,null,null,null,null,null,null,null,null,null,null,null,null,null,null,null,null,null,null,null,null,null,null,null,null,null,null,null,null,null,null,null,null,null,null,null,"95 - GUAVIARE",null,null,null,null,null,null,null,null,null,null,null,null,null,null,null,null,null,null,null,null,null,null,null,null,null,null,null,null,null,null,null,null,null,null,null,null,null,"30 - Gard",null,null,null,null,null,null,null,null,null,null,null,null,null,"31 - Kozani",null,null,null,null,null,null,null,null,null,null,null,"31 - Szekesfehervar",null,null,null,null,"31 - Lakshadweep",null,null,null,null,"FC - Forli/Cesana",null,null,null,null,null,null,"31 - Tottori",null,null,null,null,null,null,null,null,null,null,null,null,null,null,null,null,null,null,null,null,null,null,null,null,null,null,null,null,null,null,null,null,null,null,null,null,null,null,null,null,null,null,null,null,null,null,"YUC - Yucatan",null,null,null,null,null,null,null,null,null,null,null,null,null,null,null,null,null,null,null,null,null,null,null,null,null,null,null,null,null,null,null,null,null,null,null,null,"31 - Prahova",null,null,null,null,null,null,null,null,null,null,null,"31 - Mozirje",null,null,null,null,null,null,null,null,null,null,null,null,null,null,null,null,"31 - Nakhon Si Thammarat",null,null,null,null,null,null,null,null,null,null,null,null,null,null,null,null,null,null,null,"MS - Mississippi"]
["BI","Burundi",{"$f":"  A33 & \" - \" & B33","v":"BI - Burundi"},null,null,null,null,null,null,null,null,null,null,null,null,null,null,null,null,null,null,null,null,null,null,null,null,null,null,null,null,null,null,null,null,null,null,null,null,null,null,null,null,null,null,null,null,null,null,null,null,null,null,null,null,null,null,null,null,null,null,null,null,null,null,null,null,null,null,"97 - VAUPES",null,null,null,null,null,null,null,null,null,null,null,null,null,null,null,null,null,null,null,null,null,null,null,null,null,null,null,null,null,null,null,null,null,null,null,null,null,"31 - Garonne (Haute)",null,null,null,null,null,null,null,null,null,null,null,null,null,"32 - Lakonia",null,null,null,null,null,null,null,null,null,null,null,"32 - Szolnok",null,null,null,null,"32 - Pondicherry",null,null,null,null,"FE - Ferrara",null,null,null,null,null,null,"32 - Shimane",null,null,null,null,null,null,null,null,null,null,null,null,null,null,null,null,null,null,null,null,null,null,null,null,null,null,null,null,null,null,null,null,null,null,null,null,null,null,null,null,null,null,null,null,null,null,"ZAC - Zacatecas",null,null,null,null,null,null,null,null,null,null,null,null,null,null,null,null,null,null,null,null,null,null,null,null,null,null,null,null,null,null,null,null,null,null,null,null,"32 - Salaj",null,null,null,null,null,null,null,null,null,null,null,"32 - Murska Sobota",null,null,null,null,null,null,null,null,null,null,null,null,null,null,null,null,"32 - Nan",null,null,null,null,null,null,null,null,null,null,null,null,null,null,null,null,null,null,null,"MT - Montana"]
["BJ","Benin",{"$f":"  A34 & \" - \" & B34","v":"BJ - Benin"},null,null,null,null,null,null,null,null,null,null,null,null,null,null,null,null,null,null,null,null,null,null,null,null,null,null,null,null,null,null,null,null,null,null,null,null,null,null,null,null,null,null,null,null,null,null,null,null,null,null,null,null,null,null,null,null,null,null,null,null,null,null,null,null,null,null,"99 - VICHADA",null,null,null,null,null,null,null,null,null,null,null,null,null,null,null,null,null,null,null,null,null,null,null,null,null,null,null,null,null,null,null,null,null,null,null,null,null,"32 - Gers",null,null,null,null,null,null,null,null,null,null,null,null,null,"33 - Larisa",null,null,null,null,null,null,null,null,null,null,null,"33 - Szombathely",null,null,null,null,"33 - Chhaattisgarh",null,null,null,null,"FG - Foggia",null,null,null,null,null,null,"33 - Okayama",null,null,null,null,null,null,null,null,null,null,null,null,null,null,null,null,null,null,null,null,null,null,null,null,null,null,null,null,null,null,null,null,null,null,null,null,null,null,null,null,null,null,null,null,null,null,null,null,null,null,null,null,null,null,null,null,null,null,null,null,null,null,null,null,null,null,null,null,null,null,null,null,null,null,null,null,null,null,null,null,null,null,null,"33 - Satu Mare",null,null,null,null,null,null,null,null,null,null,null,"33 - Nova Gorica",null,null,null,null,null,null,null,null,null,null,null,null,null,null,null,null,"33 - Narathiwat",null,null,null,null,null,null,null,null,null,null,null,null,null,null,null,null,null,null,null,"NC - North Carolina"]
["BK","Bosnia-Herzegov",{"$f":"  A35 & \" - \" & B35","v":"BK - Bosnia-Herzegov"},null,null,null,null,null,null,null,null,null,null,null,null,null,null,null,null,null,null,null,null,null,null,null,null,null,null,null,null,null,null,null,null,null,null,null,null,null,null,null,null,null,null,null,null,null,null,null,null,null,null,null,null,null,null,null,null,null,null,null,null,null,null,null,null,null,null,null,null,null,null,null,null,null,null,null,null,null,null,null,null,null,null,null,null,null,null,null,null,null,null,null,null,null,null,null,null,null,null,null,null,null,null,null,null,"33 - Gironde",null,null,null,null,null,null,null,null,null,null,null,null,null,"34 - Lasithi",null,null,null,null,null,null,null,null,null,null,null,"34 - Tatabanya",null,null,null,null,"34 - Jharkhand",null,null,null,null,"FI - Florence",null,null,null,null,null,null,"34 - Hiroshima",null,null,null,null,null,null,null,null,null,null,null,null,null,null,null,null,null,null,null,null,null,null,null,null,null,null,null,null,null,null,null,null,null,null,null,null,null,null,null,null,null,null,null,null,null,null,null,null,null,null,null,null,null,null,null,null,null,null,null,null,null,null,null,null,null,null,null,null,null,null,null,null,null,null,null,null,null,null,null,null,null,null,null,"34 - Sibiu",null,null,null,null,null,null,null,null,null,null,null,"34 - Novo Mesto",null,null,null,null,null,null,null,null,null,null,null,null,null,null,null,null,"34 - Nong Bua Lamphu",null,null,null,null,null,null,null,null,null,null,null,null,null,null,null,null,null,null,null,"ND - North Dakota"]
["BL","Saint Barthelem",{"$f":"  A36 & \" - \" & B36","v":"BL - Saint Barthelem"},null,null,null,null,null,null,null,null,null,null,null,null,null,null,null,null,null,null,null,null,null,null,null,null,null,null,null,null,null,null,null,null,null,null,null,null,null,null,null,null,null,null,null,null,null,null,null,null,null,null,null,null,null,null,null,null,null,null,null,null,null,null,null,null,null,null,null,null,null,null,null,null,null,null,null,null,null,null,null,null,null,null,null,null,null,null,null,null,null,null,null,null,null,null,null,null,null,null,null,null,null,null,null,null,"34 - Herault",null,null,null,null,null,null,null,null,null,null,null,null,null,"35 - Lesvos",null,null,null,null,null,null,null,null,null,null,null,"35 - Tolna",null,null,null,null,"35 - Uttaranchal",null,null,null,null,"FR - Frosinone",null,null,null,null,null,null,"35 - Yamaguchi",null,null,null,null,null,null,null,null,null,null,null,null,null,null,null,null,null,null,null,null,null,null,null,null,null,null,null,null,null,null,null,null,null,null,null,null,null,null,null,null,null,null,null,null,null,null,null,null,null,null,null,null,null,null,null,null,null,null,null,null,null,null,null,null,null,null,null,null,null,null,null,null,null,null,null,null,null,null,null,null,null,null,null,"35 - Suceava",null,null,null,null,null,null,null,null,null,null,null,"35 - Ormoz",null,null,null,null,null,null,null,null,null,null,null,null,null,null,null,null,"35 - Nong Khai",null,null,null,null,null,null,null,null,null,null,null,null,null,null,null,null,null,null,null,"NE - Nebraska"]
["BM","Burma",{"$f":"  A37 & \" - \" & B37","v":"BM - Burma"},null,null,null,null,null,null,null,null,null,null,null,null,null,null,null,null,null,null,null,null,null,null,null,null,null,null,null,null,null,null,null,null,null,null,null,null,null,null,null,null,null,null,null,null,null,null,null,null,null,null,null,null,null,null,null,null,null,null,null,null,null,null,null,null,null,null,null,null,null,null,null,null,null,null,null,null,null,null,null,null,null,null,null,null,null,null,null,null,null,null,null,null,null,null,null,null,null,null,null,null,null,null,null,null,"35 - Ille-et-Vilaine",null,null,null,null,null,null,null,null,null,null,null,null,null,"36 - Levkas",null,null,null,null,null,null,null,null,null,null,null,"36 - Vas",null,null,null,null,null,null,null,null,null,"GE - Genova",null,null,null,null,null,null,"36 - Tokushima",null,null,null,null,null,null,null,null,null,null,null,null,null,null,null,null,null,null,null,null,null,null,null,null,null,null,null,null,null,null,null,null,null,null,null,null,null,null,null,null,null,null,null,null,null,null,null,null,null,null,null,null,null,null,null,null,null,null,null,null,null,null,null,null,null,null,null,null,null,null,null,null,null,null,null,null,null,null,null,null,null,null,null,"36 - Teleorman",null,null,null,null,null,null,null,null,null,null,null,"36 - Pesnica",null,null,null,null,null,null,null,null,null,null,null,null,null,null,null,null,"36 - Nonthaburi",null,null,null,null,null,null,null,null,null,null,null,null,null,null,null,null,null,null,null,"NH - New Hampshire"]
["BN","Benin",{"$f":"  A38 & \" - \" & B38","v":"BN - Benin"},null,null,null,null,null,null,null,null,null,null,null,null,null,null,null,null,null,null,null,null,null,null,null,null,null,null,null,null,null,null,null,null,null,null,null,null,null,null,null,null,null,null,null,null,null,null,null,null,null,null,null,null,null,null,null,null,null,null,null,null,null,null,null,null,null,null,null,null,null,null,null,null,null,null,null,null,null,null,null,null,null,null,null,null,null,null,null,null,null,null,null,null,null,null,null,null,null,null,null,null,null,null,null,null,"36 - Indre",null,null,null,null,null,null,null,null,null,null,null,null,null,"37 - Magnisia",null,null,null,null,null,null,null,null,null,null,null,"37 - Veszprem",null,null,null,null,null,null,null,null,null,"GO - Gorizia",null,null,null,null,null,null,"37 - Kagawa",null,null,null,null,null,null,null,null,null,null,null,null,null,null,null,null,null,null,null,null,null,null,null,null,null,null,null,null,null,null,null,null,null,null,null,null,null,null,null,null,null,null,null,null,null,null,null,null,null,null,null,null,null,null,null,null,null,null,null,null,null,null,null,null,null,null,null,null,null,null,null,null,null,null,null,null,null,null,null,null,null,null,null,"37 - Timis",null,null,null,null,null,null,null,null,null,null,null,"37 - Piran",null,null,null,null,null,null,null,null,null,null,null,null,null,null,null,null,"37 - Pathum Thani",null,null,null,null,null,null,null,null,null,null,null,null,null,null,null,null,null,null,null,"NJ - New Jersey"]
["BO","Belarus",{"$f":"  A39 & \" - \" & B39","v":"BO - Belarus"},null,null,null,null,null,null,null,null,null,null,null,null,null,null,null,null,null,null,null,null,null,null,null,null,null,null,null,null,null,null,null,null,null,null,null,null,null,null,null,null,null,null,null,null,null,null,null,null,null,null,null,null,null,null,null,null,null,null,null,null,null,null,null,null,null,null,null,null,null,null,null,null,null,null,null,null,null,null,null,null,null,null,null,null,null,null,null,null,null,null,null,null,null,null,null,null,null,null,null,null,null,null,null,null,"37 - Indre-et-Loire",null,null,null,null,null,null,null,null,null,null,null,null,null,"38 - Messinia",null,null,null,null,null,null,null,null,null,null,null,"38 - Zala",null,null,null,null,null,null,null,null,null,"GR - Grosseto",null,null,null,null,null,null,"38 - Ehime",null,null,null,null,null,null,null,null,null,null,null,null,null,null,null,null,null,null,null,null,null,null,null,null,null,null,null,null,null,null,null,null,null,null,null,null,null,null,null,null,null,null,null,null,null,null,null,null,null,null,null,null,null,null,null,null,null,null,null,null,null,null,null,null,null,null,null,null,null,null,null,null,null,null,null,null,null,null,null,null,null,null,null,"38 - Tulcea",null,null,null,null,null,null,null,null,null,null,null,"38 - Postojna",null,null,null,null,null,null,null,null,null,null,null,null,null,null,null,null,"38 - Pattani",null,null,null,null,null,null,null,null,null,null,null,null,null,null,null,null,null,null,null,"NM - New Mexico"]
["BP","Solomon Islands",{"$f":"  A40 & \" - \" & B40","v":"BP - Solomon Islands"},null,null,null,null,null,null,null,null,null,null,null,null,null,null,null,null,null,null,null,null,null,null,null,null,null,null,null,null,null,null,null,null,null,null,null,null,null,null,null,null,null,null,null,null,null,null,null,null,null,null,null,null,null,null,null,null,null,null,null,null,null,null,null,null,null,null,null,null,null,null,null,null,null,null,null,null,null,null,null,null,null,null,null,null,null,null,null,null,null,null,null,null,null,null,null,null,null,null,null,null,null,null,null,null,"38 - Isere",null,null,null,null,null,null,null,null,null,null,null,null,null,"39 - Pella",null,null,null,null,null,null,null,null,null,null,null,"39 - Zalaegerszeg",null,null,null,null,null,null,null,null,null,"IM - Imperia",null,null,null,null,null,null,"39 - Kochi",null,null,null,null,null,null,null,null,null,null,null,null,null,null,null,null,null,null,null,null,null,null,null,null,null,null,null,null,null,null,null,null,null,null,null,null,null,null,null,null,null,null,null,null,null,null,null,null,null,null,null,null,null,null,null,null,null,null,null,null,null,null,null,null,null,null,null,null,null,null,null,null,null,null,null,null,null,null,null,null,null,null,null,"39 - Vaslui",null,null,null,null,null,null,null,null,null,null,null,"39 - Ptuj",null,null,null,null,null,null,null,null,null,null,null,null,null,null,null,null,"39 - Phangnga",null,null,null,null,null,null,null,null,null,null,null,null,null,null,null,null,null,null,null,"NV - Nevada"]
["BQ","Bonaire",{"$f":"  A41 & \" - \" & B41","v":"BQ - Bonaire"},null,null,null,null,null,null,null,null,null,null,null,null,null,null,null,null,null,null,null,null,null,null,null,null,null,null,null,null,null,null,null,null,null,null,null,null,null,null,null,null,null,null,null,null,null,null,null,null,null,null,null,null,null,null,null,null,null,null,null,null,null,null,null,null,null,null,null,null,null,null,null,null,null,null,null,null,null,null,null,null,null,null,null,null,null,null,null,null,null,null,null,null,null,null,null,null,null,null,null,null,null,null,null,null,"39 - Jura",null,null,null,null,null,null,null,null,null,null,null,null,null,"40 - Pieria",null,null,null,null,null,null,null,null,null,null,null,null,null,null,null,null,null,null,null,null,null,"IS - Isernia",null,null,null,null,null,null,"40 - Fukuoka",null,null,null,null,null,null,null,null,null,null,null,null,null,null,null,null,null,null,null,null,null,null,null,null,null,null,null,null,null,null,null,null,null,null,null,null,null,null,null,null,null,null,null,null,null,null,null,null,null,null,null,null,null,null,null,null,null,null,null,null,null,null,null,null,null,null,null,null,null,null,null,null,null,null,null,null,null,null,null,null,null,null,null,"40 - Vilcea",null,null,null,null,null,null,null,null,null,null,null,"40 - Radlje Ob Dravi",null,null,null,null,null,null,null,null,null,null,null,null,null,null,null,null,"40 - Phatthalung",null,null,null,null,null,null,null,null,null,null,null,null,null,null,null,null,null,null,null,"NY - New York"]
["BR","Brazil",{"$f":"  A42 & \" - \" & B42","v":"BR - Brazil"},null,null,null,null,null,null,null,null,null,null,null,null,null,null,null,null,null,null,null,null,null,null,null,null,null,null,null,null,null,null,null,null,null,null,null,null,null,null,null,null,null,null,null,null,null,null,null,null,null,null,null,null,null,null,null,null,null,null,null,null,null,null,null,null,null,null,null,null,null,null,null,null,null,null,null,null,null,null,null,null,null,null,null,null,null,null,null,null,null,null,null,null,null,null,null,null,null,null,null,null,null,null,null,null,"40 - Landes",null,null,null,null,null,null,null,null,null,null,null,null,null,"41 - Piraievs",null,null,null,null,null,null,null,null,null,null,null,null,null,null,null,null,null,null,null,null,null,"KR - Crotone",null,null,null,null,null,null,"41 - Saga",null,null,null,null,null,null,null,null,null,null,null,null,null,null,null,null,null,null,null,null,null,null,null,null,null,null,null,null,null,null,null,null,null,null,null,null,null,null,null,null,null,null,null,null,null,null,null,null,null,null,null,null,null,null,null,null,null,null,null,null,null,null,null,null,null,null,null,null,null,null,null,null,null,null,null,null,null,null,null,null,null,null,null,"41 - Vrancea",null,null,null,null,null,null,null,null,null,null,null,"41 - Radovljica",null,null,null,null,null,null,null,null,null,null,null,null,null,null,null,null,"41 - Phayao",null,null,null,null,null,null,null,null,null,null,null,null,null,null,null,null,null,null,null,"OH - Ohio"]
["BS","Bassas da India",{"$f":"  A43 & \" - \" & B43","v":"BS - Bassas da India"},null,null,null,null,null,null,null,null,null,null,null,null,null,null,null,null,null,null,null,null,null,null,null,null,null,null,null,null,null,null,null,null,null,null,null,null,null,null,null,null,null,null,null,null,null,null,null,null,null,null,null,null,null,null,null,null,null,null,null,null,null,null,null,null,null,null,null,null,null,null,null,null,null,null,null,null,null,null,null,null,null,null,null,null,null,null,null,null,null,null,null,null,null,null,null,null,null,null,null,null,null,null,null,null,"41 - Loir-et-Cher",null,null,null,null,null,null,null,null,null,null,null,null,null,"42 - Preveza",null,null,null,null,null,null,null,null,null,null,null,null,null,null,null,null,null,null,null,null,null,"LC - Lecco",null,null,null,null,null,null,"42 - Nagasaki",null,null,null,null,null,null,null,null,null,null,null,null,null,null,null,null,null,null,null,null,null,null,null,null,null,null,null,null,null,null,null,null,null,null,null,null,null,null,null,null,null,null,null,null,null,null,null,null,null,null,null,null,null,null,null,null,null,null,null,null,null,null,null,null,null,null,null,null,null,null,null,null,null,null,null,null,null,null,null,null,null,null,null,null,null,null,null,null,null,null,null,null,null,null,null,"42 - Ravne Na Koroskem",null,null,null,null,null,null,null,null,null,null,null,null,null,null,null,null,"42 - Phetchabun",null,null,null,null,null,null,null,null,null,null,null,null,null,null,null,null,null,null,null,"OK - Oklahoma"]
["BT","Bhutan",{"$f":"  A44 & \" - \" & B44","v":"BT - Bhutan"},null,null,null,null,null,null,null,null,null,null,null,null,null,null,null,null,null,null,null,null,null,null,null,null,null,null,null,null,null,null,null,null,null,null,null,null,null,null,null,null,null,null,null,null,null,null,null,null,null,null,null,null,null,null,null,null,null,null,null,null,null,null,null,null,null,null,null,null,null,null,null,null,null,null,null,null,null,null,null,null,null,null,null,null,null,null,null,null,null,null,null,null,null,null,null,null,null,null,null,null,null,null,null,null,"42 - Loire",null,null,null,null,null,null,null,null,null,null,null,null,null,"43 - Rethimni",null,null,null,null,null,null,null,null,null,null,null,null,null,null,null,null,null,null,null,null,null,"LE - Lecce",null,null,null,null,null,null,"43 - Kumamoto",null,null,null,null,null,null,null,null,null,null,null,null,null,null,null,null,null,null,null,null,null,null,null,null,null,null,null,null,null,null,null,null,null,null,null,null,null,null,null,null,null,null,null,null,null,null,null,null,null,null,null,null,null,null,null,null,null,null,null,null,null,null,null,null,null,null,null,null,null,null,null,null,null,null,null,null,null,null,null,null,null,null,null,null,null,null,null,null,null,null,null,null,null,null,null,"43 - Ribnica",null,null,null,null,null,null,null,null,null,null,null,null,null,null,null,null,"43 - Phetchaburi",null,null,null,null,null,null,null,null,null,null,null,null,null,null,null,null,null,null,null,"OR - Oregon"]
["BU","Bulgaria",{"$f":"  A45 & \" - \" & B45","v":"BU - Bulgaria"},null,null,null,null,null,null,null,null,null,null,null,null,null,null,null,null,null,null,null,null,null,null,null,null,null,null,null,null,null,null,null,null,null,null,null,null,null,null,null,null,null,null,null,null,null,null,null,null,null,null,null,null,null,null,null,null,null,null,null,null,null,null,null,null,null,null,null,null,null,null,null,null,null,null,null,null,null,null,null,null,null,null,null,null,null,null,null,null,null,null,null,null,null,null,null,null,null,null,null,null,null,null,null,null,"43 - Loire (Haute)",null,null,null,null,null,null,null,null,null,null,null,null,null,"44 - Rodhopi",null,null,null,null,null,null,null,null,null,null,null,null,null,null,null,null,null,null,null,null,null,"LI - Livorno",null,null,null,null,null,null,"44 - Oita",null,null,null,null,null,null,null,null,null,null,null,null,null,null,null,null,null,null,null,null,null,null,null,null,null,null,null,null,null,null,null,null,null,null,null,null,null,null,null,null,null,null,null,null,null,null,null,null,null,null,null,null,null,null,null,null,null,null,null,null,null,null,null,null,null,null,null,null,null,null,null,null,null,null,null,null,null,null,null,null,null,null,null,null,null,null,null,null,null,null,null,null,null,null,null,"44 - Ruse",null,null,null,null,null,null,null,null,null,null,null,null,null,null,null,null,"44 - Phichit",null,null,null,null,null,null,null,null,null,null,null,null,null,null,null,null,null,null,null,"PA - Pennsylvania"]
["BV","Bouvet Islands",{"$f":"  A46 & \" - \" & B46","v":"BV - Bouvet Islands"},null,null,null,null,null,null,null,null,null,null,null,null,null,null,null,null,null,null,null,null,null,null,null,null,null,null,null,null,null,null,null,null,null,null,null,null,null,null,null,null,null,null,null,null,null,null,null,null,null,null,null,null,null,null,null,null,null,null,null,null,null,null,null,null,null,null,null,null,null,null,null,null,null,null,null,null,null,null,null,null,null,null,null,null,null,null,null,null,null,null,null,null,null,null,null,null,null,null,null,null,null,null,null,null,"44 - Loire-Atlantique",null,null,null,null,null,null,null,null,null,null,null,null,null,"45 - Samos",null,null,null,null,null,null,null,null,null,null,null,null,null,null,null,null,null,null,null,null,null,"LO - Lodi",null,null,null,null,null,null,"45 - Miyazaki",null,null,null,null,null,null,null,null,null,null,null,null,null,null,null,null,null,null,null,null,null,null,null,null,null,null,null,null,null,null,null,null,null,null,null,null,null,null,null,null,null,null,null,null,null,null,null,null,null,null,null,null,null,null,null,null,null,null,null,null,null,null,null,null,null,null,null,null,null,null,null,null,null,null,null,null,null,null,null,null,null,null,null,null,null,null,null,null,null,null,null,null,null,null,null,"45 - Sentjur Pri Celju",null,null,null,null,null,null,null,null,null,null,null,null,null,null,null,null,"45 - Phitsanulok",null,null,null,null,null,null,null,null,null,null,null,null,null,null,null,null,null,null,null,"PR - Puerto Rico"]
["BW","Botswana",{"$f":"  A47 & \" - \" & B47","v":"BW - Botswana"},null,null,null,null,null,null,null,null,null,null,null,null,null,null,null,null,null,null,null,null,null,null,null,null,null,null,null,null,null,null,null,null,null,null,null,null,null,null,null,null,null,null,null,null,null,null,null,null,null,null,null,null,null,null,null,null,null,null,null,null,null,null,null,null,null,null,null,null,null,null,null,null,null,null,null,null,null,null,null,null,null,null,null,null,null,null,null,null,null,null,null,null,null,null,null,null,null,null,null,null,null,null,null,null,"45 - Loiret",null,null,null,null,null,null,null,null,null,null,null,null,null,"46 - Serrai",null,null,null,null,null,null,null,null,null,null,null,null,null,null,null,null,null,null,null,null,null,"LT - Latina",null,null,null,null,null,null,"46 - Kagoshima",null,null,null,null,null,null,null,null,null,null,null,null,null,null,null,null,null,null,null,null,null,null,null,null,null,null,null,null,null,null,null,null,null,null,null,null,null,null,null,null,null,null,null,null,null,null,null,null,null,null,null,null,null,null,null,null,null,null,null,null,null,null,null,null,null,null,null,null,null,null,null,null,null,null,null,null,null,null,null,null,null,null,null,null,null,null,null,null,null,null,null,null,null,null,null,"46 - Sevnica",null,null,null,null,null,null,null,null,null,null,null,null,null,null,null,null,"46 - Phra Nakhon Si Ayut.",null,null,null,null,null,null,null,null,null,null,null,null,null,null,null,null,null,null,null,"RI - Rhode Island"]
["BX","Brunei",{"$f":"  A48 & \" - \" & B48","v":"BX - Brunei"},null,null,null,null,null,null,null,null,null,null,null,null,null,null,null,null,null,null,null,null,null,null,null,null,null,null,null,null,null,null,null,null,null,null,null,null,null,null,null,null,null,null,null,null,null,null,null,null,null,null,null,null,null,null,null,null,null,null,null,null,null,null,null,null,null,null,null,null,null,null,null,null,null,null,null,null,null,null,null,null,null,null,null,null,null,null,null,null,null,null,null,null,null,null,null,null,null,null,null,null,null,null,null,null,"46 - Lot",null,null,null,null,null,null,null,null,null,null,null,null,null,"47 - Thesprotia",null,null,null,null,null,null,null,null,null,null,null,null,null,null,null,null,null,null,null,null,null,"LU - Lucca",null,null,null,null,null,null,"47 - Okinawa",null,null,null,null,null,null,null,null,null,null,null,null,null,null,null,null,null,null,null,null,null,null,null,null,null,null,null,null,null,null,null,null,null,null,null,null,null,null,null,null,null,null,null,null,null,null,null,null,null,null,null,null,null,null,null,null,null,null,null,null,null,null,null,null,null,null,null,null,null,null,null,null,null,null,null,null,null,null,null,null,null,null,null,null,null,null,null,null,null,null,null,null,null,null,null,"47 - Sezana",null,null,null,null,null,null,null,null,null,null,null,null,null,null,null,null,"47 - Phrae",null,null,null,null,null,null,null,null,null,null,null,null,null,null,null,null,null,null,null,"SC - South Carolina"]
["BY","Burundi",{"$f":"  A49 & \" - \" & B49","v":"BY - Burundi"},null,null,null,null,null,null,null,null,null,null,null,null,null,null,null,null,null,null,null,null,null,null,null,null,null,null,null,null,null,null,null,null,null,null,null,null,null,null,null,null,null,null,null,null,null,null,null,null,null,null,null,null,null,null,null,null,null,null,null,null,null,null,null,null,null,null,null,null,null,null,null,null,null,null,null,null,null,null,null,null,null,null,null,null,null,null,null,null,null,null,null,null,null,null,null,null,null,null,null,null,null,null,null,null,"47 - Lot-et-Garonne",null,null,null,null,null,null,null,null,null,null,null,null,null,"48 - Thessaloniki",null,null,null,null,null,null,null,null,null,null,null,null,null,null,null,null,null,null,null,null,null,"MC - Macerata",null,null,null,null,null,null,null,null,null,null,null,null,null,null,null,null,null,null,null,null,null,null,null,null,null,null,null,null,null,null,null,null,null,null,null,null,null,null,null,null,null,null,null,null,null,null,null,null,null,null,null,null,null,null,null,null,null,null,null,null,null,null,null,null,null,null,null,null,null,null,null,null,null,null,null,null,null,null,null,null,null,null,null,null,null,null,null,null,null,null,null,null,null,null,null,null,null,null,null,null,null,null,"48 - Skofja Loka",null,null,null,null,null,null,null,null,null,null,null,null,null,null,null,null,"48 - Phuket",null,null,null,null,null,null,null,null,null,null,null,null,null,null,null,null,null,null,null,"SD - South Dakota"]
["BZ","Belize",{"$f":"  A50 & \" - \" & B50","v":"BZ - Belize"},null,null,null,null,null,null,null,null,null,null,null,null,null,null,null,null,null,null,null,null,null,null,null,null,null,null,null,null,null,null,null,null,null,null,null,null,null,null,null,null,null,null,null,null,null,null,null,null,null,null,null,null,null,null,null,null,null,null,null,null,null,null,null,null,null,null,null,null,null,null,null,null,null,null,null,null,null,null,null,null,null,null,null,null,null,null,null,null,null,null,null,null,null,null,null,null,null,null,null,null,null,null,null,null,"48 - Lozere",null,null,null,null,null,null,null,null,null,null,null,null,null,"49 - Trikala",null,null,null,null,null,null,null,null,null,null,null,null,null,null,null,null,null,null,null,null,null,"ME - Messina",null,null,null,null,null,null,null,null,null,null,null,null,null,null,null,null,null,null,null,null,null,null,null,null,null,null,null,null,null,null,null,null,null,null,null,null,null,null,null,null,null,null,null,null,null,null,null,null,null,null,null,null,null,null,null,null,null,null,null,null,null,null,null,null,null,null,null,null,null,null,null,null,null,null,null,null,null,null,null,null,null,null,null,null,null,null,null,null,null,null,null,null,null,null,null,null,null,null,null,null,null,null,"49 - Slovenj Gradec",null,null,null,null,null,null,null,null,null,null,null,null,null,null,null,null,"49 - Prachin Buri",null,null,null,null,null,null,null,null,null,null,null,null,null,null,null,null,null,null,null,"TN - Tennessee"]
["CA","Canada",{"$f":"  A51 & \" - \" & B51","v":"CA - Canada"},null,null,null,null,null,null,null,null,null,null,null,null,null,null,null,null,null,null,null,null,null,null,null,null,null,null,null,null,null,null,null,null,null,null,null,null,null,null,null,null,null,null,null,null,null,null,null,null,null,null,null,null,null,null,null,null,null,null,null,null,null,null,null,null,null,null,null,null,null,null,null,null,null,null,null,null,null,null,null,null,null,null,null,null,null,null,null,null,null,null,null,null,null,null,null,null,null,null,null,null,null,null,null,null,"49 - Maine-et-Loire",null,null,null,null,null,null,null,null,null,null,null,null,null,"50 - Voiotia",null,null,null,null,null,null,null,null,null,null,null,null,null,null,null,null,null,null,null,null,null,"MI - Milan",null,null,null,null,null,null,null,null,null,null,null,null,null,null,null,null,null,null,null,null,null,null,null,null,null,null,null,null,null,null,null,null,null,null,null,null,null,null,null,null,null,null,null,null,null,null,null,null,null,null,null,null,null,null,null,null,null,null,null,null,null,null,null,null,null,null,null,null,null,null,null,null,null,null,null,null,null,null,null,null,null,null,null,null,null,null,null,null,null,null,null,null,null,null,null,null,null,null,null,null,null,null,"50 - Slovenska Bistrica",null,null,null,null,null,null,null,null,null,null,null,null,null,null,null,null,null,null,null,null,null,null,null,null,null,null,null,null,null,null,null,null,null,null,null,null,"TX - Texas"]
["CB","Cambodia",{"$f":"  A52 & \" - \" & B52","v":"CB - Cambodia"},null,null,null,null,null,null,null,null,null,null,null,null,null,null,null,null,null,null,null,null,null,null,null,null,null,null,null,null,null,null,null,null,null,null,null,null,null,null,null,null,null,null,null,null,null,null,null,null,null,null,null,null,null,null,null,null,null,null,null,null,null,null,null,null,null,null,null,null,null,null,null,null,null,null,null,null,null,null,null,null,null,null,null,null,null,null,null,null,null,null,null,null,null,null,null,null,null,null,null,null,null,null,null,null,"50 - Manche",null,null,null,null,null,null,null,null,null,null,null,null,null,"51 - Xanthi",null,null,null,null,null,null,null,null,null,null,null,null,null,null,null,null,null,null,null,null,null,"MN - Mantova",null,null,null,null,null,null,null,null,null,null,null,null,null,null,null,null,null,null,null,null,null,null,null,null,null,null,null,null,null,null,null,null,null,null,null,null,null,null,null,null,null,null,null,null,null,null,null,null,null,null,null,null,null,null,null,null,null,null,null,null,null,null,null,null,null,null,null,null,null,null,null,null,null,null,null,null,null,null,null,null,null,null,null,null,null,null,null,null,null,null,null,null,null,null,null,null,null,null,null,null,null,null,"51 - Slovenske Konjice",null,null,null,null,null,null,null,null,null,null,null,null,null,null,null,null,null,null,null,null,null,null,null,null,null,null,null,null,null,null,null,null,null,null,null,null,"UT - Utah"]
["CC","Coconut Islands",{"$f":"  A53 & \" - \" & B53","v":"CC - Coconut Islands"},null,null,null,null,null,null,null,null,null,null,null,null,null,null,null,null,null,null,null,null,null,null,null,null,null,null,null,null,null,null,null,null,null,null,null,null,null,null,null,null,null,null,null,null,null,null,null,null,null,null,null,null,null,null,null,null,null,null,null,null,null,null,null,null,null,null,null,null,null,null,null,null,null,null,null,null,null,null,null,null,null,null,null,null,null,null,null,null,null,null,null,null,null,null,null,null,null,null,null,null,null,null,null,null,"51 - Marne",null,null,null,null,null,null,null,null,null,null,null,null,null,"52 - Zakinthos",null,null,null,null,null,null,null,null,null,null,null,null,null,null,null,null,null,null,null,null,null,"MO - Modena",null,null,null,null,null,null,null,null,null,null,null,null,null,null,null,null,null,null,null,null,null,null,null,null,null,null,null,null,null,null,null,null,null,null,null,null,null,null,null,null,null,null,null,null,null,null,null,null,null,null,null,null,null,null,null,null,null,null,null,null,null,null,null,null,null,null,null,null,null,null,null,null,null,null,null,null,null,null,null,null,null,null,null,null,null,null,null,null,null,null,null,null,null,null,null,null,null,null,null,null,null,null,"52 - Smarje Pri Jelsah",null,null,null,null,null,null,null,null,null,null,null,null,null,null,null,null,null,null,null,null,null,null,null,null,null,null,null,null,null,null,null,null,null,null,null,null,"VA - Virginia"]
["CD","Chad",{"$f":"  A54 & \" - \" & B54","v":"CD - Chad"},null,null,null,null,null,null,null,null,null,null,null,null,null,null,null,null,null,null,null,null,null,null,null,null,null,null,null,null,null,null,null,null,null,null,null,null,null,null,null,null,null,null,null,null,null,null,null,null,null,null,null,null,null,null,null,null,null,null,null,null,null,null,null,null,null,null,null,null,null,null,null,null,null,null,null,null,null,null,null,null,null,null,null,null,null,null,null,null,null,null,null,null,null,null,null,null,null,null,null,null,null,null,null,null,"52 - Marne (Haute)",null,null,null,null,null,null,null,null,null,null,null,null,null,null,null,null,null,null,null,null,null,null,null,null,null,null,null,null,null,null,null,null,null,null,null,"MS - Massa Carrara",null,null,null,null,null,null,null,null,null,null,null,null,null,null,null,null,null,null,null,null,null,null,null,null,null,null,null,null,null,null,null,null,null,null,null,null,null,null,null,null,null,null,null,null,null,null,null,null,null,null,null,null,null,null,null,null,null,null,null,null,null,null,null,null,null,null,null,null,null,null,null,null,null,null,null,null,null,null,null,null,null,null,null,null,null,null,null,null,null,null,null,null,null,null,null,null,null,null,null,null,null,null,"53 - Tolmin",null,null,null,null,null,null,null,null,null,null,null,null,null,null,null,null,null,null,null,null,null,null,null,null,null,null,null,null,null,null,null,null,null,null,null,null,"VI - Virgin Islands"]
["CE","Sri Lanka",{"$f":"  A55 & \" - \" & B55","v":"CE - Sri Lanka"},null,null,null,null,null,null,null,null,null,null,null,null,null,null,null,null,null,null,null,null,null,null,null,null,null,null,null,null,null,null,null,null,null,null,null,null,null,null,null,null,null,null,null,null,null,null,null,null,null,null,null,null,null,null,null,null,null,null,null,null,null,null,null,null,null,null,null,null,null,null,null,null,null,null,null,null,null,null,null,null,null,null,null,null,null,null,null,null,null,null,null,null,null,null,null,null,null,null,null,null,null,null,null,null,"53 - Mayenne",null,null,null,null,null,null,null,null,null,null,null,null,null,null,null,null,null,null,null,null,null,null,null,null,null,null,null,null,null,null,null,null,null,null,null,"MT - Matera",null,null,null,null,null,null,null,null,null,null,null,null,null,null,null,null,null,null,null,null,null,null,null,null,null,null,null,null,null,null,null,null,null,null,null,null,null,null,null,null,null,null,null,null,null,null,null,null,null,null,null,null,null,null,null,null,null,null,null,null,null,null,null,null,null,null,null,null,null,null,null,null,null,null,null,null,null,null,null,null,null,null,null,null,null,null,null,null,null,null,null,null,null,null,null,null,null,null,null,null,null,null,"54 - Trbovlje",null,null,null,null,null,null,null,null,null,null,null,null,null,null,null,null,null,null,null,null,null,null,null,null,null,null,null,null,null,null,null,null,null,null,null,null,"VT - Vermont"]
["CF","Congo Republic",{"$f":"  A56 & \" - \" & B56","v":"CF - Congo Republic"},null,null,null,null,null,null,null,null,null,null,null,null,null,null,null,null,null,null,null,null,null,null,null,null,null,null,null,null,null,null,null,null,null,null,null,null,null,null,null,null,null,null,null,null,null,null,null,null,null,null,null,null,null,null,null,null,null,null,null,null,null,null,null,null,null,null,null,null,null,null,null,null,null,null,null,null,null,null,null,null,null,null,null,null,null,null,null,null,null,null,null,null,null,null,null,null,null,null,null,null,null,null,null,null,"54 - Meurthe-et-Moselle",null,null,null,null,null,null,null,null,null,null,null,null,null,null,null,null,null,null,null,null,null,null,null,null,null,null,null,null,null,null,null,null,null,null,null,"NA - Naples",null,null,null,null,null,null,null,null,null,null,null,null,null,null,null,null,null,null,null,null,null,null,null,null,null,null,null,null,null,null,null,null,null,null,null,null,null,null,null,null,null,null,null,null,null,null,null,null,null,null,null,null,null,null,null,null,null,null,null,null,null,null,null,null,null,null,null,null,null,null,null,null,null,null,null,null,null,null,null,null,null,null,null,null,null,null,null,null,null,null,null,null,null,null,null,null,null,null,null,null,null,null,"55 - Trebnje",null,null,null,null,null,null,null,null,null,null,null,null,null,null,null,null,null,null,null,null,null,null,null,null,null,null,null,null,null,null,null,null,null,null,null,null,"WA - Washington"]
["CG","Congo (Democrat",{"$f":"  A57 & \" - \" & B57","v":"CG - Congo (Democrat"},null,null,null,null,null,null,null,null,null,null,null,null,null,null,null,null,null,null,null,null,null,null,null,null,null,null,null,null,null,null,null,null,null,null,null,null,null,null,null,null,null,null,null,null,null,null,null,null,null,null,null,null,null,null,null,null,null,null,null,null,null,null,null,null,null,null,null,null,null,null,null,null,null,null,null,null,null,null,null,null,null,null,null,null,null,null,null,null,null,null,null,null,null,null,null,null,null,null,null,null,null,null,null,null,"55 - Meuse",null,null,null,null,null,null,null,null,null,null,null,null,null,null,null,null,null,null,null,null,null,null,null,null,null,null,null,null,null,null,null,null,null,null,null,"NO - Novara",null,null,null,null,null,null,null,null,null,null,null,null,null,null,null,null,null,null,null,null,null,null,null,null,null,null,null,null,null,null,null,null,null,null,null,null,null,null,null,null,null,null,null,null,null,null,null,null,null,null,null,null,null,null,null,null,null,null,null,null,null,null,null,null,null,null,null,null,null,null,null,null,null,null,null,null,null,null,null,null,null,null,null,null,null,null,null,null,null,null,null,null,null,null,null,null,null,null,null,null,null,null,"56 - Trzic",null,null,null,null,null,null,null,null,null,null,null,null,null,null,null,null,null,null,null,null,null,null,null,null,null,null,null,null,null,null,null,null,null,null,null,null,"WI - Wisconsin"]
["CH","China",{"$f":"  A58 & \" - \" & B58","v":"CH - China"},null,null,null,null,null,null,null,null,null,null,null,null,null,null,null,null,null,null,null,null,null,null,null,null,null,null,null,null,null,null,null,null,null,null,null,null,null,null,null,null,null,null,null,null,null,null,null,null,null,null,null,null,null,null,null,null,null,null,null,null,null,null,null,null,null,null,null,null,null,null,null,null,null,null,null,null,null,null,null,null,null,null,null,null,null,null,null,null,null,null,null,null,null,null,null,null,null,null,null,null,null,null,null,null,"56 - Morbihan",null,null,null,null,null,null,null,null,null,null,null,null,null,null,null,null,null,null,null,null,null,null,null,null,null,null,null,null,null,null,null,null,null,null,null,"NU - Nuoro",null,null,null,null,null,null,null,null,null,null,null,null,null,null,null,null,null,null,null,null,null,null,null,null,null,null,null,null,null,null,null,null,null,null,null,null,null,null,null,null,null,null,null,null,null,null,null,null,null,null,null,null,null,null,null,null,null,null,null,null,null,null,null,null,null,null,null,null,null,null,null,null,null,null,null,null,null,null,null,null,null,null,null,null,null,null,null,null,null,null,null,null,null,null,null,null,null,null,null,null,null,null,"57 - Velenje",null,null,null,null,null,null,null,null,null,null,null,null,null,null,null,null,null,null,null,null,null,null,null,null,null,null,null,null,null,null,null,null,null,null,null,null,"WV - West Virginia"]
["CI","Chile",{"$f":"  A59 & \" - \" & B59","v":"CI - Chile"},null,null,null,null,null,null,null,null,null,null,null,null,null,null,null,null,null,null,null,null,null,null,null,null,null,null,null,null,null,null,null,null,null,null,null,null,null,null,null,null,null,null,null,null,null,null,null,null,null,null,null,null,null,null,null,null,null,null,null,null,null,null,null,null,null,null,null,null,null,null,null,null,null,null,null,null,null,null,null,null,null,null,null,null,null,null,null,null,null,null,null,null,null,null,null,null,null,null,null,null,null,null,null,null,"57 - Moselle",null,null,null,null,null,null,null,null,null,null,null,null,null,null,null,null,null,null,null,null,null,null,null,null,null,null,null,null,null,null,null,null,null,null,null,"OR - Oristano",null,null,null,null,null,null,null,null,null,null,null,null,null,null,null,null,null,null,null,null,null,null,null,null,null,null,null,null,null,null,null,null,null,null,null,null,null,null,null,null,null,null,null,null,null,null,null,null,null,null,null,null,null,null,null,null,null,null,null,null,null,null,null,null,null,null,null,null,null,null,null,null,null,null,null,null,null,null,null,null,null,null,null,null,null,null,null,null,null,null,null,null,null,null,null,null,null,null,null,null,null,null,"58 - Vrhnika",null,null,null,null,null,null,null,null,null,null,null,null,null,null,null,null,null,null,null,null,null,null,null,null,null,null,null,null,null,null,null,null,null,null,null,null,"WY - Wyoming"]
["CJ","Cayman Islands",{"$f":"  A60 & \" - \" & B60","v":"CJ - Cayman Islands"},null,null,null,null,null,null,null,null,null,null,null,null,null,null,null,null,null,null,null,null,null,null,null,null,null,null,null,null,null,null,null,null,null,null,null,null,null,null,null,null,null,null,null,null,null,null,null,null,null,null,null,null,null,null,null,null,null,null,null,null,null,null,null,null,null,null,null,null,null,null,null,null,null,null,null,null,null,null,null,null,null,null,null,null,null,null,null,null,null,null,null,null,null,null,null,null,null,null,null,null,null,null,null,null,"58 - Nievre",null,null,null,null,null,null,null,null,null,null,null,null,null,null,null,null,null,null,null,null,null,null,null,null,null,null,null,null,null,null,null,null,null,null,null,"PA - Palermo",null,null,null,null,null,null,null,null,null,null,null,null,null,null,null,null,null,null,null,null,null,null,null,null,null,null,null,null,null,null,null,null,null,null,null,null,null,null,null,null,null,null,null,null,null,null,null,null,null,null,null,null,null,null,null,null,null,null,null,null,null,null,null,null,null,null,null,null,null,null,null,null,null,null,null,null,null,null,null,null,null,null,null,null,null,null,null,null,null,null,null,null,null,null,null,null,null,null,null,null,null,null,"59 - Zagorje Ob Savi"]
["CK","Cocos (Keeling)",{"$f":"  A61 & \" - \" & B61","v":"CK - Cocos (Keeling)"},null,null,null,null,null,null,null,null,null,null,null,null,null,null,null,null,null,null,null,null,null,null,null,null,null,null,null,null,null,null,null,null,null,null,null,null,null,null,null,null,null,null,null,null,null,null,null,null,null,null,null,null,null,null,null,null,null,null,null,null,null,null,null,null,null,null,null,null,null,null,null,null,null,null,null,null,null,null,null,null,null,null,null,null,null,null,null,null,null,null,null,null,null,null,null,null,null,null,null,null,null,null,null,null,"59 - Nord",null,null,null,null,null,null,null,null,null,null,null,null,null,null,null,null,null,null,null,null,null,null,null,null,null,null,null,null,null,null,null,null,null,null,null,"PC - Piacenza",null,null,null,null,null,null,null,null,null,null,null,null,null,null,null,null,null,null,null,null,null,null,null,null,null,null,null,null,null,null,null,null,null,null,null,null,null,null,null,null,null,null,null,null,null,null,null,null,null,null,null,null,null,null,null,null,null,null,null,null,null,null,null,null,null,null,null,null,null,null,null,null,null,null,null,null,null,null,null,null,null,null,null,null,null,null,null,null,null,null,null,null,null,null,null,null,null,null,null,null,null,null,"60 - Zalec"]
["CL","Chile",{"$f":"  A62 & \" - \" & B62","v":"CL - Chile"},null,null,null,null,null,null,null,null,null,null,null,null,null,null,null,null,null,null,null,null,null,null,null,null,null,null,null,null,null,null,null,null,null,null,null,null,null,null,null,null,null,null,null,null,null,null,null,null,null,null,null,null,null,null,null,null,null,null,null,null,null,null,null,null,null,null,null,null,null,null,null,null,null,null,null,null,null,null,null,null,null,null,null,null,null,null,null,null,null,null,null,null,null,null,null,null,null,null,null,null,null,null,null,null,"60 - Oise",null,null,null,null,null,null,null,null,null,null,null,null,null,null,null,null,null,null,null,null,null,null,null,null,null,null,null,null,null,null,null,null,null,null,null,"PD - Padova"]
["CM","Cameroon",{"$f":"  A63 & \" - \" & B63","v":"CM - Cameroon"},null,null,null,null,null,null,null,null,null,null,null,null,null,null,null,null,null,null,null,null,null,null,null,null,null,null,null,null,null,null,null,null,null,null,null,null,null,null,null,null,null,null,null,null,null,null,null,null,null,null,null,null,null,null,null,null,null,null,null,null,null,null,null,null,null,null,null,null,null,null,null,null,null,null,null,null,null,null,null,null,null,null,null,null,null,null,null,null,null,null,null,null,null,null,null,null,null,null,null,null,null,null,null,null,"61 - Orne",null,null,null,null,null,null,null,null,null,null,null,null,null,null,null,null,null,null,null,null,null,null,null,null,null,null,null,null,null,null,null,null,null,null,null,"PE - Pescara"]
["CN","Comoros",{"$f":"  A64 & \" - \" & B64","v":"CN - Comoros"},null,null,null,null,null,null,null,null,null,null,null,null,null,null,null,null,null,null,null,null,null,null,null,null,null,null,null,null,null,null,null,null,null,null,null,null,null,null,null,null,null,null,null,null,null,null,null,null,null,null,null,null,null,null,null,null,null,null,null,null,null,null,null,null,null,null,null,null,null,null,null,null,null,null,null,null,null,null,null,null,null,null,null,null,null,null,null,null,null,null,null,null,null,null,null,null,null,null,null,null,null,null,null,null,"62 - Pas-de-Calais",null,null,null,null,null,null,null,null,null,null,null,null,null,null,null,null,null,null,null,null,null,null,null,null,null,null,null,null,null,null,null,null,null,null,null,"PG - Perugia"]
["CO","Colombia",{"$f":"  A65 & \" - \" & B65","v":"CO - Colombia"},null,null,null,null,null,null,null,null,null,null,null,null,null,null,null,null,null,null,null,null,null,null,null,null,null,null,null,null,null,null,null,null,null,null,null,null,null,null,null,null,null,null,null,null,null,null,null,null,null,null,null,null,null,null,null,null,null,null,null,null,null,null,null,null,null,null,null,null,null,null,null,null,null,null,null,null,null,null,null,null,null,null,null,null,null,null,null,null,null,null,null,null,null,null,null,null,null,null,null,null,null,null,null,null,"63 - Puy-de-Dome",null,null,null,null,null,null,null,null,null,null,null,null,null,null,null,null,null,null,null,null,null,null,null,null,null,null,null,null,null,null,null,null,null,null,null,"PI - Pisa"]
["CQ","Northern Marian",{"$f":"  A66 & \" - \" & B66","v":"CQ - Northern Marian"},null,null,null,null,null,null,null,null,null,null,null,null,null,null,null,null,null,null,null,null,null,null,null,null,null,null,null,null,null,null,null,null,null,null,null,null,null,null,null,null,null,null,null,null,null,null,null,null,null,null,null,null,null,null,null,null,null,null,null,null,null,null,null,null,null,null,null,null,null,null,null,null,null,null,null,null,null,null,null,null,null,null,null,null,null,null,null,null,null,null,null,null,null,null,null,null,null,null,null,null,null,null,null,null,"64 - Pyrenees-Atlantiques",null,null,null,null,null,null,null,null,null,null,null,null,null,null,null,null,null,null,null,null,null,null,null,null,null,null,null,null,null,null,null,null,null,null,null,"PN - Pordenone"]
["CR","Coral Sea Islan",{"$f":"  A67 & \" - \" & B67","v":"CR - Coral Sea Islan"},null,null,null,null,null,null,null,null,null,null,null,null,null,null,null,null,null,null,null,null,null,null,null,null,null,null,null,null,null,null,null,null,null,null,null,null,null,null,null,null,null,null,null,null,null,null,null,null,null,null,null,null,null,null,null,null,null,null,null,null,null,null,null,null,null,null,null,null,null,null,null,null,null,null,null,null,null,null,null,null,null,null,null,null,null,null,null,null,null,null,null,null,null,null,null,null,null,null,null,null,null,null,null,null,"65 - Pyrenees (Hautes)",null,null,null,null,null,null,null,null,null,null,null,null,null,null,null,null,null,null,null,null,null,null,null,null,null,null,null,null,null,null,null,null,null,null,null,"PO - Prato"]
["CS","Costa Rica",{"$f":"  A68 & \" - \" & B68","v":"CS - Costa Rica"},null,null,null,null,null,null,null,null,null,null,null,null,null,null,null,null,null,null,null,null,null,null,null,null,null,null,null,null,null,null,null,null,null,null,null,null,null,null,null,null,null,null,null,null,null,null,null,null,null,null,null,null,null,null,null,null,null,null,null,null,null,null,null,null,null,null,null,null,null,null,null,null,null,null,null,null,null,null,null,null,null,null,null,null,null,null,null,null,null,null,null,null,null,null,null,null,null,null,null,null,null,null,null,null,"66 - Pyrenees-Orientales",null,null,null,null,null,null,null,null,null,null,null,null,null,null,null,null,null,null,null,null,null,null,null,null,null,null,null,null,null,null,null,null,null,null,null,"PR - Parma"]
["CT","CAR",{"$f":"  A69 & \" - \" & B69","v":"CT - CAR"},null,null,null,null,null,null,null,null,null,null,null,null,null,null,null,null,null,null,null,null,null,null,null,null,null,null,null,null,null,null,null,null,null,null,null,null,null,null,null,null,null,null,null,null,null,null,null,null,null,null,null,null,null,null,null,null,null,null,null,null,null,null,null,null,null,null,null,null,null,null,null,null,null,null,null,null,null,null,null,null,null,null,null,null,null,null,null,null,null,null,null,null,null,null,null,null,null,null,null,null,null,null,null,null,"67 - Bas-Rhin",null,null,null,null,null,null,null,null,null,null,null,null,null,null,null,null,null,null,null,null,null,null,null,null,null,null,null,null,null,null,null,null,null,null,null,"PT - Pistoia"]
["CU","Cuba",{"$f":"  A70 & \" - \" & B70","v":"CU - Cuba"},null,null,null,null,null,null,null,null,null,null,null,null,null,null,null,null,null,null,null,null,null,null,null,null,null,null,null,null,null,null,null,null,null,null,null,null,null,null,null,null,null,null,null,null,null,null,null,null,null,null,null,null,null,null,null,null,null,null,null,null,null,null,null,null,null,null,null,null,null,null,null,null,null,null,null,null,null,null,null,null,null,null,null,null,null,null,null,null,null,null,null,null,null,null,null,null,null,null,null,null,null,null,null,null,"68 - Haut-Rhin",null,null,null,null,null,null,null,null,null,null,null,null,null,null,null,null,null,null,null,null,null,null,null,null,null,null,null,null,null,null,null,null,null,null,null,"PU - Pesaro-Urbino"]
["CV","Cape Verde",{"$f":"  A71 & \" - \" & B71","v":"CV - Cape Verde"},null,null,null,null,null,null,null,null,null,null,null,null,null,null,null,null,null,null,null,null,null,null,null,null,null,null,null,null,null,null,null,null,null,null,null,null,null,null,null,null,null,null,null,null,null,null,null,null,null,null,null,null,null,null,null,null,null,null,null,null,null,null,null,null,null,null,null,null,null,null,null,null,null,null,null,null,null,null,null,null,null,null,null,null,null,null,null,null,null,null,null,null,null,null,null,null,null,null,null,null,null,null,null,null,"69 - Rhone",null,null,null,null,null,null,null,null,null,null,null,null,null,null,null,null,null,null,null,null,null,null,null,null,null,null,null,null,null,null,null,null,null,null,null,"PV - Pavia"]
["CW","Curacao",{"$f":"  A72 & \" - \" & B72","v":"CW - Curacao"},null,null,null,null,null,null,null,null,null,null,null,null,null,null,null,null,null,null,null,null,null,null,null,null,null,null,null,null,null,null,null,null,null,null,null,null,null,null,null,null,null,null,null,null,null,null,null,null,null,null,null,null,null,null,null,null,null,null,null,null,null,null,null,null,null,null,null,null,null,null,null,null,null,null,null,null,null,null,null,null,null,null,null,null,null,null,null,null,null,null,null,null,null,null,null,null,null,null,null,null,null,null,null,null,"70 - Saone (Haute)",null,null,null,null,null,null,null,null,null,null,null,null,null,null,null,null,null,null,null,null,null,null,null,null,null,null,null,null,null,null,null,null,null,null,null,"PZ - Potenza"]
["CX","Christmas Islnd",{"$f":"  A73 & \" - \" & B73","v":"CX - Christmas Islnd"},null,null,null,null,null,null,null,null,null,null,null,null,null,null,null,null,null,null,null,null,null,null,null,null,null,null,null,null,null,null,null,null,null,null,null,null,null,null,null,null,null,null,null,null,null,null,null,null,null,null,null,null,null,null,null,null,null,null,null,null,null,null,null,null,null,null,null,null,null,null,null,null,null,null,null,null,null,null,null,null,null,null,null,null,null,null,null,null,null,null,null,null,null,null,null,null,null,null,null,null,null,null,null,null,"71 - Saone-et-Loire",null,null,null,null,null,null,null,null,null,null,null,null,null,null,null,null,null,null,null,null,null,null,null,null,null,null,null,null,null,null,null,null,null,null,null,"RA - Ravenna"]
["CY","Cyprus",{"$f":"  A74 & \" - \" & B74","v":"CY - Cyprus"},null,null,null,null,null,null,null,null,null,null,null,null,null,null,null,null,null,null,null,null,null,null,null,null,null,null,null,null,null,null,null,null,null,null,null,null,null,null,null,null,null,null,null,null,null,null,null,null,null,null,null,null,null,null,null,null,null,null,null,null,null,null,null,null,null,null,null,null,null,null,null,null,null,null,null,null,null,null,null,null,null,null,null,null,null,null,null,null,null,null,null,null,null,null,null,null,null,null,null,null,null,null,null,null,"72 - Sarthe",null,null,null,null,null,null,null,null,null,null,null,null,null,null,null,null,null,null,null,null,null,null,null,null,null,null,null,null,null,null,null,null,null,null,null,"RC - Reggio Calabria"]
["CZ","Czech Republic",{"$f":"  A75 & \" - \" & B75","v":"CZ - Czech Republic"},null,null,null,null,null,null,null,null,null,null,null,null,null,null,null,null,null,null,null,null,null,null,null,null,null,null,null,null,null,null,null,null,null,null,null,null,null,null,null,null,null,null,null,null,null,null,null,null,null,null,null,null,null,null,null,null,null,null,null,null,null,null,null,null,null,null,null,null,null,null,null,null,null,null,null,null,null,null,null,null,null,null,null,null,null,null,null,null,null,null,null,null,null,null,null,null,null,null,null,null,null,null,null,null,"73 - Savoie",null,null,null,null,null,null,null,null,null,null,null,null,null,null,null,null,null,null,null,null,null,null,null,null,null,null,null,null,null,null,null,null,null,null,null,"RE - Reggio Emilia"]
["DA","Denmark",{"$f":"  A76 & \" - \" & B76","v":"DA - Denmark"},null,null,null,null,null,null,null,null,null,null,null,null,null,null,null,null,null,null,null,null,null,null,null,null,null,null,null,null,null,null,null,null,null,null,null,null,null,null,null,null,null,null,null,null,null,null,null,null,null,null,null,null,null,null,null,null,null,null,null,null,null,null,null,null,null,null,null,null,null,null,null,null,null,null,null,null,null,null,null,null,null,null,null,null,null,null,null,null,null,null,null,null,null,null,null,null,null,null,null,null,null,null,null,null,"74 - Savoie (Haute)",null,null,null,null,null,null,null,null,null,null,null,null,null,null,null,null,null,null,null,null,null,null,null,null,null,null,null,null,null,null,null,null,null,null,null,"RG - Ragusa"]
["DB","Dutch Antilles",{"$f":"  A77 & \" - \" & B77","v":"DB - Dutch Antilles"},null,null,null,null,null,null,null,null,null,null,null,null,null,null,null,null,null,null,null,null,null,null,null,null,null,null,null,null,null,null,null,null,null,null,null,null,null,null,null,null,null,null,null,null,null,null,null,null,null,null,null,null,null,null,null,null,null,null,null,null,null,null,null,null,null,null,null,null,null,null,null,null,null,null,null,null,null,null,null,null,null,null,null,null,null,null,null,null,null,null,null,null,null,null,null,null,null,null,null,null,null,null,null,null,"75 - Paris",null,null,null,null,null,null,null,null,null,null,null,null,null,null,null,null,null,null,null,null,null,null,null,null,null,null,null,null,null,null,null,null,null,null,null,"RI - Rieti"]
["DE","Germany",{"$f":"  A78 & \" - \" & B78","v":"DE - Germany"},null,null,null,null,null,null,null,null,null,null,null,null,null,null,null,null,null,null,null,null,null,null,null,null,null,null,null,null,null,null,null,null,null,null,null,null,null,null,null,null,null,null,null,null,null,null,null,null,null,null,null,null,null,null,null,null,null,null,null,null,null,null,null,null,null,null,null,null,null,null,null,null,null,null,null,null,null,null,null,null,null,null,null,null,null,null,null,null,null,null,null,null,null,null,null,null,null,null,null,null,null,null,null,null,"76 - Seine-Maritime",null,null,null,null,null,null,null,null,null,null,null,null,null,null,null,null,null,null,null,null,null,null,null,null,null,null,null,null,null,null,null,null,null,null,null,"RM - Rome"]
["DJ","Djibouti",{"$f":"  A79 & \" - \" & B79","v":"DJ - Djibouti"},null,null,null,null,null,null,null,null,null,null,null,null,null,null,null,null,null,null,null,null,null,null,null,null,null,null,null,null,null,null,null,null,null,null,null,null,null,null,null,null,null,null,null,null,null,null,null,null,null,null,null,null,null,null,null,null,null,null,null,null,null,null,null,null,null,null,null,null,null,null,null,null,null,null,null,null,null,null,null,null,null,null,null,null,null,null,null,null,null,null,null,null,null,null,null,null,null,null,null,null,null,null,null,null,"77 - Seine-et-Marne",null,null,null,null,null,null,null,null,null,null,null,null,null,null,null,null,null,null,null,null,null,null,null,null,null,null,null,null,null,null,null,null,null,null,null,"RN - Rimini"]
["DM","Dominica",{"$f":"  A80 & \" - \" & B80","v":"DM - Dominica"},null,null,null,null,null,null,null,null,null,null,null,null,null,null,null,null,null,null,null,null,null,null,null,null,null,null,null,null,null,null,null,null,null,null,null,null,null,null,null,null,null,null,null,null,null,null,null,null,null,null,null,null,null,null,null,null,null,null,null,null,null,null,null,null,null,null,null,null,null,null,null,null,null,null,null,null,null,null,null,null,null,null,null,null,null,null,null,null,null,null,null,null,null,null,null,null,null,null,null,null,null,null,null,null,"78 - Yvelines",null,null,null,null,null,null,null,null,null,null,null,null,null,null,null,null,null,null,null,null,null,null,null,null,null,null,null,null,null,null,null,null,null,null,null,"RO - Rovigo"]
["DO","Dominica",{"$f":"  A81 & \" - \" & B81","v":"DO - Dominica"},null,null,null,null,null,null,null,null,null,null,null,null,null,null,null,null,null,null,null,null,null,null,null,null,null,null,null,null,null,null,null,null,null,null,null,null,null,null,null,null,null,null,null,null,null,null,null,null,null,null,null,null,null,null,null,null,null,null,null,null,null,null,null,null,null,null,null,null,null,null,null,null,null,null,null,null,null,null,null,null,null,null,null,null,null,null,null,null,null,null,null,null,null,null,null,null,null,null,null,null,null,null,null,null,"79 - Sevres (Deux)",null,null,null,null,null,null,null,null,null,null,null,null,null,null,null,null,null,null,null,null,null,null,null,null,null,null,null,null,null,null,null,null,null,null,null,"SA - Salerno"]
["DQ","Jarvis Island",{"$f":"  A82 & \" - \" & B82","v":"DQ - Jarvis Island"},null,null,null,null,null,null,null,null,null,null,null,null,null,null,null,null,null,null,null,null,null,null,null,null,null,null,null,null,null,null,null,null,null,null,null,null,null,null,null,null,null,null,null,null,null,null,null,null,null,null,null,null,null,null,null,null,null,null,null,null,null,null,null,null,null,null,null,null,null,null,null,null,null,null,null,null,null,null,null,null,null,null,null,null,null,null,null,null,null,null,null,null,null,null,null,null,null,null,null,null,null,null,null,null,"80 - Somme",null,null,null,null,null,null,null,null,null,null,null,null,null,null,null,null,null,null,null,null,null,null,null,null,null,null,null,null,null,null,null,null,null,null,null,"SI - Siena"]
["DR","Dominican Repub",{"$f":"  A83 & \" - \" & B83","v":"DR - Dominican Repub"},null,null,null,null,null,null,null,null,null,null,null,null,null,null,null,null,null,null,null,null,null,null,null,null,null,null,null,null,null,null,null,null,null,null,null,null,null,null,null,null,null,null,null,null,null,null,null,null,null,null,null,null,null,null,null,null,null,null,null,null,null,null,null,null,null,null,null,null,null,null,null,null,null,null,null,null,null,null,null,null,null,null,null,null,null,null,null,null,null,null,null,null,null,null,null,null,null,null,null,null,null,null,null,null,"81 - Tarn",null,null,null,null,null,null,null,null,null,null,null,null,null,null,null,null,null,null,null,null,null,null,null,null,null,null,null,null,null,null,null,null,null,null,null,"SO - Sondrio"]
["DX","Dhekelia Base A",{"$f":"  A84 & \" - \" & B84","v":"DX - Dhekelia Base A"},null,null,null,null,null,null,null,null,null,null,null,null,null,null,null,null,null,null,null,null,null,null,null,null,null,null,null,null,null,null,null,null,null,null,null,null,null,null,null,null,null,null,null,null,null,null,null,null,null,null,null,null,null,null,null,null,null,null,null,null,null,null,null,null,null,null,null,null,null,null,null,null,null,null,null,null,null,null,null,null,null,null,null,null,null,null,null,null,null,null,null,null,null,null,null,null,null,null,null,null,null,null,null,null,"82 - Tarn-et-Garonne",null,null,null,null,null,null,null,null,null,null,null,null,null,null,null,null,null,null,null,null,null,null,null,null,null,null,null,null,null,null,null,null,null,null,null,"SP - La Spezia"]
["DZ","Algeria",{"$f":"  A85 & \" - \" & B85","v":"DZ - Algeria"},null,null,null,null,null,null,null,null,null,null,null,null,null,null,null,null,null,null,null,null,null,null,null,null,null,null,null,null,null,null,null,null,null,null,null,null,null,null,null,null,null,null,null,null,null,null,null,null,null,null,null,null,null,null,null,null,null,null,null,null,null,null,null,null,null,null,null,null,null,null,null,null,null,null,null,null,null,null,null,null,null,null,null,null,null,null,null,null,null,null,null,null,null,null,null,null,null,null,null,null,null,null,null,null,"83 - Var",null,null,null,null,null,null,null,null,null,null,null,null,null,null,null,null,null,null,null,null,null,null,null,null,null,null,null,null,null,null,null,null,null,null,null,"SR - Siracusa"]
["EC","Ecuador",{"$f":"  A86 & \" - \" & B86","v":"EC - Ecuador"},null,null,null,null,null,null,null,null,null,null,null,null,null,null,null,null,null,null,null,null,null,null,null,null,null,null,null,null,null,null,null,null,null,null,null,null,null,null,null,null,null,null,null,null,null,null,null,null,null,null,null,null,null,null,null,null,null,null,null,null,null,null,null,null,null,null,null,null,null,null,null,null,null,null,null,null,null,null,null,null,null,null,null,null,null,null,null,null,null,null,null,null,null,null,null,null,null,null,null,null,null,null,null,null,"84 - Vaucluse",null,null,null,null,null,null,null,null,null,null,null,null,null,null,null,null,null,null,null,null,null,null,null,null,null,null,null,null,null,null,null,null,null,null,null,"SS - Sassari"]
["EG","Egypt",{"$f":"  A87 & \" - \" & B87","v":"EG - Egypt"},null,null,null,null,null,null,null,null,null,null,null,null,null,null,null,null,null,null,null,null,null,null,null,null,null,null,null,null,null,null,null,null,null,null,null,null,null,null,null,null,null,null,null,null,null,null,null,null,null,null,null,null,null,null,null,null,null,null,null,null,null,null,null,null,null,null,null,null,null,null,null,null,null,null,null,null,null,null,null,null,null,null,null,null,null,null,null,null,null,null,null,null,null,null,null,null,null,null,null,null,null,null,null,null,"85 - Vendee",null,null,null,null,null,null,null,null,null,null,null,null,null,null,null,null,null,null,null,null,null,null,null,null,null,null,null,null,null,null,null,null,null,null,null,"SV - Savona"]
["EK","Equatorial Guin",{"$f":"  A88 & \" - \" & B88","v":"EK - Equatorial Guin"},null,null,null,null,null,null,null,null,null,null,null,null,null,null,null,null,null,null,null,null,null,null,null,null,null,null,null,null,null,null,null,null,null,null,null,null,null,null,null,null,null,null,null,null,null,null,null,null,null,null,null,null,null,null,null,null,null,null,null,null,null,null,null,null,null,null,null,null,null,null,null,null,null,null,null,null,null,null,null,null,null,null,null,null,null,null,null,null,null,null,null,null,null,null,null,null,null,null,null,null,null,null,null,null,"86 - Vienne",null,null,null,null,null,null,null,null,null,null,null,null,null,null,null,null,null,null,null,null,null,null,null,null,null,null,null,null,null,null,null,null,null,null,null,"TA - Taranto"]
["EN","Estonia",{"$f":"  A89 & \" - \" & B89","v":"EN - Estonia"},null,null,null,null,null,null,null,null,null,null,null,null,null,null,null,null,null,null,null,null,null,null,null,null,null,null,null,null,null,null,null,null,null,null,null,null,null,null,null,null,null,null,null,null,null,null,null,null,null,null,null,null,null,null,null,null,null,null,null,null,null,null,null,null,null,null,null,null,null,null,null,null,null,null,null,null,null,null,null,null,null,null,null,null,null,null,null,null,null,null,null,null,null,null,null,null,null,null,null,null,null,null,null,null,"87 - Vienne (Haute)",null,null,null,null,null,null,null,null,null,null,null,null,null,null,null,null,null,null,null,null,null,null,null,null,null,null,null,null,null,null,null,null,null,null,null,"TE - Teramo"]
["ER","Eritrea",{"$f":"  A90 & \" - \" & B90","v":"ER - Eritrea"},null,null,null,null,null,null,null,null,null,null,null,null,null,null,null,null,null,null,null,null,null,null,null,null,null,null,null,null,null,null,null,null,null,null,null,null,null,null,null,null,null,null,null,null,null,null,null,null,null,null,null,null,null,null,null,null,null,null,null,null,null,null,null,null,null,null,null,null,null,null,null,null,null,null,null,null,null,null,null,null,null,null,null,null,null,null,null,null,null,null,null,null,null,null,null,null,null,null,null,null,null,null,null,null,"88 - Vosges",null,null,null,null,null,null,null,null,null,null,null,null,null,null,null,null,null,null,null,null,null,null,null,null,null,null,null,null,null,null,null,null,null,null,null,"TN - Trento"]
["ES","El Salvador",{"$f":"  A91 & \" - \" & B91","v":"ES - El Salvador"},null,null,null,null,null,null,null,null,null,null,null,null,null,null,null,null,null,null,null,null,null,null,null,null,null,null,null,null,null,null,null,null,null,null,null,null,null,null,null,null,null,null,null,null,null,null,null,null,null,null,null,null,null,null,null,null,null,null,null,null,null,null,null,null,null,null,null,null,null,null,null,null,null,null,null,null,null,null,null,null,null,null,null,null,null,null,null,null,null,null,null,null,null,null,null,null,null,null,null,null,null,null,null,null,"89 - Yonne",null,null,null,null,null,null,null,null,null,null,null,null,null,null,null,null,null,null,null,null,null,null,null,null,null,null,null,null,null,null,null,null,null,null,null,"TO - Turin"]
["ET","Ethiopia",{"$f":"  A92 & \" - \" & B92","v":"ET - Ethiopia"},null,null,null,null,null,null,null,null,null,null,null,null,null,null,null,null,null,null,null,null,null,null,null,null,null,null,null,null,null,null,null,null,null,null,null,null,null,null,null,null,null,null,null,null,null,null,null,null,null,null,null,null,null,null,null,null,null,null,null,null,null,null,null,null,null,null,null,null,null,null,null,null,null,null,null,null,null,null,null,null,null,null,null,null,null,null,null,null,null,null,null,null,null,null,null,null,null,null,null,null,null,null,null,null,"90 - Territ.-de-Belfort",null,null,null,null,null,null,null,null,null,null,null,null,null,null,null,null,null,null,null,null,null,null,null,null,null,null,null,null,null,null,null,null,null,null,null,"TP - Trapani"]
["EU","European Union",{"$f":"  A93 & \" - \" & B93","v":"EU - European Union"},null,null,null,null,null,null,null,null,null,null,null,null,null,null,null,null,null,null,null,null,null,null,null,null,null,null,null,null,null,null,null,null,null,null,null,null,null,null,null,null,null,null,null,null,null,null,null,null,null,null,null,null,null,null,null,null,null,null,null,null,null,null,null,null,null,null,null,null,null,null,null,null,null,null,null,null,null,null,null,null,null,null,null,null,null,null,null,null,null,null,null,null,null,null,null,null,null,null,null,null,null,null,null,null,"91 - Essonne",null,null,null,null,null,null,null,null,null,null,null,null,null,null,null,null,null,null,null,null,null,null,null,null,null,null,null,null,null,null,null,null,null,null,null,"TR - Terni"]
["EZ","Czech Republic",{"$f":"  A94 & \" - \" & B94","v":"EZ - Czech Republic"},null,null,null,null,null,null,null,null,null,null,null,null,null,null,null,null,null,null,null,null,null,null,null,null,null,null,null,null,null,null,null,null,null,null,null,null,null,null,null,null,null,null,null,null,null,null,null,null,null,null,null,null,null,null,null,null,null,null,null,null,null,null,null,null,null,null,null,null,null,null,null,null,null,null,null,null,null,null,null,null,null,null,null,null,null,null,null,null,null,null,null,null,null,null,null,null,null,null,null,null,null,null,null,null,"92 - Hauts-de-Seine",null,null,null,null,null,null,null,null,null,null,null,null,null,null,null,null,null,null,null,null,null,null,null,null,null,null,null,null,null,null,null,null,null,null,null,"TS - Trieste"]
["FG","French Guayana",{"$f":"  A95 & \" - \" & B95","v":"FG - French Guayana"},null,null,null,null,null,null,null,null,null,null,null,null,null,null,null,null,null,null,null,null,null,null,null,null,null,null,null,null,null,null,null,null,null,null,null,null,null,null,null,null,null,null,null,null,null,null,null,null,null,null,null,null,null,null,null,null,null,null,null,null,null,null,null,null,null,null,null,null,null,null,null,null,null,null,null,null,null,null,null,null,null,null,null,null,null,null,null,null,null,null,null,null,null,null,null,null,null,null,null,null,null,null,null,null,"93 - Seine-Saint-Denis",null,null,null,null,null,null,null,null,null,null,null,null,null,null,null,null,null,null,null,null,null,null,null,null,null,null,null,null,null,null,null,null,null,null,null,"TV - Treviso"]
["FI","Finland",{"$f":"  A96 & \" - \" & B96","v":"FI - Finland"},null,null,null,null,null,null,null,null,null,null,null,null,null,null,null,null,null,null,null,null,null,null,null,null,null,null,null,null,null,null,null,null,null,null,null,null,null,null,null,null,null,null,null,null,null,null,null,null,null,null,null,null,null,null,null,null,null,null,null,null,null,null,null,null,null,null,null,null,null,null,null,null,null,null,null,null,null,null,null,null,null,null,null,null,null,null,null,null,null,null,null,null,null,null,null,null,null,null,null,null,null,null,null,null,"94 - Val-de-Marne",null,null,null,null,null,null,null,null,null,null,null,null,null,null,null,null,null,null,null,null,null,null,null,null,null,null,null,null,null,null,null,null,null,null,null,"UD - Udine"]
["FJ","Fiji",{"$f":"  A97 & \" - \" & B97","v":"FJ - Fiji"},null,null,null,null,null,null,null,null,null,null,null,null,null,null,null,null,null,null,null,null,null,null,null,null,null,null,null,null,null,null,null,null,null,null,null,null,null,null,null,null,null,null,null,null,null,null,null,null,null,null,null,null,null,null,null,null,null,null,null,null,null,null,null,null,null,null,null,null,null,null,null,null,null,null,null,null,null,null,null,null,null,null,null,null,null,null,null,null,null,null,null,null,null,null,null,null,null,null,null,null,null,null,null,null,"95 - Val-d'Oise",null,null,null,null,null,null,null,null,null,null,null,null,null,null,null,null,null,null,null,null,null,null,null,null,null,null,null,null,null,null,null,null,null,null,null,"VA - Varese"]
["FK","Falkland Islnds",{"$f":"  A98 & \" - \" & B98","v":"FK - Falkland Islnds"},null,null,null,null,null,null,null,null,null,null,null,null,null,null,null,null,null,null,null,null,null,null,null,null,null,null,null,null,null,null,null,null,null,null,null,null,null,null,null,null,null,null,null,null,null,null,null,null,null,null,null,null,null,null,null,null,null,null,null,null,null,null,null,null,null,null,null,null,null,null,null,null,null,null,null,null,null,null,null,null,null,null,null,null,null,null,null,null,null,null,null,null,null,null,null,null,null,null,null,null,null,null,null,null,"97 - D.O.M.-T.O.M.",null,null,null,null,null,null,null,null,null,null,null,null,null,null,null,null,null,null,null,null,null,null,null,null,null,null,null,null,null,null,null,null,null,null,null,"VB - Verbania"]
["FM","Micronesia",{"$f":"  A99 & \" - \" & B99","v":"FM - Micronesia"},null,null,null,null,null,null,null,null,null,null,null,null,null,null,null,null,null,null,null,null,null,null,null,null,null,null,null,null,null,null,null,null,null,null,null,null,null,null,null,null,null,null,null,null,null,null,null,null,null,null,null,null,null,null,null,null,null,null,null,null,null,null,null,null,null,null,null,null,null,null,null,null,null,null,null,null,null,null,null,null,null,null,null,null,null,null,null,null,null,null,null,null,null,null,null,null,null,null,null,null,null,null,null,null,"971 - Guadeloupe",null,null,null,null,null,null,null,null,null,null,null,null,null,null,null,null,null,null,null,null,null,null,null,null,null,null,null,null,null,null,null,null,null,null,null,"VC - Vercelli"]
["FO","Faroe Islands",{"$f":"  A100 & \" - \" & B100","v":"FO - Faroe Islands"},null,null,null,null,null,null,null,null,null,null,null,null,null,null,null,null,null,null,null,null,null,null,null,null,null,null,null,null,null,null,null,null,null,null,null,null,null,null,null,null,null,null,null,null,null,null,null,null,null,null,null,null,null,null,null,null,null,null,null,null,null,null,null,null,null,null,null,null,null,null,null,null,null,null,null,null,null,null,null,null,null,null,null,null,null,null,null,null,null,null,null,null,null,null,null,null,null,null,null,null,null,null,null,null,"972 - Martinique",null,null,null,null,null,null,null,null,null,null,null,null,null,null,null,null,null,null,null,null,null,null,null,null,null,null,null,null,null,null,null,null,null,null,null,"VE - Venice"]
["FP","French Polynesi",{"$f":"  A101 & \" - \" & B101","v":"FP - French Polynesi"},null,null,null,null,null,null,null,null,null,null,null,null,null,null,null,null,null,null,null,null,null,null,null,null,null,null,null,null,null,null,null,null,null,null,null,null,null,null,null,null,null,null,null,null,null,null,null,null,null,null,null,null,null,null,null,null,null,null,null,null,null,null,null,null,null,null,null,null,null,null,null,null,null,null,null,null,null,null,null,null,null,null,null,null,null,null,null,null,null,null,null,null,null,null,null,null,null,null,null,null,null,null,null,null,"973 - Guyane",null,null,null,null,null,null,null,null,null,null,null,null,null,null,null,null,null,null,null,null,null,null,null,null,null,null,null,null,null,null,null,null,null,null,null,"VI - Vicenza"]
["FQ","Baker Islands",{"$f":"  A102 & \" - \" & B102","v":"FQ - Baker Islands"},null,null,null,null,null,null,null,null,null,null,null,null,null,null,null,null,null,null,null,null,null,null,null,null,null,null,null,null,null,null,null,null,null,null,null,null,null,null,null,null,null,null,null,null,null,null,null,null,null,null,null,null,null,null,null,null,null,null,null,null,null,null,null,null,null,null,null,null,null,null,null,null,null,null,null,null,null,null,null,null,null,null,null,null,null,null,null,null,null,null,null,null,null,null,null,null,null,null,null,null,null,null,null,null,"974 - Reunion",null,null,null,null,null,null,null,null,null,null,null,null,null,null,null,null,null,null,null,null,null,null,null,null,null,null,null,null,null,null,null,null,null,null,null,"VR - Verona"]
["FR","France",{"$f":"  A103 & \" - \" & B103","v":"FR - France"},null,null,null,null,null,null,null,null,null,null,null,null,null,null,null,null,null,null,null,null,null,null,null,null,null,null,null,null,null,null,null,null,null,null,null,null,null,null,null,null,null,null,null,null,null,null,null,null,null,null,null,null,null,null,null,null,null,null,null,null,null,null,null,null,null,null,null,null,null,null,null,null,null,null,null,null,null,null,null,null,null,null,null,null,null,null,null,null,null,null,null,null,null,null,null,null,null,null,null,null,null,null,null,null,"975 - Saint-Pierre-et-Miq.",null,null,null,null,null,null,null,null,null,null,null,null,null,null,null,null,null,null,null,null,null,null,null,null,null,null,null,null,null,null,null,null,null,null,null,"VT - Viterbo"]
["FS","French S.Territ",{"$f":"  A104 & \" - \" & B104","v":"FS - French S.Territ"},null,null,null,null,null,null,null,null,null,null,null,null,null,null,null,null,null,null,null,null,null,null,null,null,null,null,null,null,null,null,null,null,null,null,null,null,null,null,null,null,null,null,null,null,null,null,null,null,null,null,null,null,null,null,null,null,null,null,null,null,null,null,null,null,null,null,null,null,null,null,null,null,null,null,null,null,null,null,null,null,null,null,null,null,null,null,null,null,null,null,null,null,null,null,null,null,null,null,null,null,null,null,null,null,"976 - Wallis-et-Futuna",null,null,null,null,null,null,null,null,null,null,null,null,null,null,null,null,null,null,null,null,null,null,null,null,null,null,null,null,null,null,null,null,null,null,null,"VV - Vibo Valentia"]
["GA","Gambia",{"$f":"  A105 & \" - \" & B105","v":"GA - Gambia"},null,null,null,null,null,null,null,null,null,null,null,null,null,null,null,null,null,null,null,null,null,null,null,null,null,null,null,null,null,null,null,null,null,null,null,null,null,null,null,null,null,null,null,null,null,null,null,null,null,null,null,null,null,null,null,null,null,null,null,null,null,null,null,null,null,null,null,null,null,null,null,null,null,null,null,null,null,null,null,null,null,null,null,null,null,null,null,null,null,null,null,null,null,null,null,null,null,null,null,null,null,null,null,null,"99 - Hors-France"]
["GB","Gabon",{"$f":"  A106 & \" - \" & B106","v":"GB - Gabon"}]
["GF","French Guayana",{"$f":"  A107 & \" - \" & B107","v":"GF - French Guayana"}]
["GG","Guernsey",{"$f":"  A108 & \" - \" & B108","v":"GG - Guernsey"}]
["GH","Ghana",{"$f":"  A109 & \" - \" & B109","v":"GH - Ghana"}]
["GI","Gibraltar",{"$f":"  A110 & \" - \" & B110","v":"GI - Gibraltar"}]
["GJ","Grenada",{"$f":"  A111 & \" - \" & B111","v":"GJ - Grenada"}]
["GL","Greenland",{"$f":"  A112 & \" - \" & B112","v":"GL - Greenland"}]
["GM","Germany",{"$f":"  A113 & \" - \" & B113","v":"GM - Germany"}]
["GO","Glorioso Island",{"$f":"  A114 & \" - \" & B114","v":"GO - Glorioso Island"}]
["GP","Guadeloupe",{"$f":"  A115 & \" - \" & B115","v":"GP - Guadeloupe"}]
["GQ","Guam",{"$f":"  A116 & \" - \" & B116","v":"GQ - Guam"}]
["GR","Greece",{"$f":"  A117 & \" - \" & B117","v":"GR - Greece"}]
["GT","Guatemala",{"$f":"  A118 & \" - \" & B118","v":"GT - Guatemala"}]
["GU","Guam",{"$f":"  A119 & \" - \" & B119","v":"GU - Guam"}]
["GV","Guinea",{"$f":"  A120 & \" - \" & B120","v":"GV - Guinea"}]
["GY","Guyana",{"$f":"  A121 & \" - \" & B121","v":"GY - Guyana"}]
["GZ","Gaza Strip",{"$f":"  A122 & \" - \" & B122","v":"GZ - Gaza Strip"}]
["HA","Haiti",{"$f":"  A123 & \" - \" & B123","v":"HA - Haiti"}]
["HK","Hong Kong",{"$f":"  A124 & \" - \" & B124","v":"HK - Hong Kong"}]
["HM","Heard/McDon.Isl",{"$f":"  A125 & \" - \" & B125","v":"HM - Heard/McDon.Isl"}]
["HO","Honduras",{"$f":"  A126 & \" - \" & B126","v":"HO - Honduras"}]
["HQ","Howland Island",{"$f":"  A127 & \" - \" & B127","v":"HQ - Howland Island"}]
["HR","Croatia",{"$f":"  A128 & \" - \" & B128","v":"HR - Croatia"}]
["HU","Hungary",{"$f":"  A129 & \" - \" & B129","v":"HU - Hungary"}]
["IC","Iceland",{"$f":"  A130 & \" - \" & B130","v":"IC - Iceland"}]
["ID","Indonesia",{"$f":"  A131 & \" - \" & B131","v":"ID - Indonesia"}]
["IE","Ireland",{"$f":"  A132 & \" - \" & B132","v":"IE - Ireland"}]
["IM","Man, Isle of",{"$f":"  A133 & \" - \" & B133","v":"IM - Man, Isle of"}]
["IN","India",{"$f":"  A134 & \" - \" & B134","v":"IN - India"}]
["IO","Brit.Ind.Oc.Ter",{"$f":"  A135 & \" - \" & B135","v":"IO - Brit.Ind.Oc.Ter"}]
["IP","Clipperton Isla",{"$f":"  A136 & \" - \" & B136","v":"IP - Clipperton Isla"}]
["IR","Iran",{"$f":"  A137 & \" - \" & B137","v":"IR - Iran"}]
["IS","Israel",{"$f":"  A138 & \" - \" & B138","v":"IS - Israel"}]
["IT","Italy",{"$f":"  A139 & \" - \" & B139","v":"IT - Italy"}]
["IV","Cote D'Ivoire (",{"$f":"  A140 & \" - \" & B140","v":"IV - Cote D'Ivoire ("}]
["IZ","Iraq",{"$f":"  A141 & \" - \" & B141","v":"IZ - Iraq"}]
["JE","Jersey",{"$f":"  A142 & \" - \" & B142","v":"JE - Jersey"}]
["JM","Jamaica",{"$f":"  A143 & \" - \" & B143","v":"JM - Jamaica"}]
["JN","Jan Mayen",{"$f":"  A144 & \" - \" & B144","v":"JN - Jan Mayen"}]
["JO","Jordan",{"$f":"  A145 & \" - \" & B145","v":"JO - Jordan"}]
["JP","Japan",{"$f":"  A146 & \" - \" & B146","v":"JP - Japan"}]
["JQ","Johnston Atoll",{"$f":"  A147 & \" - \" & B147","v":"JQ - Johnston Atoll"}]
["JU","Juan de Nova Is",{"$f":"  A148 & \" - \" & B148","v":"JU - Juan de Nova Is"}]
["KE","Kenya",{"$f":"  A149 & \" - \" & B149","v":"KE - Kenya"}]
["KG","Kyrgyzstan",{"$f":"  A150 & \" - \" & B150","v":"KG - Kyrgyzstan"}]
["KH","Cambodia",{"$f":"  A151 & \" - \" & B151","v":"KH - Cambodia"}]
["KI","Kiribati",{"$f":"  A152 & \" - \" & B152","v":"KI - Kiribati"}]
["KM","Comoros",{"$f":"  A153 & \" - \" & B153","v":"KM - Comoros"}]
["KN","North Korea",{"$f":"  A154 & \" - \" & B154","v":"KN - North Korea"}]
["KQ","Kingman Reef",{"$f":"  A155 & \" - \" & B155","v":"KQ - Kingman Reef"}]
["KR","South Korea",{"$f":"  A156 & \" - \" & B156","v":"KR - South Korea"}]
["KT","Christmas Islan",{"$f":"  A157 & \" - \" & B157","v":"KT - Christmas Islan"}]
["KU","Kuwait",{"$f":"  A158 & \" - \" & B158","v":"KU - Kuwait"}]
["KY","Cayman Islands",{"$f":"  A159 & \" - \" & B159","v":"KY - Cayman Islands"}]
["KZ","Kazakhstan",{"$f":"  A160 & \" - \" & B160","v":"KZ - Kazakhstan"}]
["LA","Laos",{"$f":"  A161 & \" - \" & B161","v":"LA - Laos"}]
["LE","Lebanon",{"$f":"  A162 & \" - \" & B162","v":"LE - Lebanon"}]
["LG","Latvia",{"$f":"  A163 & \" - \" & B163","v":"LG - Latvia"}]
["LH","Lithuania",{"$f":"  A164 & \" - \" & B164","v":"LH - Lithuania"}]
["LI","Liberia",{"$f":"  A165 & \" - \" & B165","v":"LI - Liberia"}]
["LO","Slovakia",{"$f":"  A166 & \" - \" & B166","v":"LO - Slovakia"}]
["LQ","Palmyra Atoll",{"$f":"  A167 & \" - \" & B167","v":"LQ - Palmyra Atoll"}]
["LS","Liechtenstein",{"$f":"  A168 & \" - \" & B168","v":"LS - Liechtenstein"}]
["LT","Lesotho",{"$f":"  A169 & \" - \" & B169","v":"LT - Lesotho"}]
["LU","Luxembourg",{"$f":"  A170 & \" - \" & B170","v":"LU - Luxembourg"}]
["LY","Libya",{"$f":"  A171 & \" - \" & B171","v":"LY - Libya"}]
["MA","Madagascar",{"$f":"  A172 & \" - \" & B172","v":"MA - Madagascar"}]
["MB","Martinique",{"$f":"  A173 & \" - \" & B173","v":"MB - Martinique"}]
["MC","Macau",{"$f":"  A174 & \" - \" & B174","v":"MC - Macau"}]
["MD","Moldova",{"$f":"  A175 & \" - \" & B175","v":"MD - Moldova"}]
["ME","Montenegro",{"$f":"  A176 & \" - \" & B176","v":"ME - Montenegro"}]
["MF","Saint Martin",{"$f":"  A177 & \" - \" & B177","v":"MF - Saint Martin"}]
["MG","Mongolia",{"$f":"  A178 & \" - \" & B178","v":"MG - Mongolia"}]
["MH","Montserrat",{"$f":"  A179 & \" - \" & B179","v":"MH - Montserrat"}]
["MI","Malawi",{"$f":"  A180 & \" - \" & B180","v":"MI - Malawi"}]
["MJ","Montenegro",{"$f":"  A181 & \" - \" & B181","v":"MJ - Montenegro"}]
["MK","Macedonia",{"$f":"  A182 & \" - \" & B182","v":"MK - Macedonia"}]
["ML","Mali",{"$f":"  A183 & \" - \" & B183","v":"ML - Mali"}]
["MM","Myanmar (Burma)",{"$f":"  A184 & \" - \" & B184","v":"MM - Myanmar (Burma)"}]
["MN","Monaco",{"$f":"  A185 & \" - \" & B185","v":"MN - Monaco"}]
["MO","Morocco",{"$f":"  A186 & \" - \" & B186","v":"MO - Morocco"}]
["MP","Mauritius",{"$f":"  A187 & \" - \" & B187","v":"MP - Mauritius"}]
["MQ","Midway Islands",{"$f":"  A188 & \" - \" & B188","v":"MQ - Midway Islands"}]
["MR","Mauretania",{"$f":"  A189 & \" - \" & B189","v":"MR - Mauretania"}]
["MT","Malta",{"$f":"  A190 & \" - \" & B190","v":"MT - Malta"}]
["MU","Oman",{"$f":"  A191 & \" - \" & B191","v":"MU - Oman"}]
["MV","Maldives",{"$f":"  A192 & \" - \" & B192","v":"MV - Maldives"}]
["MX","Mexico",{"$f":"  A193 & \" - \" & B193","v":"MX - Mexico"}]
["MY","Malaysia",{"$f":"  A194 & \" - \" & B194","v":"MY - Malaysia"}]
["MZ","Mozambique",{"$f":"  A195 & \" - \" & B195","v":"MZ - Mozambique"}]
["NA","Namibia",{"$f":"  A196 & \" - \" & B196","v":"NA - Namibia"}]
["NC","New Caledonia",{"$f":"  A197 & \" - \" & B197","v":"NC - New Caledonia"}]
["NE","Niue",{"$f":"  A198 & \" - \" & B198","v":"NE - Niue"}]
["NF","Norfolk Islands",{"$f":"  A199 & \" - \" & B199","v":"NF - Norfolk Islands"}]
["NG","Niger",{"$f":"  A200 & \" - \" & B200","v":"NG - Niger"}]
["NH","Vanuatu",{"$f":"  A201 & \" - \" & B201","v":"NH - Vanuatu"}]
["NI","Nigeria",{"$f":"  A202 & \" - \" & B202","v":"NI - Nigeria"}]
["NL","Netherlands",{"$f":"  A203 & \" - \" & B203","v":"NL - Netherlands"}]
["NO","Norway",{"$f":"  A204 & \" - \" & B204","v":"NO - Norway"}]
["NP","Nepal",{"$f":"  A205 & \" - \" & B205","v":"NP - Nepal"}]
["NR","Nauru",{"$f":"  A206 & \" - \" & B206","v":"NR - Nauru"}]
["NS","Suriname",{"$f":"  A207 & \" - \" & B207","v":"NS - Suriname"}]
["NT","NATO",{"$f":"  A208 & \" - \" & B208","v":"NT - NATO"}]
["NU","Nicaragua",{"$f":"  A209 & \" - \" & B209","v":"NU - Nicaragua"}]
["NZ","New Zealand",{"$f":"  A210 & \" - \" & B210","v":"NZ - New Zealand"}]
["OR","Orange",{"$f":"  A211 & \" - \" & B211","v":"OR - Orange"}]
["PA","Paraguay",{"$f":"  A212 & \" - \" & B212","v":"PA - Paraguay"}]
["PC","Pitcairn Islnds",{"$f":"  A213 & \" - \" & B213","v":"PC - Pitcairn Islnds"}]
["PE","Peru",{"$f":"  A214 & \" - \" & B214","v":"PE - Peru"}]
["PF","Paracel Islands",{"$f":"  A215 & \" - \" & B215","v":"PF - Paracel Islands"}]
["PG","Spratly Islands","PG - Spratly Islands"]
["PK","Pakistan","PK - Pakistan"]
["PL","Poland","PL - Poland"]
["PM","Panama","PM - Panama"]
["PO","Portugal","PO - Portugal"]
["PP","Papua- New Guin","PP - Papua- New Guin"]
["PS","Palestine","PS - Palestine"]
["PT","Portugal","PT - Portugal"]
["PU","Guinea-Bissau","PU - Guinea-Bissau"]
["PW","Palau","PW - Palau"]
["QA","Qatar","QA - Qatar"]
["RB","Serbia/Monten.","RB - Serbia/Monten."]
["RE","Reunion","RE - Reunion"]
["RM","Marshall Islnds","RM - Marshall Islnds"]
["RO","Romania","RO - Romania"]
["RP","Philippines","RP - Philippines"]
["RQ","Puerto Rico","RQ - Puerto Rico"]
["RS","Serbia","RS - Serbia"]
["RW","Rwanda","RW - Rwanda"]
["SA","Saudi Arabia","SA - Saudi Arabia"]
["SB","St. Pierre and","SB - St. Pierre and"]
["SC","St Kitts and Ne","SC - St Kitts and Ne"]
["SE","Seychelles","SE - Seychelles"]
["SF","South Africa","SF - South Africa"]
["SG","Senegal","SG - Senegal"]
["SH","Saint Helena","SH - Saint Helena"]
["SI","Slovenia","SI - Slovenia"]
["SL","Sierra Leone","SL - Sierra Leone"]
["SM","San Marino","SM - San Marino"]
["SN","Singapore","SN - Singapore"]
["SO","Somalia","SO - Somalia"]
["SP","Spain","SP - Spain"]
["SS","South Sudan","SS - South Sudan"]
["ST","St. Lucia","ST - St. Lucia"]
["SU","Sudan","SU - Sudan"]
["SV","Svalbard","SV - Svalbard"]
["SW","Sweden","SW - Sweden"]
["SX","Sint Maarten","SX - Sint Maarten"]
["SY","Syria","SY - Syria"]
["SZ","Switzerland","SZ - Switzerland"]
["TD","Trinidad and To","TD - Trinidad and To"]
["TE","Tromelin Island","TE - Tromelin Island"]
["TF","French S.Territ","TF - French S.Territ"]
["TH","Thailand","TH - Thailand"]
["TI","Tajikistan","TI - Tajikistan"]
["TJ","Tajikistan","TJ - Tajikistan"]
["TK","Turksh Caicosin","TK - Turksh Caicosin"]
["TL","Timor-Leste","TL - Timor-Leste"]
["TN","Tonga","TN - Tonga"]
["TO","Togo","TO - Togo"]
["TS","Tunisia","TS - Tunisia"]
["TT","East Timor","TT - East Timor"]
["TU","Turkey","TU - Turkey"]
["TV","Tuvalu","TV - Tuvalu"]
["TW","Taiwan","TW - Taiwan"]
["TX","Turkmenistan","TX - Turkmenistan"]
["TZ","Tanzania","TZ - Tanzania"]
["UC","Unknown Country","UC - Unknown Country"]
["UG","Uganda","UG - Uganda"]
["UK","United Kingdom","UK - United Kingdom"]
["UM","Minor Outl.Isl.","UM - Minor Outl.Isl."]
["UN","United Nations","UN - United Nations"]
["UP","Ukraine","UP - Ukraine"]
["UV","Burkina Faso",{"$f":"  A279 & \" - \" & B279","v":"UV - Burkina Faso"}]
["UY","Uruguay","UY - Uruguay"]
["UZ","Uzbekistan","UZ - Uzbekistan"]
["VA","Vatican City","VA - Vatican City"]
["VC","St. Vincent","VC - St. Vincent"]
["VE","Venezuela","VE - Venezuela"]
["VG","Brit.Virgin Is.","VG - Brit.Virgin Is."]
["VI","British Virgin","VI - British Virgin"]
["VM","Vietnam","VM - Vietnam"]
["VP","Corsica","VP - Corsica"]
["VQ","American Virgin","VQ - American Virgin"]
["VU","Vanuatu","VU - Vanuatu"]
["WA","Namibia","WA - Namibia"]
["WE","West Bank","WE - West Bank"]
["WF","Wallis,Futuna","WF - Wallis,Futuna"]
["WI","West Sahara","WI - West Sahara"]
["WQ","Wake Island","WQ - Wake Island"]
["WS","Samoa","WS - Samoa"]
["WZ","Swaziland","WZ - Swaziland"]
["XA","Ascension","XA - Ascension"]
["XC","Channel Islands","XC - Channel Islands"]
["XE","United Kingdom","XE - United Kingdom"]
["XI","Aland Island","XI - Aland Island"]
["XM","Myanmar","XM - Myanmar"]
["XN","Northern Irelan","XN - Northern Irelan"]
["XR","Slovak Republic","XR - Slovak Republic"]
["XS","Scotland","XS - Scotland"]
["XT","Tristan Da Cunh","XT - Tristan Da Cunh"]
["XW","Wales","XW - Wales"]
["XX","COUNTRIES-OTHER","XX - COUNTRIES-OTHER"]
["XY","Canary Islands","XY - Canary Islands"]
["XZ","Azores","XZ - Azores"]
["YI","Yugoslavia","YI - Yugoslavia"]
["YM","Yemen","YM - Yemen"]
["ZA","Zambia","ZA - Zambia"]
["ZI","Zimbabwe","ZI - Zimbabwe"]
[]
["Country","State","Description","Concat"]
["AR","00","Capital Federal",{"$f":"  B317 & \" - \" & C317","v":"00 - Capital Federal"}]
["AR","01","Buenos Aires",{"$f":"  B318 & \" - \" & C318","v":"01 - Buenos Aires"}]
["AR","02","Catamarca","02 - Catamarca"]
["AR","03","Cordoba","03 - Cordoba"]
["AR","04","Corrientes","04 - Corrientes"]
["AR","05","Entre Rios","05 - Entre Rios"]
["AR","06","Jujuy","06 - Jujuy"]
["AR","07","Mendoza","07 - Mendoza"]
["AR","08","La Rioja","08 - La Rioja"]
["AR","09","Salta","09 - Salta"]
["AR","10","San Juan","10 - San Juan"]
["AR","11","San Luis","11 - San Luis"]
["AR","12","Santa Fe","12 - Santa Fe"]
["AR","13","Santiago del Estero","13 - Santiago del Estero"]
["AR","14","Tucuman","14 - Tucuman"]
["AR","16","Chaco","16 - Chaco"]
["AR","17","Chubut","17 - Chubut"]
["AR","18","Formosa","18 - Formosa"]
["AR","19","Misiones","19 - Misiones"]
["AR","20","Neuquen","20 - Neuquen"]
["AR","21","La Pampa","21 - La Pampa"]
["AR","22","Rio Negro","22 - Rio Negro"]
["AR","23","Santa Cruz","23 - Santa Cruz"]
["AR","24","Tierra de Fuego","24 - Tierra de Fuego"]
["BE","01","Antwerp","01 - Antwerp"]
["BE","02","Brabant (Flemish)","02 - Brabant (Flemish)"]
["BE","03","Hainaut","03 - Hainaut"]
["BE","04","Liege","04 - Liege"]
["BE","05","Limburg","05 - Limburg"]
["BE","06","Luxembourg","06 - Luxembourg"]
["BE","07","Namur","07 - Namur"]
["BE","08","Oost-Vlaanderen","08 - Oost-Vlaanderen"]
["BE","09","West-Vlaanderen","09 - West-Vlaanderen"]
["BE","10","Brabant (Walloon)","10 - Brabant (Walloon)"]
["BE","11","Brussels (Capital)","11 - Brussels (Capital)"]
["BR","AC","Acre","AC - Acre"]
["BR","AL","Alagoas","AL - Alagoas"]
["BR","AM","Amazon","AM - Amazon"]
["BR","AP","Amapa","AP - Amapa"]
["BR","BA","Bahia","BA - Bahia"]
["BR","CE","Ceara","CE - Ceara"]
["BR","DF","Brasilia","DF - Brasilia"]
["BR","ES","Espirito Santo","ES - Espirito Santo"]
["BR","GO","Goias","GO - Goias"]
["BR","MA","Maranhao","MA - Maranhao"]
["BR","MG","Minas Gerais","MG - Minas Gerais"]
["BR","MS","Mato Grosso do Sul","MS - Mato Grosso do Sul"]
["BR","MT","Mato Grosso","MT - Mato Grosso"]
["BR","PA","Para","PA - Para"]
["BR","PB","Paraiba","PB - Paraiba"]
["BR","PE","Pernambuco","PE - Pernambuco"]
["BR","PI","Piaui","PI - Piaui"]
["BR","PR","Parana","PR - Parana"]
["BR","RJ","Rio de Janeiro","RJ - Rio de Janeiro"]
["BR","RN","Rio Grande do Norte","RN - Rio Grande do Norte"]
["BR","RO","Rondonia","RO - Rondonia"]
["BR","RR","Roraima","RR - Roraima"]
["BR","RS","Rio Grande do Sul","RS - Rio Grande do Sul"]
["BR","SC","Santa Catarina","SC - Santa Catarina"]
["BR","SE","Sergipe","SE - Sergipe"]
["BR","SP","Sao Paulo","SP - Sao Paulo"]
["BR","TO","Tocantins","TO - Tocantins"]
["CA","AB","Alberta","AB - Alberta"]
["CA","BC","British Columbia","BC - British Columbia"]
["CA","MB","Manitoba","MB - Manitoba"]
["CA","NB","New Brunswick",{"$f":"  B382 & \" - \" & C382","v":"NB - New Brunswick"}]
["CA","NL","Newfoundland & Labr.","NL - Newfoundland & Labr."]
["CA","NS","Nova Scotia","NS - Nova Scotia"]
["CA","NT","Northwest Terr.","NT - Northwest Terr."]
["CA","NU","Nunavut","NU - Nunavut"]
["CA","ON","Ontario","ON - Ontario"]
["CA","PE","Prince Edward Island","PE - Prince Edward Island"]
["CA","QC","Quebec","QC - Quebec"]
["CA","SK","Saskatchewan","SK - Saskatchewan"]
["CA","YT","Yukon Territory","YT - Yukon Territory"]
["CL","01","I - Iquique","01 - I - Iquique"]
["CL","02","II - Antofagasta","02 - II - Antofagasta"]
["CL","03","III - Copiapo","03 - III - Copiapo"]
["CL","04","IV - La Serena","04 - IV - La Serena"]
["CL","05","V - Valparaiso","05 - V - Valparaiso"]
["CL","06","VI - Rancagua","06 - VI - Rancagua"]
["CL","07","VII - Talca","07 - VII - Talca"]
["CL","08","VIII - Concepcion","08 - VIII - Concepcion"]
["CL","09","IX - Temuco","09 - IX - Temuco"]
["CL","10","X - Puerto Montt","10 - X - Puerto Montt"]
["CL","11","XI - Coyhaique","11 - XI - Coyhaique"]
["CL","12","XII - Punta Arenas","12 - XII - Punta Arenas"]
["CL","13","RM - Santiago","13 - RM - Santiago"]
["CO","05","ANTIOQUIA","05 - ANTIOQUIA"]
["CO","08","ATLANTICO","08 - ATLANTICO"]
["CO","11","BOGOTA","11 - BOGOTA"]
["CO","13","BOLIVAR","13 - BOLIVAR"]
["CO","15","BOYACA","15 - BOYACA"]
["CO","17","CALDAS","17 - CALDAS"]
["CO","18","CAQUETA","18 - CAQUETA"]
["CO","19","CAUCA","19 - CAUCA"]
["CO","20","CESAR","20 - CESAR"]
["CO","23","CORDOBA","23 - CORDOBA"]
["CO","25","CUNDINAMARCA","25 - CUNDINAMARCA"]
["CO","27","CHOCO","27 - CHOCO"]
["CO","41","HUILA","41 - HUILA"]
["CO","44","LA GUAJIRA","44 - LA GUAJIRA"]
["CO","47","MAGDALENA","47 - MAGDALENA"]
["CO","50","META","50 - META"]
["CO","52","NARINO","52 - NARINO"]
["CO","54","NORTE SANTANDER","54 - NORTE SANTANDER"]
["CO","63","QUINDIO","63 - QUINDIO"]
["CO","66","RISARALDA","66 - RISARALDA"]
["CO","68","SANTANDER","68 - SANTANDER"]
["CO","70","SUCRE","70 - SUCRE"]
["CO","73","TOLIMA","73 - TOLIMA"]
["CO","76","VALLE","76 - VALLE"]
["CO","81","ARAUCA","81 - ARAUCA"]
["CO","85","CASANARE","85 - CASANARE"]
["CO","86","PUTUMAYO","86 - PUTUMAYO"]
["CO","88","SAN ANDRES","88 - SAN ANDRES"]
["CO","91","AMAZONAS","91 - AMAZONAS"]
["CO","94","GUAINIA","94 - GUAINIA"]
["CO","95","GUAVIARE","95 - GUAVIARE"]
["CO","97","VAUPES","97 - VAUPES"]
["CO","99","VICHADA","99 - VICHADA"]
["CZ","11","Praha","11 - Praha"]
["CZ","21","Stredocesky","21 - Stredocesky"]
["CZ","31","Jihocesky","31 - Jihocesky"]
["CZ","32","Plzensky","32 - Plzensky"]
["CZ","41","Karlovarsky","41 - Karlovarsky"]
["CZ","42","Ustecky","42 - Ustecky"]
["CZ","51","Liberecky","51 - Liberecky"]
["CZ","52","Kralovehradecky","52 - Kralovehradecky"]
["CZ","53","Pardubicky",{"$f":"  B446 & \" - \" & C446","v":"53 - Pardubicky"}]
["CZ","61","Vysocina","61 - Vysocina"]
["CZ","62","Jihomoravsky","62 - Jihomoravsky"]
["CZ","71","Olomoucky","71 - Olomoucky"]
["CZ","72","Zlinsky","72 - Zlinsky"]
["CZ","81","Moravskoslezsky","81 - Moravskoslezsky"]
["DE","01","Schleswig-Holstein","01 - Schleswig-Holstein"]
["DE","02","Hamburg","02 - Hamburg"]
["DE","03","Lower Saxony","03 - Lower Saxony"]
["DE","04","Bremen","04 - Bremen"]
["DE","05","Nrth Rhine Westfalia","05 - Nrth Rhine Westfalia"]
["DE","06","Hessen","06 - Hessen"]
["DE","07","Rhineland Palatinate","07 - Rhineland Palatinate"]
["DE","08","Baden-Wurttemberg","08 - Baden-Wurttemberg"]
["DE","09","Bavaria","09 - Bavaria"]
["DE","10","Saarland","10 - Saarland"]
["DE","11","Berlin","11 - Berlin"]
["DE","12","Brandenburg","12 - Brandenburg"]
["DE","13","Mecklenburg-Vorpomm.","13 - Mecklenburg-Vorpomm."]
["DE","14","Saxony","14 - Saxony"]
["DE","15","Saxony-Anhalt","15 - Saxony-Anhalt"]
["DE","16","Thuringia","16 - Thuringia"]
["FI","001","Ahvenanmaa","001 - Ahvenanmaa"]
["FI","002","Southern Finnland","002 - Southern Finnland"]
["FI","003","Eastern Finnland","003 - Eastern Finnland"]
["FI","004","Lappi","004 - Lappi"]
["FI","005","Western Finnland","005 - Western Finnland"]
["FI","006","Oulu","006 - Oulu"]
["FR","01","Ain","01 - Ain"]
["FR","02","Aisne","02 - Aisne"]
["FR","03","Allier","03 - Allier"]
["FR","04","Alpes (Hte-Provence)","04 - Alpes (Hte-Provence)"]
["FR","05","Alpes (Hautes)","05 - Alpes (Hautes)"]
["FR","06","Alpes-Maritimes","06 - Alpes-Maritimes"]
["FR","07","Ardeche","07 - Ardeche"]
["FR","08","Ardennes","08 - Ardennes"]
["FR","09","Ariege","09 - Ariege"]
["FR","10","Aube","10 - Aube"]
["FR","11","Aude","11 - Aude"]
["FR","12","Aveyron","12 - Aveyron"]
["FR","13","Bouches-du-Rhone","13 - Bouches-du-Rhone"]
["FR","14","Calvados","14 - Calvados"]
["FR","15","Cantal","15 - Cantal"]
["FR","16","Charente","16 - Charente"]
["FR","17","Charente-Maritime","17 - Charente-Maritime"]
["FR","18","Cher","18 - Cher"]
["FR","19","Correze","19 - Correze"]
["FR","21","Cote-d'Or","21 - Cote-d'Or"]
["FR","22","Cotes-d'Armor","22 - Cotes-d'Armor"]
["FR","23","Creuse","23 - Creuse"]
["FR","24","Dordogne","24 - Dordogne"]
["FR","25","Doubs","25 - Doubs"]
["FR","26","Drome","26 - Drome"]
["FR","27","Eure","27 - Eure"]
["FR","28","Eure-et-Loir","28 - Eure-et-Loir"]
["FR","29","Finistere","29 - Finistere"]
["FR","2A","Corse-du-Sud","2A - Corse-du-Sud"]
["FR","2B","Corse-du-Nord","2B - Corse-du-Nord"]
["FR","30","Gard","30 - Gard"]
["FR","31","Garonne (Haute)","31 - Garonne (Haute)"]
["FR","32","Gers","32 - Gers"]
["FR","33","Gironde","33 - Gironde"]
["FR","34","Herault","34 - Herault"]
["FR","35","Ille-et-Vilaine","35 - Ille-et-Vilaine"]
["FR","36","Indre",{"$f":"  B510 & \" - \" & C510","v":"36 - Indre"}]
["FR","37","Indre-et-Loire","37 - Indre-et-Loire"]
["FR","38","Isere","38 - Isere"]
["FR","39","Jura","39 - Jura"]
["FR","40","Landes","40 - Landes"]
["FR","41","Loir-et-Cher","41 - Loir-et-Cher"]
["FR","42","Loire","42 - Loire"]
["FR","43","Loire (Haute)","43 - Loire (Haute)"]
["FR","44","Loire-Atlantique","44 - Loire-Atlantique"]
["FR","45","Loiret","45 - Loiret"]
["FR","46","Lot","46 - Lot"]
["FR","47","Lot-et-Garonne","47 - Lot-et-Garonne"]
["FR","48","Lozere","48 - Lozere"]
["FR","49","Maine-et-Loire","49 - Maine-et-Loire"]
["FR","50","Manche","50 - Manche"]
["FR","51","Marne","51 - Marne"]
["FR","52","Marne (Haute)","52 - Marne (Haute)"]
["FR","53","Mayenne","53 - Mayenne"]
["FR","54","Meurthe-et-Moselle","54 - Meurthe-et-Moselle"]
["FR","55","Meuse","55 - Meuse"]
["FR","56","Morbihan","56 - Morbihan"]
["FR","57","Moselle","57 - Moselle"]
["FR","58","Nievre","58 - Nievre"]
["FR","59","Nord","59 - Nord"]
["FR","60","Oise","60 - Oise"]
["FR","61","Orne","61 - Orne"]
["FR","62","Pas-de-Calais","62 - Pas-de-Calais"]
["FR","63","Puy-de-Dome","63 - Puy-de-Dome"]
["FR","64","Pyrenees-Atlantiques","64 - Pyrenees-Atlantiques"]
["FR","65","Pyrenees (Hautes)","65 - Pyrenees (Hautes)"]
["FR","66","Pyrenees-Orientales","66 - Pyrenees-Orientales"]
["FR","67","Bas-Rhin","67 - Bas-Rhin"]
["FR","68","Haut-Rhin","68 - Haut-Rhin"]
["FR","69","Rhone","69 - Rhone"]
["FR","70","Saone (Haute)","70 - Saone (Haute)"]
["FR","71","Saone-et-Loire","71 - Saone-et-Loire"]
["FR","72","Sarthe","72 - Sarthe"]
["FR","73","Savoie","73 - Savoie"]
["FR","74","Savoie (Haute)","74 - Savoie (Haute)"]
["FR","75","Paris","75 - Paris"]
["FR","76","Seine-Maritime","76 - Seine-Maritime"]
["FR","77","Seine-et-Marne","77 - Seine-et-Marne"]
["FR","78","Yvelines","78 - Yvelines"]
["FR","79","Sevres (Deux)","79 - Sevres (Deux)"]
["FR","80","Somme","80 - Somme"]
["FR","81","Tarn","81 - Tarn"]
["FR","82","Tarn-et-Garonne","82 - Tarn-et-Garonne"]
["FR","83","Var","83 - Var"]
["FR","84","Vaucluse","84 - Vaucluse"]
["FR","85","Vendee","85 - Vendee"]
["FR","86","Vienne","86 - Vienne"]
["FR","87","Vienne (Haute)","87 - Vienne (Haute)"]
["FR","88","Vosges","88 - Vosges"]
["FR","89","Yonne","89 - Yonne"]
["FR","90","Territ.-de-Belfort","90 - Territ.-de-Belfort"]
["FR","91","Essonne","91 - Essonne"]
["FR","92","Hauts-de-Seine","92 - Hauts-de-Seine"]
["FR","93","Seine-Saint-Denis","93 - Seine-Saint-Denis"]
["FR","94","Val-de-Marne","94 - Val-de-Marne"]
["FR","95","Val-d'Oise","95 - Val-d'Oise"]
["FR","97","D.O.M.-T.O.M.","97 - D.O.M.-T.O.M."]
["FR","971","Guadeloupe","971 - Guadeloupe"]
["FR","972","Martinique","972 - Martinique"]
["FR","973","Guyane","973 - Guyane"]
["FR","974","Reunion",{"$f":"  B574 & \" - \" & C574","v":"974 - Reunion"}]
["FR","975","Saint-Pierre-et-Miq.","975 - Saint-Pierre-et-Miq."]
["FR","976","Wallis-et-Futuna","976 - Wallis-et-Futuna"]
["FR","99","Hors-France","99 - Hors-France"]
["GB","EC","London EC","EC - London EC"]
["GG","01","St Peter Port","01 - St Peter Port"]
["GR","01","Aitolia kai Akarnan.","01 - Aitolia kai Akarnan."]
["GR","02","Akhaia","02 - Akhaia"]
["GR","03","Argolis","03 - Argolis"]
["GR","04","Arkadhia","04 - Arkadhia"]
["GR","05","Arta","05 - Arta"]
["GR","06","Attiki","06 - Attiki"]
["GR","07","Dhodhekanisos","07 - Dhodhekanisos"]
["GR","08","Dhrama","08 - Dhrama"]
["GR","09","Evritania","09 - Evritania"]
["GR","10","Evros","10 - Evros"]
["GR","11","Evvoia","11 - Evvoia"]
["GR","12","Florina","12 - Florina"]
["GR","13","Fokis","13 - Fokis"]
["GR","14","Fthiotis","14 - Fthiotis"]
["GR","15","Grevena","15 - Grevena"]
["GR","16","Ilia","16 - Ilia"]
["GR","17","Imathia","17 - Imathia"]
["GR","18","Ioannina","18 - Ioannina"]
["GR","19","Iraklion","19 - Iraklion"]
["GR","20","Kardhitsa","20 - Kardhitsa"]
["GR","21","Kastoria","21 - Kastoria"]
["GR","22","Kavala","22 - Kavala"]
["GR","23","Kefallinia","23 - Kefallinia"]
["GR","24","Kerkira","24 - Kerkira"]
["GR","25","Khalkidhiki","25 - Khalkidhiki"]
["GR","26","Khania","26 - Khania"]
["GR","27","Khios","27 - Khios"]
["GR","28","Kikladhes","28 - Kikladhes"]
["GR","29","Kilkis","29 - Kilkis"]
["GR","30","Korinthia","30 - Korinthia"]
["GR","31","Kozani","31 - Kozani"]
["GR","32","Lakonia","32 - Lakonia"]
["GR","33","Larisa","33 - Larisa"]
["GR","34","Lasithi","34 - Lasithi"]
["GR","35","Lesvos","35 - Lesvos"]
["GR","36","Levkas","36 - Levkas"]
["GR","37","Magnisia","37 - Magnisia"]
["GR","38","Messinia","38 - Messinia"]
["GR","39","Pella","39 - Pella"]
["GR","40","Pieria","40 - Pieria"]
["GR","41","Piraievs","41 - Piraievs"]
["GR","42","Preveza","42 - Preveza"]
["GR","43","Rethimni","43 - Rethimni"]
["GR","44","Rodhopi","44 - Rodhopi"]
["GR","45","Samos","45 - Samos"]
["GR","46","Serrai","46 - Serrai"]
["GR","47","Thesprotia","47 - Thesprotia"]
["GR","48","Thessaloniki","48 - Thessaloniki"]
["GR","49","Trikala","49 - Trikala"]
["GR","50","Voiotia","50 - Voiotia"]
["GR","51","Xanthi","51 - Xanthi"]
["GR","52","Zakinthos","52 - Zakinthos"]
["HK","HK","Hong Kong Island","HK - Hong Kong Island"]
["HK","KLN","Kowloon","KLN - Kowloon"]
["HK","NT","New Territories","NT - New Territories"]
["HR","A00","Zagrebacka","A00 - Zagrebacka"]
["HR","B00","Krapinsko-zagorska","B00 - Krapinsko-zagorska"]
["HR","C00","Sisacko-moslavacka","C00 - Sisacko-moslavacka"]
["HR","D00","Karlovacka",{"$f":"  B638 & \" - \" & C638","v":"D00 - Karlovacka"}]
["HR","E00","Varazdinska","E00 - Varazdinska"]
["HR","F00","Koprivnicko-krizevac","F00 - Koprivnicko-krizevac"]
["HR","G00","Bjelovarsko-bilogors","G00 - Bjelovarsko-bilogors"]
["HR","H00","Rijecko-goranska","H00 - Rijecko-goranska"]
["HR","I00","Licko-senjska","I00 - Licko-senjska"]
["HR","J00","Viroviticko-podravac","J00 - Viroviticko-podravac"]
["HR","K00","Pozesko-slavonska","K00 - Pozesko-slavonska"]
["HR","L00","Slavonskobrodska","L00 - Slavonskobrodska"]
["HR","M00","Zadarska","M00 - Zadarska"]
["HR","N00","Osjecko-baranjska","N00 - Osjecko-baranjska"]
["HR","O00","Sibensko-kninska","O00 - Sibensko-kninska"]
["HR","P00","Vukovarsko-srijemska","P00 - Vukovarsko-srijemska"]
["HR","R00","Splitsko-dalmatinska","R00 - Splitsko-dalmatinska"]
["HR","S00","Istarska","S00 - Istarska"]
["HR","T00","Dubrovacko-neretvans","T00 - Dubrovacko-neretvans"]
["HR","U00","Medjimurska","U00 - Medjimurska"]
["HR","V00","Zagreb","V00 - Zagreb"]
["HU","01","Bacs-Kiskun","01 - Bacs-Kiskun"]
["HU","02","Baranya","02 - Baranya"]
["HU","03","Bekes","03 - Bekes"]
["HU","04","Bekescsaba","04 - Bekescsaba"]
["HU","05","Borsod-Abauj-Zemplen","05 - Borsod-Abauj-Zemplen"]
["HU","06","Budapest","06 - Budapest"]
["HU","07","Csongrad","07 - Csongrad"]
["HU","08","Debrecen","08 - Debrecen"]
["HU","09","Dunaujvaros","09 - Dunaujvaros"]
["HU","10","Eger","10 - Eger"]
["HU","11","Fejer","11 - Fejer"]
["HU","12","Gyor","12 - Gyor"]
["HU","13","Gyor-Moson-Sopron","13 - Gyor-Moson-Sopron"]
["HU","14","Hajdu-Bihar","14 - Hajdu-Bihar"]
["HU","15","Heves","15 - Heves"]
["HU","16","Hodmezovasarhely","16 - Hodmezovasarhely"]
["HU","17","Jasz-Nagykun-Szolnok","17 - Jasz-Nagykun-Szolnok"]
["HU","18","Kaposvar","18 - Kaposvar"]
["HU","19","Kecskemet","19 - Kecskemet"]
["HU","20","Komarom-Esztergom","20 - Komarom-Esztergom"]
["HU","21","Miskolc","21 - Miskolc"]
["HU","22","Nagykanizsa","22 - Nagykanizsa"]
["HU","23","Nograd","23 - Nograd"]
["HU","24","Nyiregyhaza","24 - Nyiregyhaza"]
["HU","25","Pecs","25 - Pecs"]
["HU","26","Pest","26 - Pest"]
["HU","27","Somogy","27 - Somogy"]
["HU","28","Sopron","28 - Sopron"]
["HU","29","Szabolcs-Szat.-Bereg","29 - Szabolcs-Szat.-Bereg"]
["HU","30","Szeged","30 - Szeged"]
["HU","31","Szekesfehervar","31 - Szekesfehervar"]
["HU","32","Szolnok","32 - Szolnok"]
["HU","33","Szombathely","33 - Szombathely"]
["HU","34","Tatabanya","34 - Tatabanya"]
["HU","35","Tolna","35 - Tolna"]
["HU","36","Vas","36 - Vas"]
["HU","37","Veszprem","37 - Veszprem"]
["HU","38","Zala","38 - Zala"]
["HU","39","Zalaegerszeg","39 - Zalaegerszeg"]
["ID","01","DKI Jakarta Jakarta","01 - DKI Jakarta Jakarta"]
["ID","02","Jawa Barat West Java","02 - Jawa Barat West Java"]
["ID","03","Jawa Tengah Central","03 - Jawa Tengah Central"]
["ID","04","Jawa Timur East Java","04 - Jawa Timur East Java"]
["ID","05","DI Yogyakarta Yogyak","05 - DI Yogyakarta Yogyak"]
["ID","06","DI Aceh Aceh","06 - DI Aceh Aceh"]
["ID","07","Sumatera Utara North","07 - Sumatera Utara North"]
["ID","08","Sumatera Barat West",{"$f":"  B702 & \" - \" & C702","v":"08 - Sumatera Barat West"}]
["ID","09","Riau Riau","09 - Riau Riau"]
["ID","10","Jambi Jambi","10 - Jambi Jambi"]
["ID","11","Sumatera Selatan Sou","11 - Sumatera Selatan Sou"]
["ID","12","Bengkulu Bengkulu","12 - Bengkulu Bengkulu"]
["ID","13","Lampung Lampung","13 - Lampung Lampung"]
["ID","14","Kalimantan Selatan S","14 - Kalimantan Selatan S"]
["ID","15","Kalimantan Barat Wes","15 - Kalimantan Barat Wes"]
["ID","16","Kalimantan Tengah Ce","16 - Kalimantan Tengah Ce"]
["ID","17","Kalimantan Timur Eas","17 - Kalimantan Timur Eas"]
["ID","18","Sulawesi Selatan Sou","18 - Sulawesi Selatan Sou"]
["ID","19","Sulawesi Tenggara So","19 - Sulawesi Tenggara So"]
["ID","20","Sulawesi Tengah Cent","20 - Sulawesi Tengah Cent"]
["ID","21","Sulawesi Utara North","21 - Sulawesi Utara North"]
["ID","22","Bali Bali","22 - Bali Bali"]
["ID","23","Nusa Tenggara Barat","23 - Nusa Tenggara Barat"]
["ID","24","Nusa Tenggara Timur","24 - Nusa Tenggara Timur"]
["ID","25","Maluku Maluku","25 - Maluku Maluku"]
["ID","26","Irian Jaya Irian Jay","26 - Irian Jaya Irian Jay"]
["ID","27","Timor Timur East Tim","27 - Timor Timur East Tim"]
["IE","CK","Cork","CK - Cork"]
["IE","CL","Clare","CL - Clare"]
["IE","CV","Cavan","CV - Cavan"]
["IE","CW","Carlow","CW - Carlow"]
["IE","DB","Dublin","DB - Dublin"]
["IE","DG","Donegal","DG - Donegal"]
["IE","GW","Galway","GW - Galway"]
["IE","KD","Kildare","KD - Kildare"]
["IE","KK","Kilkenny","KK - Kilkenny"]
["IE","KY","Kerry","KY - Kerry"]
["IE","LF","Longford","LF - Longford"]
["IE","LI","Limerick","LI - Limerick"]
["IE","LM","Leitrim","LM - Leitrim"]
["IE","LS","Laois","LS - Laois"]
["IE","LT","Louth","LT - Louth"]
["IE","MH","Monaghan","MH - Monaghan"]
["IE","MT","Meath","MT - Meath"]
["IE","MY","Mayo","MY - Mayo"]
["IE","OF","Offaly","OF - Offaly"]
["IE","RC","Rosscommon","RC - Rosscommon"]
["IE","SG","Sligo","SG - Sligo"]
["IE","TP","Tipperary","TP - Tipperary"]
["IE","WF","Waterford","WF - Waterford"]
["IE","WK","Wicklow","WK - Wicklow"]
["IE","WM","Westmeath","WM - Westmeath"]
["IE","WX","Wexford","WX - Wexford"]
["IN","01","Andra Pradesh","01 - Andra Pradesh"]
["IN","02","Arunachal Pradesh","02 - Arunachal Pradesh"]
["IN","03","Assam","03 - Assam"]
["IN","04","Bihar","04 - Bihar"]
["IN","05","Goa","05 - Goa"]
["IN","06","Gujarat","06 - Gujarat"]
["IN","07","Haryana","07 - Haryana"]
["IN","08","Himachal Pradesh","08 - Himachal Pradesh"]
["IN","09","Jammu und Kashmir","09 - Jammu und Kashmir"]
["IN","10","Karnataka","10 - Karnataka"]
["IN","11","Kerala","11 - Kerala"]
["IN","12","Madhya Pradesh","12 - Madhya Pradesh"]
["IN","13","Maharashtra","13 - Maharashtra"]
["IN","14","Manipur","14 - Manipur"]
["IN","15","Megalaya","15 - Megalaya"]
["IN","16","Mizoram","16 - Mizoram"]
["IN","17","Nagaland","17 - Nagaland"]
["IN","18","Orissa","18 - Orissa"]
["IN","19","Punjab",{"$f":"  B766 & \" - \" & C766","v":"19 - Punjab"}]
["IN","20","Rajasthan","20 - Rajasthan"]
["IN","21","Sikkim","21 - Sikkim"]
["IN","22","Tamil Nadu","22 - Tamil Nadu"]
["IN","23","Tripura","23 - Tripura"]
["IN","24","Uttar Pradesh","24 - Uttar Pradesh"]
["IN","25","West Bengal","25 - West Bengal"]
["IN","26","Andaman und Nico.In.","26 - Andaman und Nico.In."]
["IN","27","Chandigarh","27 - Chandigarh"]
["IN","28","Dadra und Nagar Hav.","28 - Dadra und Nagar Hav."]
["IN","29","Daman und Diu","29 - Daman und Diu"]
["IN","30","Delhi","30 - Delhi"]
["IN","31","Lakshadweep","31 - Lakshadweep"]
["IN","32","Pondicherry","32 - Pondicherry"]
["IN","33","Chhaattisgarh","33 - Chhaattisgarh"]
["IN","34","Jharkhand","34 - Jharkhand"]
["IN","35","Uttaranchal","35 - Uttaranchal"]
["IN","A1",null,"A1 - "]
["IN","A2",null,"A2 - "]
["IN","A3",null,"A3 - "]
["IN","A4",null,"A4 - "]
["IT","AG","Agriento","AG - Agriento"]
["IT","AL","Alessandria","AL - Alessandria"]
["IT","AN","Ancona","AN - Ancona"]
["IT","AO","Aosta","AO - Aosta"]
["IT","AP","Ascoli Piceno","AP - Ascoli Piceno"]
["IT","AQ","L'Aquila","AQ - L'Aquila"]
["IT","AR","Arezzo","AR - Arezzo"]
["IT","AT","Asti","AT - Asti"]
["IT","AV","Avellino","AV - Avellino"]
["IT","BA","Bari","BA - Bari"]
["IT","BG","Bergamo","BG - Bergamo"]
["IT","BI","Biella","BI - Biella"]
["IT","BL","Belluno","BL - Belluno"]
["IT","BN","Benevento","BN - Benevento"]
["IT","BO","Bologna","BO - Bologna"]
["IT","BR","Brindisi","BR - Brindisi"]
["IT","BS","Brescia","BS - Brescia"]
["IT","BZ","Bolzano","BZ - Bolzano"]
["IT","CA","Cagliari","CA - Cagliari"]
["IT","CB","Campobasso","CB - Campobasso"]
["IT","CE","Caserta","CE - Caserta"]
["IT","CH","Chieti","CH - Chieti"]
["IT","CL","Caltanisetta","CL - Caltanisetta"]
["IT","CN","Cuneo","CN - Cuneo"]
["IT","CO","Como","CO - Como"]
["IT","CR","Cremona","CR - Cremona"]
["IT","CS","Cosenza","CS - Cosenza"]
["IT","CT","Catania","CT - Catania"]
["IT","CZ","Catanzaro","CZ - Catanzaro"]
["IT","EN","Enna","EN - Enna"]
["IT","FC","Forli/Cesana","FC - Forli/Cesana"]
["IT","FE","Ferrara","FE - Ferrara"]
["IT","FG","Foggia","FG - Foggia"]
["IT","FI","Florence","FI - Florence"]
["IT","FR","Frosinone","FR - Frosinone"]
["IT","GE","Genova","GE - Genova"]
["IT","GO","Gorizia","GO - Gorizia"]
["IT","GR","Grosseto","GR - Grosseto"]
["IT","IM","Imperia","IM - Imperia"]
["IT","IS","Isernia","IS - Isernia"]
["IT","KR","Crotone","KR - Crotone"]
["IT","LC","Lecco","LC - Lecco"]
["IT","LE","Lecce","LE - Lecce"]
["IT","LI","Livorno",{"$f":"  B830 & \" - \" & C830","v":"LI - Livorno"}]
["IT","LO","Lodi","LO - Lodi"]
["IT","LT","Latina","LT - Latina"]
["IT","LU","Lucca","LU - Lucca"]
["IT","MC","Macerata","MC - Macerata"]
["IT","ME","Messina","ME - Messina"]
["IT","MI","Milan","MI - Milan"]
["IT","MN","Mantova","MN - Mantova"]
["IT","MO","Modena","MO - Modena"]
["IT","MS","Massa Carrara","MS - Massa Carrara"]
["IT","MT","Matera","MT - Matera"]
["IT","NA","Naples","NA - Naples"]
["IT","NO","Novara","NO - Novara"]
["IT","NU","Nuoro","NU - Nuoro"]
["IT","OR","Oristano","OR - Oristano"]
["IT","PA","Palermo","PA - Palermo"]
["IT","PC","Piacenza","PC - Piacenza"]
["IT","PD","Padova","PD - Padova"]
["IT","PE","Pescara","PE - Pescara"]
["IT","PG","Perugia","PG - Perugia"]
["IT","PI","Pisa","PI - Pisa"]
["IT","PN","Pordenone","PN - Pordenone"]
["IT","PO","Prato","PO - Prato"]
["IT","PR","Parma","PR - Parma"]
["IT","PT","Pistoia","PT - Pistoia"]
["IT","PU","Pesaro-Urbino","PU - Pesaro-Urbino"]
["IT","PV","Pavia","PV - Pavia"]
["IT","PZ","Potenza","PZ - Potenza"]
["IT","RA","Ravenna","RA - Ravenna"]
["IT","RC","Reggio Calabria","RC - Reggio Calabria"]
["IT","RE","Reggio Emilia","RE - Reggio Emilia"]
["IT","RG","Ragusa","RG - Ragusa"]
["IT","RI","Rieti","RI - Rieti"]
["IT","RM","Rome","RM - Rome"]
["IT","RN","Rimini","RN - Rimini"]
["IT","RO","Rovigo","RO - Rovigo"]
["IT","SA","Salerno","SA - Salerno"]
["IT","SI","Siena","SI - Siena"]
["IT","SO","Sondrio","SO - Sondrio"]
["IT","SP","La Spezia","SP - La Spezia"]
["IT","SR","Siracusa","SR - Siracusa"]
["IT","SS","Sassari","SS - Sassari"]
["IT","SV","Savona","SV - Savona"]
["IT","TA","Taranto","TA - Taranto"]
["IT","TE","Teramo","TE - Teramo"]
["IT","TN","Trento","TN - Trento"]
["IT","TO","Turin","TO - Turin"]
["IT","TP","Trapani","TP - Trapani"]
["IT","TR","Terni","TR - Terni"]
["IT","TS","Trieste","TS - Trieste"]
["IT","TV","Treviso","TV - Treviso"]
["IT","UD","Udine","UD - Udine"]
["IT","VA","Varese","VA - Varese"]
["IT","VB","Verbania","VB - Verbania"]
["IT","VC","Vercelli","VC - Vercelli"]
["IT","VE","Venice","VE - Venice"]
["IT","VI","Vicenza","VI - Vicenza"]
["IT","VR","Verona","VR - Verona"]
["IT","VT","Viterbo","VT - Viterbo"]
["IT","VV","Vibo Valentia","VV - Vibo Valentia"]
["JE","01","St Helier","01 - St Helier"]
["JP","01","Hokkaido","01 - Hokkaido"]
["JP","02","Aomori","02 - Aomori"]
["JP","03","Iwate","03 - Iwate"]
["JP","04","Miyagi",{"$f":"  B894 & \" - \" & C894","v":"04 - Miyagi"}]
["JP","05","Akita","05 - Akita"]
["JP","06","Yamagata","06 - Yamagata"]
["JP","07","Fukushima","07 - Fukushima"]
["JP","08","Ibaraki","08 - Ibaraki"]
["JP","09","Tochigi","09 - Tochigi"]
["JP","10","Gunma","10 - Gunma"]
["JP","11","Saitama","11 - Saitama"]
["JP","12","Chiba","12 - Chiba"]
["JP","13","Tokyo","13 - Tokyo"]
["JP","14","Kanagawa","14 - Kanagawa"]
["JP","15","Niigata","15 - Niigata"]
["JP","16","Toyama","16 - Toyama"]
["JP","17","Ishikawa","17 - Ishikawa"]
["JP","18","Fukui","18 - Fukui"]
["JP","19","Yamanashi","19 - Yamanashi"]
["JP","20","Nagano","20 - Nagano"]
["JP","21","Gifu","21 - Gifu"]
["JP","22","Shizuoka","22 - Shizuoka"]
["JP","23","Aichi","23 - Aichi"]
["JP","24","Mie","24 - Mie"]
["JP","25","Shiga","25 - Shiga"]
["JP","26","Kyoto","26 - Kyoto"]
["JP","27","Osaka","27 - Osaka"]
["JP","28","Hyogo","28 - Hyogo"]
["JP","29","Nara","29 - Nara"]
["JP","30","Wakayama","30 - Wakayama"]
["JP","31","Tottori","31 - Tottori"]
["JP","32","Shimane","32 - Shimane"]
["JP","33","Okayama","33 - Okayama"]
["JP","34","Hiroshima","34 - Hiroshima"]
["JP","35","Yamaguchi","35 - Yamaguchi"]
["JP","36","Tokushima","36 - Tokushima"]
["JP","37","Kagawa","37 - Kagawa"]
["JP","38","Ehime","38 - Ehime"]
["JP","39","Kochi","39 - Kochi"]
["JP","40","Fukuoka","40 - Fukuoka"]
["JP","41","Saga","41 - Saga"]
["JP","42","Nagasaki","42 - Nagasaki"]
["JP","43","Kumamoto","43 - Kumamoto"]
["JP","44","Oita","44 - Oita"]
["JP","45","Miyazaki","45 - Miyazaki"]
["JP","46","Kagoshima","46 - Kagoshima"]
["JP","47","Okinawa","47 - Okinawa"]
["KR","01","Cheju-do","01 - Cheju-do"]
["KR","02","Cholla-bukto","02 - Cholla-bukto"]
["KR","03","Cholla-namdo","03 - Cholla-namdo"]
["KR","04","Ch´ungch´ong-bukto","04 - Ch´ungch´ong-bukto"]
["KR","05","Ch´ungch´ong-namdo","05 - Ch´ungch´ong-namdo"]
["KR","06","Inch´on-jikhalsi","06 - Inch´on-jikhalsi"]
["KR","07","Kangwon-do","07 - Kangwon-do"]
["KR","08","Kwangju-jikhalsi","08 - Kwangju-jikhalsi"]
["KR","09","Kyonggi-do","09 - Kyonggi-do"]
["KR","10","Kyongsang-bukto","10 - Kyongsang-bukto"]
["KR","11","Kyongsang-namdo","11 - Kyongsang-namdo"]
["KR","12","Pusan-jikhalsi","12 - Pusan-jikhalsi"]
["KR","13","Soul-t´ukpyolsi","13 - Soul-t´ukpyolsi"]
["KR","14","Taegu-jikhalsi","14 - Taegu-jikhalsi"]
["KR","15","Taejon-jikhalsi","15 - Taejon-jikhalsi"]
["KY","X","Caymans Island","X - Caymans Island"]
["KZ","00","Almatynskaia","00 - Almatynskaia"]
["KZ","01","Kostanaiskaia","01 - Kostanaiskaia"]
["KZ","02","Severo-Kazakhstansk","02 - Severo-Kazakhstansk"]
["KZ","03","Pavlodarskaia","03 - Pavlodarskaia"]
["KZ","04","Akmolinskaia",{"$f":"  B958 & \" - \" & C958","v":"04 - Akmolinskaia"}]
["KZ","05","Aktubinskaia","05 - Aktubinskaia"]
["KZ","06","Atyrauskaia","06 - Atyrauskaia"]
["KZ","07","Zapadno-Kazakhst","07 - Zapadno-Kazakhst"]
["KZ","08","Mangystayskaia","08 - Mangystayskaia"]
["KZ","09","Karagandinskaia","09 - Karagandinskaia"]
["KZ","10","Vostochno-Kazakhstan","10 - Vostochno-Kazakhstan"]
["KZ","11","Gambilskaia","11 - Gambilskaia"]
["KZ","12","Kyzilordinskaia","12 - Kyzilordinskaia"]
["LU","LU","Luxembourg","LU - Luxembourg"]
["LU","LUX","Luxembourg","LUX - Luxembourg"]
["MX","AGS","Aguascalientes","AGS - Aguascalientes"]
["MX","BC","Baja California","BC - Baja California"]
["MX","BCS","Baja California S","BCS - Baja California S"]
["MX","CHI","Chihuahua","CHI - Chihuahua"]
["MX","CHS","Chiapas","CHS - Chiapas"]
["MX","CMP","Campeche","CMP - Campeche"]
["MX","COA","Coahuila","COA - Coahuila"]
["MX","COL","Colima","COL - Colima"]
["MX","DF","Distrito Federal","DF - Distrito Federal"]
["MX","DGO","Durango","DGO - Durango"]
["MX","GRO","Guerrero","GRO - Guerrero"]
["MX","GTO","Guanajuato","GTO - Guanajuato"]
["MX","HGO","Hidalgo","HGO - Hidalgo"]
["MX","JAL","Jalisco","JAL - Jalisco"]
["MX","MCH","Michoacan","MCH - Michoacan"]
["MX","MEX","Estado de Mexico","MEX - Estado de Mexico"]
["MX","MOR","Morelos","MOR - Morelos"]
["MX","NAY","Nayarit","NAY - Nayarit"]
["MX","NL","Nuevo Leon","NL - Nuevo Leon"]
["MX","OAX","Oaxaca","OAX - Oaxaca"]
["MX","PUE","Puebla","PUE - Puebla"]
["MX","QR","Quintana Roo","QR - Quintana Roo"]
["MX","QRO","Queretaro","QRO - Queretaro"]
["MX","SIN","Sinaloa","SIN - Sinaloa"]
["MX","SLP","San Luis Potosi","SLP - San Luis Potosi"]
["MX","SON","Sonora","SON - Sonora"]
["MX","TAB","Tabasco","TAB - Tabasco"]
["MX","TLX","Tlaxcala","TLX - Tlaxcala"]
["MX","TMS","Tamaulipas","TMS - Tamaulipas"]
["MX","VER","Veracruz","VER - Veracruz"]
["MX","YUC","Yucatan","YUC - Yucatan"]
["MX","ZAC","Zacatecas","ZAC - Zacatecas"]
["MY","JOH","Johor","JOH - Johor"]
["MY","KED","Kedah","KED - Kedah"]
["MY","KEL","Kelantan","KEL - Kelantan"]
["MY","KUL","Kuala Lumpur","KUL - Kuala Lumpur"]
["MY","LAB","Labuan","LAB - Labuan"]
["MY","MEL","Melaka","MEL - Melaka"]
["MY","PAH","Pahang","PAH - Pahang"]
["MY","PEL","Perlis","PEL - Perlis"]
["MY","PER","Perak","PER - Perak"]
["MY","PIN","Pulau Pinang","PIN - Pulau Pinang"]
["MY","PSK","Wil. Persekutuan","PSK - Wil. Persekutuan"]
["MY","SAB","Sabah","SAB - Sabah"]
["MY","SAR","Sarawak","SAR - Sarawak"]
["MY","SEL","Selangor","SEL - Selangor"]
["MY","SER","Negeri Sembilan","SER - Negeri Sembilan"]
["MY","TRE","Trengganu","TRE - Trengganu"]
["NL","01","Drenthe","01 - Drenthe"]
["NL","02","Flevoland","02 - Flevoland"]
["NL","03","Friesland","03 - Friesland"]
["NL","04","Gelderland","04 - Gelderland"]
["NL","05","Groningen","05 - Groningen"]
["NL","06","Limburg",{"$f":"  B1022 & \" - \" & C1022","v":"06 - Limburg"}]
["NL","07","Noord-Brabant","07 - Noord-Brabant"]
["NL","08","Noord-Holland","08 - Noord-Holland"]
["NL","09","Overijssel","09 - Overijssel"]
["NL","10","Utrecht","10 - Utrecht"]
["NL","11","Zeeland","11 - Zeeland"]
["NL","12","Zuid-Holland","12 - Zuid-Holland"]
["NO","01","Ostfold County","01 - Ostfold County"]
["NO","02","Akershus County","02 - Akershus County"]
["NO","03","Oslo","03 - Oslo"]
["NO","04","Hedmark County","04 - Hedmark County"]
["NO","05","Oppland County","05 - Oppland County"]
["NO","06","Buskerud County","06 - Buskerud County"]
["NO","07","Vestfold County","07 - Vestfold County"]
["NO","08","Telemark County","08 - Telemark County"]
["NO","09","Aust-Agder County","09 - Aust-Agder County"]
["NO","10","Vest-Agder County","10 - Vest-Agder County"]
["NO","11","Rogaland County","11 - Rogaland County"]
["NO","12","Hordaland County","12 - Hordaland County"]
["NO","14","Sogn og Fjordane C.","14 - Sogn og Fjordane C."]
["NO","15","More og Romsdal C.","15 - More og Romsdal C."]
["NO","16","Sor-Trondelag County","16 - Sor-Trondelag County"]
["NO","17","Nord-Trondelag Cnty","17 - Nord-Trondelag Cnty"]
["NO","18","Nordland County","18 - Nordland County"]
["NO","19","Troms County","19 - Troms County"]
["NO","20","Finnmark County","20 - Finnmark County"]
["NZ","AKL","Auckland","AKL - Auckland"]
["NZ","BOP","Bay of Plenty","BOP - Bay of Plenty"]
["NZ","CAN","Canterbury","CAN - Canterbury"]
["NZ","HAB","Hawke´s Bay","HAB - Hawke´s Bay"]
["NZ","MAN","Manawatu-Wanganui","MAN - Manawatu-Wanganui"]
["NZ","NTL","Northland","NTL - Northland"]
["NZ","OTA","Otago","OTA - Otago"]
["NZ","STL","Southland","STL - Southland"]
["NZ","TAR","Taranaki","TAR - Taranaki"]
["NZ","WAI","Waikato","WAI - Waikato"]
["NZ","WEC","West Coast","WEC - West Coast"]
["NZ","WLG","Wellington","WLG - Wellington"]
["PE","01","Tumbes","01 - Tumbes"]
["PE","02","Piura","02 - Piura"]
["PE","03","Lambayeque","03 - Lambayeque"]
["PE","04","La Libertad","04 - La Libertad"]
["PE","05","Ancash","05 - Ancash"]
["PE","06","Lima y Callao","06 - Lima y Callao"]
["PE","07","Ica","07 - Ica"]
["PE","08","Arequipa","08 - Arequipa"]
["PE","09","Moquegua","09 - Moquegua"]
["PE","10","Tacna","10 - Tacna"]
["PE","11","Amazon","11 - Amazon"]
["PE","12","Cajamarca","12 - Cajamarca"]
["PE","13","San Martin","13 - San Martin"]
["PE","14","Huanuco","14 - Huanuco"]
["PE","15","Pasco","15 - Pasco"]
["PE","16","Junin","16 - Junin"]
["PE","17","Huancavelica","17 - Huancavelica"]
["PE","18","Ayacucho","18 - Ayacucho"]
["PE","19","Apurimac","19 - Apurimac"]
["PE","20","Cuzco","20 - Cuzco"]
["PE","21","Puno","21 - Puno"]
["PE","22","Loreto","22 - Loreto"]
["PE","23","Ucayali","23 - Ucayali"]
["PE","24","Madre de Dios","24 - Madre de Dios"]
["PL","DSL","Dolnoslaskie","DSL - Dolnoslaskie"]
["PL","K-P","Kujawsko-Pomorskie","K-P - Kujawsko-Pomorskie"]
["PL","LBL","Lubelskie",{"$f":"  B1086 & \" - \" & C1086","v":"LBL - Lubelskie"}]
["PL","LBS","Lubuskie","LBS - Lubuskie"]
["PL","LDZ","Lodzkie","LDZ - Lodzkie"]
["PL","MAL","Malopolskie","MAL - Malopolskie"]
["PL","MAZ","Mazowieckie","MAZ - Mazowieckie"]
["PL","OPO","Opolskie","OPO - Opolskie"]
["PL","PDK","Podkarpackie","PDK - Podkarpackie"]
["PL","PDL","Podlaskie","PDL - Podlaskie"]
["PL","POM","Pomorskie","POM - Pomorskie"]
["PL","SLS","Slaskie","SLS - Slaskie"]
["PL","SWK","Swietokrzyskie","SWK - Swietokrzyskie"]
["PL","W-M","Warminsko-mazurskie","W-M - Warminsko-mazurskie"]
["PL","WLK","Wielkopolskie","WLK - Wielkopolskie"]
["PL","Z-P","Zachodnio-Pomorskie","Z-P - Zachodnio-Pomorskie"]
["PT","10","Minho-Lima","10 - Minho-Lima"]
["PT","11","Cavado","11 - Cavado"]
["PT","12","Ave","12 - Ave"]
["PT","13","Grande Porto","13 - Grande Porto"]
["PT","14","Tamega","14 - Tamega"]
["PT","15","Entre Douro e Vouga","15 - Entre Douro e Vouga"]
["PT","16","Douro","16 - Douro"]
["PT","17","Alto Tras-os-Montes","17 - Alto Tras-os-Montes"]
["PT","20","Baixo Vouga","20 - Baixo Vouga"]
["PT","21","Baixo Mondego","21 - Baixo Mondego"]
["PT","22","Pinhal Litoral","22 - Pinhal Litoral"]
["PT","23","Pinhal Interior N.","23 - Pinhal Interior N."]
["PT","24","Pinhal Interior Sul","24 - Pinhal Interior Sul"]
["PT","25","Dao-Lafoes","25 - Dao-Lafoes"]
["PT","26","Serra da Estrela","26 - Serra da Estrela"]
["PT","27","Beira Interior Norte","27 - Beira Interior Norte"]
["PT","28","Beira Interior Sul","28 - Beira Interior Sul"]
["PT","29","Cova da Beira","29 - Cova da Beira"]
["PT","30","Oeste","30 - Oeste"]
["PT","31","Grande Lisboa","31 - Grande Lisboa"]
["PT","32","Peninsula de Setubal","32 - Peninsula de Setubal"]
["PT","33","Medio Tejo","33 - Medio Tejo"]
["PT","34","Leziria do Tejo","34 - Leziria do Tejo"]
["PT","40","Alentejo Litoral","40 - Alentejo Litoral"]
["PT","41","Alto Alentejo","41 - Alto Alentejo"]
["PT","42","Alentejo Central","42 - Alentejo Central"]
["PT","43","Baixo Alentejo","43 - Baixo Alentejo"]
["PT","50","Algarve","50 - Algarve"]
["PT","60","Reg. Aut. dos Açores","60 - Reg. Aut. dos Açores"]
["PT","70","Reg. Aut. da Madeira","70 - Reg. Aut. da Madeira"]
["RO","01","Alba","01 - Alba"]
["RO","02","Arad","02 - Arad"]
["RO","03","Arges","03 - Arges"]
["RO","04","Bacau","04 - Bacau"]
["RO","05","Bihor","05 - Bihor"]
["RO","06","Bistrita-Nasaud","06 - Bistrita-Nasaud"]
["RO","07","Botosani","07 - Botosani"]
["RO","08","Braila","08 - Braila"]
["RO","09","Brasov","09 - Brasov"]
["RO","10","Bucuresti","10 - Bucuresti"]
["RO","11","Buzau","11 - Buzau"]
["RO","12","Calarasi","12 - Calarasi"]
["RO","13","Caras-Severin","13 - Caras-Severin"]
["RO","14","Cluj","14 - Cluj"]
["RO","15","Constanta","15 - Constanta"]
["RO","16","Covasna","16 - Covasna"]
["RO","17","Dimbovita","17 - Dimbovita"]
["RO","18","Dolj","18 - Dolj"]
["RO","19","Galati","19 - Galati"]
["RO","20","Gorj","20 - Gorj"]
["RO","21","Giurgiu",{"$f":"  B1150 & \" - \" & C1150","v":"21 - Giurgiu"}]
["RO","22","Harghita","22 - Harghita"]
["RO","23","Hunedoara","23 - Hunedoara"]
["RO","24","Ialomita","24 - Ialomita"]
["RO","25","Iasi","25 - Iasi"]
["RO","26","Maramures","26 - Maramures"]
["RO","27","Mehedinti","27 - Mehedinti"]
["RO","28","Mures","28 - Mures"]
["RO","29","Neamt","29 - Neamt"]
["RO","30","Olt","30 - Olt"]
["RO","31","Prahova","31 - Prahova"]
["RO","32","Salaj","32 - Salaj"]
["RO","33","Satu Mare","33 - Satu Mare"]
["RO","34","Sibiu","34 - Sibiu"]
["RO","35","Suceava","35 - Suceava"]
["RO","36","Teleorman","36 - Teleorman"]
["RO","37","Timis","37 - Timis"]
["RO","38","Tulcea","38 - Tulcea"]
["RO","39","Vaslui","39 - Vaslui"]
["RO","40","Vilcea","40 - Vilcea"]
["RO","41","Vrancea","41 - Vrancea"]
["SI","01","Ajdovscina","01 - Ajdovscina"]
["SI","02","Brezice","02 - Brezice"]
["SI","03","Celje","03 - Celje"]
["SI","04","Cerknica","04 - Cerknica"]
["SI","05","Crnomelj","05 - Crnomelj"]
["SI","06","Dravograd","06 - Dravograd"]
["SI","07","Gornja Radgona","07 - Gornja Radgona"]
["SI","08","Grosuplje","08 - Grosuplje"]
["SI","09","Hrastnik Lasko","09 - Hrastnik Lasko"]
["SI","10","Idrija","10 - Idrija"]
["SI","11","Ilirska Bistrica","11 - Ilirska Bistrica"]
["SI","12","Izola","12 - Izola"]
["SI","13","Jesenice","13 - Jesenice"]
["SI","14","Kamnik","14 - Kamnik"]
["SI","15","Kocevje","15 - Kocevje"]
["SI","16","Koper","16 - Koper"]
["SI","17","Kranj","17 - Kranj"]
["SI","18","Krsko","18 - Krsko"]
["SI","19","Lenart","19 - Lenart"]
["SI","20","Lendava","20 - Lendava"]
["SI","21","Litija","21 - Litija"]
["SI","22","Ljubljana-Bezigrad","22 - Ljubljana-Bezigrad"]
["SI","23","Ljubljana-Center","23 - Ljubljana-Center"]
["SI","24","Ljubljana-Moste-Polj","24 - Ljubljana-Moste-Polj"]
["SI","25","Ljubljana-Siska","25 - Ljubljana-Siska"]
["SI","26","Ljubljana-Vic-Rudnik","26 - Ljubljana-Vic-Rudnik"]
["SI","27","Ljutomer","27 - Ljutomer"]
["SI","28","Logatec","28 - Logatec"]
["SI","29","Maribor","29 - Maribor"]
["SI","30","Metlika","30 - Metlika"]
["SI","31","Mozirje","31 - Mozirje"]
["SI","32","Murska Sobota","32 - Murska Sobota"]
["SI","33","Nova Gorica","33 - Nova Gorica"]
["SI","34","Novo Mesto","34 - Novo Mesto"]
["SI","35","Ormoz","35 - Ormoz"]
["SI","36","Pesnica","36 - Pesnica"]
["SI","37","Piran","37 - Piran"]
["SI","38","Postojna","38 - Postojna"]
["SI","39","Ptuj","39 - Ptuj"]
["SI","40","Radlje Ob Dravi","40 - Radlje Ob Dravi"]
["SI","41","Radovljica","41 - Radovljica"]
["SI","42","Ravne Na Koroskem","42 - Ravne Na Koroskem"]
["SI","43","Ribnica","43 - Ribnica"]
["SI","44","Ruse",{"$f":"  B1214 & \" - \" & C1214","v":"44 - Ruse"}]
["SI","45","Sentjur Pri Celju","45 - Sentjur Pri Celju"]
["SI","46","Sevnica","46 - Sevnica"]
["SI","47","Sezana","47 - Sezana"]
["SI","48","Skofja Loka","48 - Skofja Loka"]
["SI","49","Slovenj Gradec","49 - Slovenj Gradec"]
["SI","50","Slovenska Bistrica","50 - Slovenska Bistrica"]
["SI","51","Slovenske Konjice","51 - Slovenske Konjice"]
["SI","52","Smarje Pri Jelsah","52 - Smarje Pri Jelsah"]
["SI","53","Tolmin","53 - Tolmin"]
["SI","54","Trbovlje","54 - Trbovlje"]
["SI","55","Trebnje","55 - Trebnje"]
["SI","56","Trzic","56 - Trzic"]
["SI","57","Velenje","57 - Velenje"]
["SI","58","Vrhnika","58 - Vrhnika"]
["SI","59","Zagorje Ob Savi","59 - Zagorje Ob Savi"]
["SI","60","Zalec","60 - Zalec"]
["TH","01","Amnat Charoen","01 - Amnat Charoen"]
["TH","02","Ang Thong","02 - Ang Thong"]
["TH","03","Buriram","03 - Buriram"]
["TH","04","Chachoengsao","04 - Chachoengsao"]
["TH","05","Chai Nat","05 - Chai Nat"]
["TH","06","Chaiyaphum","06 - Chaiyaphum"]
["TH","07","Chanthaburi","07 - Chanthaburi"]
["TH","08","Chiang Mai","08 - Chiang Mai"]
["TH","09","Chiang Rai","09 - Chiang Rai"]
["TH","10","Chon Buri","10 - Chon Buri"]
["TH","11","Chumphon","11 - Chumphon"]
["TH","12","Kalasin","12 - Kalasin"]
["TH","13","Kamphaeng Phet","13 - Kamphaeng Phet"]
["TH","14","Kanchanaburi","14 - Kanchanaburi"]
["TH","15","Khon Kaen","15 - Khon Kaen"]
["TH","16","Krabi","16 - Krabi"]
["TH","17","Krung Thep","17 - Krung Thep"]
["TH","18","Mahanakhon","18 - Mahanakhon"]
["TH","19","Lampang","19 - Lampang"]
["TH","20","Lamphun","20 - Lamphun"]
["TH","21","Loei","21 - Loei"]
["TH","22","Lop Buri","22 - Lop Buri"]
["TH","23","Mae Hong Son","23 - Mae Hong Son"]
["TH","24","Maha Sarakham","24 - Maha Sarakham"]
["TH","25","Mukdahan","25 - Mukdahan"]
["TH","26","Nakhon Nayok","26 - Nakhon Nayok"]
["TH","27","Nakhon Pathom","27 - Nakhon Pathom"]
["TH","28","Nakhon Phanom","28 - Nakhon Phanom"]
["TH","29","Nakhon Ratchasima","29 - Nakhon Ratchasima"]
["TH","30","Nakhon Sawan","30 - Nakhon Sawan"]
["TH","31","Nakhon Si Thammarat","31 - Nakhon Si Thammarat"]
["TH","32","Nan","32 - Nan"]
["TH","33","Narathiwat","33 - Narathiwat"]
["TH","34","Nong Bua Lamphu","34 - Nong Bua Lamphu"]
["TH","35","Nong Khai","35 - Nong Khai"]
["TH","36","Nonthaburi","36 - Nonthaburi"]
["TH","37","Pathum Thani","37 - Pathum Thani"]
["TH","38","Pattani","38 - Pattani"]
["TH","39","Phangnga","39 - Phangnga"]
["TH","40","Phatthalung","40 - Phatthalung"]
["TH","41","Phayao","41 - Phayao"]
["TH","42","Phetchabun","42 - Phetchabun"]
["TH","43","Phetchaburi","43 - Phetchaburi"]
["TH","44","Phichit","44 - Phichit"]
["TH","45","Phitsanulok","45 - Phitsanulok"]
["TH","46","Phra Nakhon Si Ayut.","46 - Phra Nakhon Si Ayut."]
["TH","47","Phrae","47 - Phrae"]
["TH","48","Phuket",{"$f":"  B1278 & \" - \" & C1278","v":"48 - Phuket"}]
["TH","49","Prachin Buri","49 - Prachin Buri"]
["TW","FJN","Fu-chien","FJN - Fu-chien"]
["TW","KSH","Kao-hsiung","KSH - Kao-hsiung"]
["TW","TPE","T´ai-pei","TPE - T´ai-pei"]
["TW","TWN","Taiwan","TWN - Taiwan"]
["US","MI","Michigan",{"$f":"  B1284 & \" - \" & C1284","v":"MI - Michigan"}]
["US","AE","Armed Forces","AE - Armed Forces"]
["US","AK","Alaska","AK - Alaska"]
["US","AL","Alabama","AL - Alabama"]
["US","AP","Armed Forces","AP - Armed Forces"]
["US","AR","Arkansas","AR - Arkansas"]
["US","AS","American Samoa","AS - American Samoa"]
["US","AZ","Arizona","AZ - Arizona"]
["US","CA","California","CA - California"]
["US","CO","Colorado","CO - Colorado"]
["US","CT","Connecticut","CT - Connecticut"]
["US","DC","District of Columbia","DC - District of Columbia"]
["US","DE","Delaware","DE - Delaware"]
["US","FL","Florida","FL - Florida"]
["US","GA","Georgia","GA - Georgia"]
["US","GU","Guam","GU - Guam"]
["US","HI","Hawaii","HI - Hawaii"]
["US","IA","Iowa","IA - Iowa"]
["US","ID","Idaho","ID - Idaho"]
["US","IL","Illinois","IL - Illinois"]
["US","IN","Indiana","IN - Indiana"]
["US","KS","Kansas","KS - Kansas"]
["US","KY","Kentucky","KY - Kentucky"]
["US","LA","Louisiana","LA - Louisiana"]
["US","MA","Massachusetts","MA - Massachusetts"]
["US","MD","Maryland","MD - Maryland"]
["US","ME","Maine","ME - Maine"]
["US","MN","Minnesota","MN - Minnesota"]
["US","MO","Missouri","MO - Missouri"]
["US","MP","Northern Mariana Isl","MP - Northern Mariana Isl"]
["US","MS","Mississippi","MS - Mississippi"]
["US","MT","Montana","MT - Montana"]
["US","NC","North Carolina","NC - North Carolina"]
["US","ND","North Dakota","ND - North Dakota"]
["US","NE","Nebraska","NE - Nebraska"]
["US","NH","New Hampshire","NH - New Hampshire"]
["US","NJ","New Jersey","NJ - New Jersey"]
["US","NM","New Mexico","NM - New Mexico"]
["US","NV","Nevada","NV - Nevada"]
["US","NY","New York","NY - New York"]
["US","OH","Ohio","OH - Ohio"]
["US","OK","Oklahoma","OK - Oklahoma"]
["US","OR","Oregon","OR - Oregon"]
["US","PA","Pennsylvania","PA - Pennsylvania"]
["US","PR","Puerto Rico","PR - Puerto Rico"]
["US","RI","Rhode Island","RI - Rhode Island"]
["US","SC","South Carolina","SC - South Carolina"]
["US","SD","South Dakota","SD - South Dakota"]
["US","TN","Tennessee","TN - Tennessee"]
["US","TX","Texas","TX - Texas"]
["US","UT","Utah","UT - Utah"]
["US","VA","Virginia","VA - Virginia"]
["US","VI","Virgin Islands","VI - Virgin Islands"]
["US","VT","Vermont","VT - Vermont"]
["US","WA","Washington","WA - Washington"]
["US","WI","Wisconsin","WI - Wisconsin"]
["US","WV","West Virginia","WV - West Virginia"]
["US","WY","Wyoming","WY - Wyoming"]
["VE","AMA","Amazon",{"$f":"  B1342 & \" - \" & C1342","v":"AMA - Amazon"}]
["VE","ANZ","Anzoategui","ANZ - Anzoategui"]
["VE","APU","Apure","APU - Apure"]
["VE","ARA","Aragua","ARA - Aragua"]
["VE","BAR","Barinas","BAR - Barinas"]
["VE","BOL","Bolivar","BOL - Bolivar"]
["VE","CAR","Carabobo","CAR - Carabobo"]
["VE","COJ","Cojedes","COJ - Cojedes"]
["VE","DA","Delta Amacuro","DA - Delta Amacuro"]
["VE","DF","Distrito Federal","DF - Distrito Federal"]
["VE","FAL","Falcon","FAL - Falcon"]
["VE","GUA","Guarico","GUA - Guarico"]
["VE","LAR","Lara","LAR - Lara"]
["VE","MER","Merida","MER - Merida"]
["VE","MIR","Miranda","MIR - Miranda"]
["VE","MON","Monagas","MON - Monagas"]
["VE","NE","Nueva Esparta","NE - Nueva Esparta"]
["VE","POR","Portuguesa","POR - Portuguesa"]
["VE","SUC","Sucre","SUC - Sucre"]
["VE","TAC","Tachira","TAC - Tachira"]
["VE","TRU","Trujillo","TRU - Trujillo"]
["VE","VAR","Vargas","VAR - Vargas"]
["VE","YAR","Yaracuy","YAR - Yaracuy"]
["VE","ZUL","Zulia","ZUL - Zulia"]